Unique Ref No,Vendor Name,Subjective Mapping 1 (Higher level),Subj Mapping 2 (Lower Level),Subjective  Description,Net Amount,Capital/Revenue,GL Posting Date,Directorate
WC55-0001,118 PHARMACY LIMITED,Third Party Payments,Joint Arrangements,71007-CONTRIBUTION TO PCT,300.00,Revenue,29/04/2015,Neighbourhood Services
WC55-0002,118 PHARMACY LIMITED,Third Party Payments,Joint Arrangements,71007-CONTRIBUTION TO PCT,900.00,Revenue,02/04/2015,Neighbourhood Services
WC55-0003,1ST HAND CARE LTD,Third Party Payments,Private Contractor Fees,73372-DOMICILIARY CARE,391.00,Revenue,29/04/2015,Social Care & Inclusion
WC55-0004,1ST HAND CARE LTD,Third Party Payments,Private Contractor Fees,73372-DOMICILIARY CARE,805.00,Revenue,29/04/2015,Social Care & Inclusion
WC55-0005,1ST HAND CARE LTD,Third Party Payments,Private Contractor Fees,73372-DOMICILIARY CARE,"1,180.14",Revenue,29/04/2015,Social Care & Inclusion
WC55-0006,1ST HAND CARE LTD,Third Party Payments,Private Contractor Fees,73372-DOMICILIARY CARE,"1,449.00",Revenue,29/04/2015,Social Care & Inclusion
WC55-0007,1ST HAND CARE LTD,Third Party Payments,Private Contractor Fees,73372-DOMICILIARY CARE,"8,257.00",Revenue,27/04/2015,Social Care & Inclusion
WC55-0008,1ST HAND CARE LTD,Third Party Payments,Private Contractor Fees,73372-DOMICILIARY CARE,"14,068.86",Revenue,07/04/2015,Social Care & Inclusion
WC55-0009,247 CARS (WILLENHALL) LIMITED,Transport,Hire,52000-WITH DRIVER-HIRE OF VEHICLES,540.00,Revenue,23/04/2015,Childrens
WC55-0010,247 CARS (WILLENHALL) LIMITED,Transport,Hire,52000-WITH DRIVER-HIRE OF VEHICLES,592.00,Revenue,21/04/2015,Childrens
WC55-0011,247 CARS (WILLENHALL) LIMITED,Transport,Hire,52000-WITH DRIVER-HIRE OF VEHICLES,592.00,Revenue,21/04/2015,Childrens
WC55-0012,247 CARS (WILLENHALL) LIMITED,Transport,Hire,52000-WITH DRIVER-HIRE OF VEHICLES,680.00,Revenue,21/04/2015,Childrens
WC55-0013,247 CARS (WILLENHALL) LIMITED,Transport,Hire,52000-WITH DRIVER-HIRE OF VEHICLES,"1,000.00",Revenue,21/04/2015,Childrens
WC55-0014,2SIMPLE SOFTWARE LTD,Supplies & Services,Communications & Computing,63800-COMPUTER EQUIPMENT AND SUPPLIES,"1,500.00",Revenue,29/04/2015,Childrens
WC55-0015,2SIMPLE SOFTWARE LTD,Supplies & Services,Communications & Computing,63800-COMPUTER EQUIPMENT AND SUPPLIES,"1,800.00",Revenue,29/04/2015,Childrens
WC55-0016,425 SQN WELFARE FUND,Third Party Payments,Grants to Other Orgs,66500-GRANTS TO OTHER ORGS,"5,491.62",Revenue,28/04/2015,Resources
WC55-0017,5 CARE SERVICES LTD,Third Party Payments,Private Contractor Fees,73372-DOMICILIARY CARE,"28,942.39",Revenue,01/04/2015,Social Care & Inclusion
WC55-0018,5 CARE SERVICES LTD,Third Party Payments,Private Contractor Fees,73372-DOMICILIARY CARE,"31,756.43",Revenue,27/04/2015,Social Care & Inclusion
WC55-0019,A 2 Z TAXIS (A2Z CARS),Transport,Hire,52000-WITH DRIVER-HIRE OF VEHICLES,"1,050.00",Revenue,29/04/2015,Childrens
WC55-0020,A 2 Z TAXIS (A2Z CARS),Transport,Hire,52000-WITH DRIVER-HIRE OF VEHICLES,"1,785.00",Revenue,09/04/2015,Childrens
WC55-0021,A 2 Z TAXIS (A2Z CARS),Transport,Hire,52000-WITH DRIVER-HIRE OF VEHICLES,"2,618.00",Revenue,15/04/2015,Childrens
WC55-0022,A D T FIRE AND SECURITY PLC,Third Party Payments,Private Contractor Fees,73002-SECURITY-PRIV CONTRACTOR FEES,341.94,Revenue,08/04/2015,Regeneration
WC55-0023,A D T FIRE AND SECURITY PLC,Supplies & Services,"Equip,Furniture & Materials",60008-MAINTENANCE-FURNITURE & EQUIPMENT,559.01,Revenue,02/04/2015,Neighbourhood Services
WC55-0024,A D T FIRE AND SECURITY PLC,Third Party Payments,Private Contractor Fees,73002-SECURITY-PRIV CONTRACTOR FEES,723.38,Revenue,08/04/2015,Regeneration
WC55-0025,A D T FIRE AND SECURITY PLC,Third Party Payments,Private Contractor Fees,73002-SECURITY-PRIV CONTRACTOR FEES,939.73,Revenue,08/04/2015,Regeneration
WC55-0026,A D T FIRE AND SECURITY PLC,Third Party Payments,Private Contractor Fees,73002-SECURITY-PRIV CONTRACTOR FEES,957.40,Revenue,08/04/2015,Regeneration
WC55-0027,A D T FIRE AND SECURITY PLC,Third Party Payments,Private Contractor Fees,73002-SECURITY-PRIV CONTRACTOR FEES,"1,069.56",Revenue,08/04/2015,Regeneration
WC55-0028,A D T FIRE AND SECURITY PLC,Supplies & Services,"Equip,Furniture & Materials",60008-MAINTENANCE-FURNITURE & EQUIPMENT,"1,072.24",Revenue,16/04/2015,Neighbourhood Services
WC55-0029,A D T FIRE AND SECURITY PLC,Supplies & Services,"Equip,Furniture & Materials",60008-MAINTENANCE-FURNITURE & EQUIPMENT,"1,293.60",Revenue,15/04/2015,Neighbourhood Services
WC55-0030,A D T FIRE AND SECURITY PLC,Supplies & Services,"Equip,Furniture & Materials",60008-MAINTENANCE-FURNITURE & EQUIPMENT,"4,048.00",Revenue,07/04/2015,Social Care & Inclusion
WC55-0031,A D T FIRE AND SECURITY PLC,Supplies & Services,"Equip,Furniture & Materials",60008-MAINTENANCE-FURNITURE & EQUIPMENT,"4,050.00",Revenue,07/04/2015,Social Care & Inclusion
WC55-0032,A F BLAKEMORE & SON LTD,Supplies & Services,Provisions,61016-FOOD AND BEVERAGES-PROVISIONS,264.63,Revenue,16/04/2015,Neighbourhood Services
WC55-0033,A F BLAKEMORE & SON LTD,Supplies & Services,Provisions,61016-FOOD AND BEVERAGES-PROVISIONS,282.71,Revenue,01/04/2015,Neighbourhood Services
WC55-0034,A F BLAKEMORE & SON LTD,Supplies & Services,Provisions,61016-FOOD AND BEVERAGES-PROVISIONS,286.78,Revenue,02/04/2015,Neighbourhood Services
WC55-0035,A F BLAKEMORE & SON LTD,Supplies & Services,"Equip,Furniture & Materials",60500-GENERAL MATERIALS,290.24,Revenue,09/04/2015,Neighbourhood Services
WC55-0036,A F BLAKEMORE & SON LTD,Supplies & Services,"Equip,Furniture & Materials",60500-GENERAL MATERIALS,293.30,Revenue,20/04/2015,Neighbourhood Services
WC55-0037,A F BLAKEMORE & SON LTD,Supplies & Services,Provisions,61001-FROZEN FOODS-PROVISIONS,295.53,Revenue,20/04/2015,Neighbourhood Services
WC55-0038,A F BLAKEMORE & SON LTD,Supplies & Services,Provisions,61305-CATERING,330.80,Revenue,21/04/2015,Social Care & Inclusion
WC55-0039,A F BLAKEMORE & SON LTD,Supplies & Services,Provisions,61016-FOOD AND BEVERAGES-PROVISIONS,336.10,Revenue,13/04/2015,Neighbourhood Services
WC55-0040,A F BLAKEMORE & SON LTD,Supplies & Services,Provisions,61002-DRY FOODS-PROVISIONS,413.07,Revenue,29/04/2015,Neighbourhood Services
WC55-0041,A F BLAKEMORE & SON LTD,Supplies & Services,Provisions,61305-CATERING,637.22,Revenue,09/04/2015,Social Care & Inclusion
WC55-0042,A F BLAKEMORE & SON LTD,Supplies & Services,Provisions,61016-FOOD AND BEVERAGES-PROVISIONS,683.58,Revenue,29/04/2015,Social Care & Inclusion
WC55-0043,A F BLAKEMORE & SON LTD,Supplies & Services,Provisions,61008-CONFECTIONERY/SNACKS-PROVISIONS,977.92,Revenue,16/04/2015,Neighbourhood Services
WC55-0044,REDACTED,Third Party Payments,Private Contractor Fees,74006-HOLIDAY/CHRISTMAS ALLOWANCE-FOSTER CARERS-OTH AGENCY PROVISION,344.67,Revenue,13/04/2015,Childrens
WC55-0045,A KARIMS CHUCKERY PHARMACY,Supplies & Services,Services,63000-PROFESSIONAL FEES AND SERVICES,55.00,Revenue,28/04/2015,Neighbourhood Services
WC55-0046,A KARIMS CHUCKERY PHARMACY,Third Party Payments,Joint Arrangements,71007-CONTRIBUTION TO PCT,300.00,Revenue,29/04/2015,Neighbourhood Services
WC55-0047,A KARIMS CHUCKERY PHARMACY,Third Party Payments,Joint Arrangements,71007-CONTRIBUTION TO PCT,409.10,Revenue,29/04/2015,Neighbourhood Services
WC55-0048,A KARIMS CHUCKERY PHARMACY,Third Party Payments,Joint Arrangements,71007-CONTRIBUTION TO PCT,900.00,Revenue,02/04/2015,Neighbourhood Services
WC55-0049,A KARIMS CHUCKERY PHARMACY,Third Party Payments,Joint Arrangements,71007-CONTRIBUTION TO PCT,"1,108.55",Revenue,28/04/2015,Neighbourhood Services
WC55-0050,REDACTED,Third Party Payments,Private Contractor Fees,74006-HOLIDAY/CHRISTMAS ALLOWANCE-FOSTER CARERS-OTH AGENCY PROVISION,985.76,Revenue,27/04/2015,Childrens
WC55-0051,REDACTED,Supplies & Services,Other Supplies & Services,62515-MISCELLANEOUS SUPPLIES,"1,398.74",Revenue,27/04/2015,Childrens
WC55-0052,A4E LTD#3,Transfer Payments,Transfer Payments,76423-DIRECT PAYMENTS SUPPORT,"2,655.00",Revenue,16/04/2015,Social Care & Inclusion
WC55-0053,REDACTED,Transfer Payments,Transfer Payments,76422-DIRECT PAYMENTS TO SOCIAL SERVICES CLIENTS,345.24,Revenue,14/04/2015,Childrens
WC55-0054,ABACUS FOSTERING LTD,Third Party Payments,Private Contractor Fees,74037-INDEPENDENT FOSTER CARE-OTH AGENCY PROVISION,"3,542.86",Revenue,13/04/2015,Childrens
WC55-0055,REDACTED,Third Party Payments,Private Contractor Fees,74006-HOLIDAY/CHRISTMAS ALLOWANCE-FOSTER CARERS-OTH AGENCY PROVISION,647.22,Revenue,13/04/2015,Childrens
WC55-0056,ABBEY HEALTHCARE HOMES LTD,Third Party Payments,Private Contractor Fees,73373-RESIDENTIAL & NURSING CARE PLACEMENTS,"1,661.88",Revenue,28/04/2015,Social Care & Inclusion
WC55-0057,ABBEY HEALTHCARE HOMES LTD,Third Party Payments,Private Contractor Fees,73373-RESIDENTIAL & NURSING CARE PLACEMENTS,"2,243.60",Revenue,28/04/2015,Social Care & Inclusion
WC55-0058,ABBEYMERE CARE CENTRE,Third Party Payments,Private Contractor Fees,73373-RESIDENTIAL & NURSING CARE PLACEMENTS,"1,528.87",Revenue,15/04/2015,Social Care & Inclusion
WC55-0059,ABBEYMERE CARE CENTRE,Third Party Payments,Private Contractor Fees,73373-RESIDENTIAL & NURSING CARE PLACEMENTS,"1,583.48",Revenue,15/04/2015,Social Care & Inclusion
WC55-0060,ABC DAY NURSERY (WILLENHALL) LIMITED,Third Party Payments,Grants to Other Orgs,66505-OTHER-GRANTS TO OTHER ORGS,"17,508.65",Revenue,13/04/2015,Childrens
WC55-0061,ABC DAY NURSERY (WILLENHALL) LIMITED,Third Party Payments,Grants to Other Orgs,66505-OTHER-GRANTS TO OTHER ORGS,"28,145.00",Revenue,13/04/2015,Childrens
WC55-0062,ABC FOSTERING,Third Party Payments,Private Contractor Fees,74037-INDEPENDENT FOSTER CARE-OTH AGENCY PROVISION,"2,884.20",Revenue,29/04/2015,Childrens
WC55-0063,ABC FOSTERING,Third Party Payments,Private Contractor Fees,74037-INDEPENDENT FOSTER CARE-OTH AGENCY PROVISION,"3,036.00",Revenue,29/04/2015,Childrens
WC55-0064,ABC TEACHERS LIMITED,Employees,Agency,34305-AGENCY STAFF-EMPLOYEES,115.99,Revenue,09/04/2015,Childrens
WC55-0065,ABC TEACHERS LIMITED,Employees,Agency,34305-AGENCY STAFF-EMPLOYEES,195.99,Revenue,24/04/2015,Childrens
WC55-0066,ABC TEACHERS LIMITED,Employees,Agency,34305-AGENCY STAFF-EMPLOYEES,347.97,Revenue,02/04/2015,Childrens
WC55-0067,ABC TEACHERS LIMITED,Employees,Agency,34305-AGENCY STAFF-EMPLOYEES,347.97,Revenue,09/04/2015,Childrens
WC55-0068,ABC TEACHERS LIMITED,Employees,Agency,34305-AGENCY STAFF-EMPLOYEES,347.97,Revenue,15/04/2015,Childrens
WC55-0069,ABC TEACHERS LIMITED,Employees,Agency,34305-AGENCY STAFF-EMPLOYEES,437.96,Revenue,15/04/2015,Childrens
WC55-0070,ABC TEACHERS LIMITED,Employees,Agency,34305-AGENCY STAFF-EMPLOYEES,437.96,Revenue,09/04/2015,Childrens
WC55-0071,ABC TEACHERS LIMITED,Employees,Agency,34305-AGENCY STAFF-EMPLOYEES,463.96,Revenue,08/04/2015,Childrens
WC55-0072,ABC TEACHERS LIMITED,Employees,Agency,34305-AGENCY STAFF-EMPLOYEES,483.96,Revenue,24/04/2015,Childrens
WC55-0073,ABC TEACHERS LIMITED,Employees,Agency,34305-AGENCY STAFF-EMPLOYEES,579.95,Revenue,02/04/2015,Childrens
WC55-0074,ABC TEACHERS LIMITED,Employees,Agency,34305-AGENCY STAFF-EMPLOYEES,579.95,Revenue,09/04/2015,Childrens
WC55-0075,ABC TEACHERS LIMITED,Employees,Agency,34305-AGENCY STAFF-EMPLOYEES,677.95,Revenue,02/04/2015,Childrens
WC55-0076,ABC TEACHERS LIMITED,Employees,Agency,34305-AGENCY STAFF-EMPLOYEES,695.94,Revenue,15/04/2015,Childrens
WC55-0077,ABC TEACHERS LIMITED,Employees,Agency,34305-AGENCY STAFF-EMPLOYEES,847.94,Revenue,15/04/2015,Childrens
WC55-0078,ABC TEACHERS LIMITED,Employees,Agency,34305-AGENCY STAFF-EMPLOYEES,905.94,Revenue,08/04/2015,Childrens
WC55-0079,ABC TEACHERS LIMITED,Employees,Agency,34305-AGENCY STAFF-EMPLOYEES,942.92,Revenue,24/04/2015,Childrens
WC55-0080,ABC TEACHERS LIMITED,Employees,Agency,34305-AGENCY STAFF-EMPLOYEES,"1,137.92",Revenue,24/04/2015,Childrens
WC55-0081,ABEL ALARM CO LTD,Supplies & Services,"Equip,Furniture & Materials",60006-NEW-FURNITURE & EQUIPMENT,422.00,Revenue,08/04/2015,Neighbourhood Services
WC55-0082,ABEL ALARM CO LTD,Supplies & Services,"Equip,Furniture & Materials",60008-MAINTENANCE-FURNITURE & EQUIPMENT,780.45,Revenue,02/04/2015,Childrens
WC55-0083,REDACTED,Transfer Payments,Transfer Payments,76422-DIRECT PAYMENTS TO SOCIAL SERVICES CLIENTS,"2,358.00",Revenue,14/04/2015,Social Care & Inclusion
WC55-0084,ABLEWELL CARS,Transport,Hire,52000-WITH DRIVER-HIRE OF VEHICLES,265.00,Revenue,21/04/2015,Childrens
WC55-0085,ABLEWELL CARS,Transport,Hire,52000-WITH DRIVER-HIRE OF VEHICLES,300.00,Revenue,09/04/2015,Childrens
WC55-0086,ABLEWELL CARS,Transport,Hire,52000-WITH DRIVER-HIRE OF VEHICLES,302.00,Revenue,09/04/2015,Childrens
WC55-0087,ABLEWELL CARS,Transport,Hire,52000-WITH DRIVER-HIRE OF VEHICLES,330.00,Revenue,10/04/2015,Childrens
WC55-0088,ABLEWELL CARS,Transport,Hire,52000-WITH DRIVER-HIRE OF VEHICLES,330.00,Revenue,10/04/2015,Childrens
WC55-0089,ABLEWELL CARS,Transport,Hire,52000-WITH DRIVER-HIRE OF VEHICLES,530.00,Revenue,09/04/2015,Childrens
WC55-0090,ABU BAKR NURSERY,Third Party Payments,Grants to Other Orgs,66505-OTHER-GRANTS TO OTHER ORGS,"4,672.40",Revenue,13/04/2015,Childrens
WC55-0091,ABU BAKR NURSERY,Third Party Payments,Grants to Other Orgs,66505-OTHER-GRANTS TO OTHER ORGS,"24,990.00",Revenue,15/04/2015,Childrens
WC55-0092,ACCORD HOUSING ASSOCIATION LTD#135,Third Party Payments,Private Contractor Fees,73372-DOMICILIARY CARE,321.76,Revenue,29/04/2015,Social Care & Inclusion
WC55-0093,ACCORD HOUSING ASSOCIATION LTD#135,Third Party Payments,Private Contractor Fees,73372-DOMICILIARY CARE,354.28,Revenue,29/04/2015,Social Care & Inclusion
WC55-0094,ACCORD HOUSING ASSOCIATION LTD#135,Third Party Payments,Private Contractor Fees,73374-SUPPORTED & OTHER ACCOMMODATION,370.41,Revenue,21/04/2015,Social Care & Inclusion
WC55-0095,ACCORD HOUSING ASSOCIATION LTD#135,Third Party Payments,Private Contractor Fees,73372-DOMICILIARY CARE,444.92,Revenue,29/04/2015,Social Care & Inclusion
WC55-0096,ACCORD HOUSING ASSOCIATION LTD#135,Third Party Payments,Private Contractor Fees,73372-DOMICILIARY CARE,502.32,Revenue,21/04/2015,Social Care & Inclusion
WC55-0097,ACCORD HOUSING ASSOCIATION LTD#135,Third Party Payments,Private Contractor Fees,73374-SUPPORTED & OTHER ACCOMMODATION,514.00,Revenue,21/04/2015,Social Care & Inclusion
WC55-0098,ACCORD HOUSING ASSOCIATION LTD#135,Third Party Payments,Private Contractor Fees,73372-DOMICILIARY CARE,531.32,Revenue,29/04/2015,Social Care & Inclusion
WC55-0099,ACCORD HOUSING ASSOCIATION LTD#135,Third Party Payments,Private Contractor Fees,73372-DOMICILIARY CARE,531.32,Revenue,29/04/2015,Social Care & Inclusion
WC55-0100,ACCORD HOUSING ASSOCIATION LTD#135,Third Party Payments,Private Contractor Fees,73374-SUPPORTED & OTHER ACCOMMODATION,569.07,Revenue,29/04/2015,Social Care & Inclusion
WC55-0101,ACCORD HOUSING ASSOCIATION LTD#135,Third Party Payments,Private Contractor Fees,73372-DOMICILIARY CARE,573.29,Revenue,02/04/2015,Social Care & Inclusion
WC55-0102,ACCORD HOUSING ASSOCIATION LTD#135,Third Party Payments,Private Contractor Fees,73372-DOMICILIARY CARE,595.44,Revenue,29/04/2015,Social Care & Inclusion
WC55-0103,ACCORD HOUSING ASSOCIATION LTD#135,Third Party Payments,Private Contractor Fees,73372-DOMICILIARY CARE,595.44,Revenue,29/04/2015,Social Care & Inclusion
WC55-0104,ACCORD HOUSING ASSOCIATION LTD#135,Third Party Payments,Private Contractor Fees,73374-SUPPORTED & OTHER ACCOMMODATION,655.34,Revenue,21/04/2015,Social Care & Inclusion
WC55-0105,ACCORD HOUSING ASSOCIATION LTD#135,Third Party Payments,Private Contractor Fees,73372-DOMICILIARY CARE,656.88,Revenue,29/04/2015,Social Care & Inclusion
WC55-0106,ACCORD HOUSING ASSOCIATION LTD#135,Third Party Payments,Private Contractor Fees,73372-DOMICILIARY CARE,775.76,Revenue,29/04/2015,Social Care & Inclusion
WC55-0107,ACCORD HOUSING ASSOCIATION LTD#135,Third Party Payments,Private Contractor Fees,73374-SUPPORTED & OTHER ACCOMMODATION,775.76,Revenue,29/04/2015,Social Care & Inclusion
WC55-0108,ACCORD HOUSING ASSOCIATION LTD#135,Third Party Payments,Private Contractor Fees,73374-SUPPORTED & OTHER ACCOMMODATION,797.80,Revenue,21/04/2015,Social Care & Inclusion
WC55-0109,ACCORD HOUSING ASSOCIATION LTD#135,Third Party Payments,Private Contractor Fees,73372-DOMICILIARY CARE,862.96,Revenue,01/04/2015,Social Care & Inclusion
WC55-0110,ACCORD HOUSING ASSOCIATION LTD#135,Third Party Payments,Private Contractor Fees,73374-SUPPORTED & OTHER ACCOMMODATION,883.28,Revenue,21/04/2015,Social Care & Inclusion
WC55-0111,ACCORD HOUSING ASSOCIATION LTD#135,Third Party Payments,Private Contractor Fees,73374-SUPPORTED & OTHER ACCOMMODATION,883.28,Revenue,21/04/2015,Social Care & Inclusion
WC55-0112,ACCORD HOUSING ASSOCIATION LTD#135,Third Party Payments,Private Contractor Fees,73372-DOMICILIARY CARE,916.40,Revenue,01/04/2015,Social Care & Inclusion
WC55-0113,ACCORD HOUSING ASSOCIATION LTD#135,Third Party Payments,Private Contractor Fees,73372-DOMICILIARY CARE,916.40,Revenue,01/04/2015,Social Care & Inclusion
WC55-0114,ACCORD HOUSING ASSOCIATION LTD#135,Third Party Payments,Private Contractor Fees,73372-DOMICILIARY CARE,916.40,Revenue,01/04/2015,Social Care & Inclusion
WC55-0115,ACCORD HOUSING ASSOCIATION LTD#135,Third Party Payments,Private Contractor Fees,73372-DOMICILIARY CARE,916.40,Revenue,01/04/2015,Social Care & Inclusion
WC55-0116,ACCORD HOUSING ASSOCIATION LTD#135,Third Party Payments,Private Contractor Fees,73372-DOMICILIARY CARE,916.40,Revenue,01/04/2015,Social Care & Inclusion
WC55-0117,ACCORD HOUSING ASSOCIATION LTD#135,Third Party Payments,Private Contractor Fees,73372-DOMICILIARY CARE,916.40,Revenue,01/04/2015,Social Care & Inclusion
WC55-0118,ACCORD HOUSING ASSOCIATION LTD#135,Third Party Payments,Private Contractor Fees,73372-DOMICILIARY CARE,916.40,Revenue,02/04/2015,Social Care & Inclusion
WC55-0119,ACCORD HOUSING ASSOCIATION LTD#135,Third Party Payments,Private Contractor Fees,73372-DOMICILIARY CARE,"1,133.20",Revenue,29/04/2015,Social Care & Inclusion
WC55-0120,ACCORD HOUSING ASSOCIATION LTD#135,Third Party Payments,Private Contractor Fees,73372-DOMICILIARY CARE,"1,133.20",Revenue,29/04/2015,Social Care & Inclusion
WC55-0121,ACCORD HOUSING ASSOCIATION LTD#135,Third Party Payments,Private Contractor Fees,73372-DOMICILIARY CARE,"1,183.96",Revenue,29/04/2015,Social Care & Inclusion
WC55-0122,ACCORD HOUSING ASSOCIATION LTD#135,Third Party Payments,Private Contractor Fees,73372-DOMICILIARY CARE,"1,184.72",Revenue,29/04/2015,Social Care & Inclusion
WC55-0123,ACCORD HOUSING ASSOCIATION LTD#135,Third Party Payments,Private Contractor Fees,73372-DOMICILIARY CARE,"1,197.80",Revenue,29/04/2015,Social Care & Inclusion
WC55-0124,ACCORD HOUSING ASSOCIATION LTD#135,Third Party Payments,Private Contractor Fees,73372-DOMICILIARY CARE,"1,416.56",Revenue,29/04/2015,Social Care & Inclusion
WC55-0125,ACCORD HOUSING ASSOCIATION LTD#135,Third Party Payments,Private Contractor Fees,73372-DOMICILIARY CARE,"1,538.68",Revenue,29/04/2015,Social Care & Inclusion
WC55-0126,ACCORD HOUSING ASSOCIATION LTD#135,Third Party Payments,Private Contractor Fees,73374-SUPPORTED & OTHER ACCOMMODATION,"1,584.00",Revenue,29/04/2015,Social Care & Inclusion
WC55-0127,ACCORD HOUSING ASSOCIATION LTD#135,Third Party Payments,Private Contractor Fees,73372-DOMICILIARY CARE,"1,725.68",Revenue,29/04/2015,Social Care & Inclusion
WC55-0128,ACCORD HOUSING ASSOCIATION LTD#135,Third Party Payments,Private Contractor Fees,73372-DOMICILIARY CARE,"1,832.80",Revenue,14/04/2015,Social Care & Inclusion
WC55-0129,ACCORD HOUSING ASSOCIATION LTD#135,Third Party Payments,Private Contractor Fees,73373-RESIDENTIAL & NURSING CARE PLACEMENTS,"4,640.48",Revenue,15/04/2015,Social Care & Inclusion
WC55-0130,ACCORD HOUSING ASSOCIATION LTD#135,Third Party Payments,Private Contractor Fees,73373-RESIDENTIAL & NURSING CARE PLACEMENTS,"4,640.48",Revenue,15/04/2015,Social Care & Inclusion
WC55-0131,ACCORD HOUSING ASSOCIATION LTD#135,Third Party Payments,Private Contractor Fees,73373-RESIDENTIAL & NURSING CARE PLACEMENTS,"6,476.61",Revenue,15/04/2015,Social Care & Inclusion
WC55-0132,ACCORD HOUSING ASSOCIATION LTD#135,Third Party Payments,Private Contractor Fees,73373-RESIDENTIAL & NURSING CARE PLACEMENTS,"6,476.61",Revenue,15/04/2015,Social Care & Inclusion
WC55-0133,ACCORD HOUSING ASSOCIATION LTD#135,Third Party Payments,Private Contractor Fees,73373-RESIDENTIAL & NURSING CARE PLACEMENTS,"6,476.61",Revenue,15/04/2015,Social Care & Inclusion
WC55-0134,ACCORD HOUSING ASSOCIATION LTD#135,Third Party Payments,Grants to Other Orgs,66500-GRANTS TO OTHER ORGS,"29,744.30",Revenue,15/04/2015,Regeneration
WC55-0135,ACE CARE AGENCY,Third Party Payments,Private Contractor Fees,73372-DOMICILIARY CARE,283.29,Revenue,28/04/2015,Social Care & Inclusion
WC55-0136,ACE CARE AGENCY,Third Party Payments,Private Contractor Fees,73372-DOMICILIARY CARE,566.58,Revenue,28/04/2015,Social Care & Inclusion
WC55-0137,ACE RADIO CARS,Transport,Hire,52000-WITH DRIVER-HIRE OF VEHICLES,"1,952.40",Revenue,28/04/2015,Childrens
WC55-0138,ACEPAY LTD (COTTAGE NUR HOME),Third Party Payments,Private Contractor Fees,73373-RESIDENTIAL & NURSING CARE PLACEMENTS,"-19,037.35",Revenue,15/04/2015,Social Care & Inclusion
WC55-0139,ACEPAY LTD (COTTAGE NUR HOME),Third Party Payments,Private Contractor Fees,73373-RESIDENTIAL & NURSING CARE PLACEMENTS,"-10,718.76",Revenue,15/04/2015,Social Care & Inclusion
WC55-0140,ACEPAY LTD (COTTAGE NUR HOME),Third Party Payments,Private Contractor Fees,73373-RESIDENTIAL & NURSING CARE PLACEMENTS,"-6,936.90",Revenue,15/04/2015,Social Care & Inclusion
WC55-0141,ACEPAY LTD (COTTAGE NUR HOME),Third Party Payments,Private Contractor Fees,73373-RESIDENTIAL & NURSING CARE PLACEMENTS,565.48,Revenue,15/04/2015,Social Care & Inclusion
WC55-0142,ACEPAY LTD (COTTAGE NUR HOME),Third Party Payments,Private Contractor Fees,73373-RESIDENTIAL & NURSING CARE PLACEMENTS,565.48,Revenue,15/04/2015,Social Care & Inclusion
WC55-0143,ACEPAY LTD (COTTAGE NUR HOME),Third Party Payments,Private Contractor Fees,73373-RESIDENTIAL & NURSING CARE PLACEMENTS,565.49,Revenue,15/04/2015,Social Care & Inclusion
WC55-0144,ACEPAY LTD (COTTAGE NUR HOME),Third Party Payments,Private Contractor Fees,73373-RESIDENTIAL & NURSING CARE PLACEMENTS,"1,413.71",Revenue,15/04/2015,Social Care & Inclusion
WC55-0145,ACEPAY LTD (COTTAGE NUR HOME),Third Party Payments,Private Contractor Fees,73373-RESIDENTIAL & NURSING CARE PLACEMENTS,"1,413.72",Revenue,15/04/2015,Social Care & Inclusion
WC55-0146,ACEPAY LTD (COTTAGE NUR HOME),Third Party Payments,Private Contractor Fees,73373-RESIDENTIAL & NURSING CARE PLACEMENTS,"1,413.72",Revenue,15/04/2015,Social Care & Inclusion
WC55-0147,ACEPAY LTD (COTTAGE NUR HOME),Third Party Payments,Private Contractor Fees,73373-RESIDENTIAL & NURSING CARE PLACEMENTS,"1,937.16",Revenue,28/04/2015,Social Care & Inclusion
WC55-0148,ACEPAY LTD (COTTAGE NUR HOME),Third Party Payments,Private Contractor Fees,73373-RESIDENTIAL & NURSING CARE PLACEMENTS,"1,937.56",Revenue,28/04/2015,Social Care & Inclusion
WC55-0149,ACEPAY LTD (COTTAGE NUR HOME),Third Party Payments,Private Contractor Fees,73373-RESIDENTIAL & NURSING CARE PLACEMENTS,"1,979.20",Revenue,15/04/2015,Social Care & Inclusion
WC55-0150,ACEPAY LTD (COTTAGE NUR HOME),Third Party Payments,Private Contractor Fees,73373-RESIDENTIAL & NURSING CARE PLACEMENTS,"1,979.20",Revenue,28/04/2015,Social Care & Inclusion
WC55-0151,ACEPAY LTD (COTTAGE NUR HOME),Third Party Payments,Private Contractor Fees,73373-RESIDENTIAL & NURSING CARE PLACEMENTS,"1,979.20",Revenue,28/04/2015,Social Care & Inclusion
WC55-0152,ACEPAY LTD (COTTAGE NUR HOME),Third Party Payments,Private Contractor Fees,73373-RESIDENTIAL & NURSING CARE PLACEMENTS,"1,979.20",Revenue,28/04/2015,Social Care & Inclusion
WC55-0153,ACEPAY LTD (COTTAGE NUR HOME),Third Party Payments,Private Contractor Fees,73373-RESIDENTIAL & NURSING CARE PLACEMENTS,"2,629.55",Revenue,15/04/2015,Social Care & Inclusion
WC55-0154,ACEPAY LTD (COTTAGE NUR HOME),Third Party Payments,Private Contractor Fees,73373-RESIDENTIAL & NURSING CARE PLACEMENTS,"3,598.33",Revenue,15/04/2015,Social Care & Inclusion
WC55-0155,ACEPAY LTD (COTTAGE NUR HOME),Third Party Payments,Private Contractor Fees,73373-RESIDENTIAL & NURSING CARE PLACEMENTS,"5,799.48",Revenue,15/04/2015,Social Care & Inclusion
WC55-0156,ACEPAY LTD (COTTAGE NUR HOME),Third Party Payments,Private Contractor Fees,73373-RESIDENTIAL & NURSING CARE PLACEMENTS,"9,182.51",Revenue,15/04/2015,Social Care & Inclusion
WC55-0157,ACEPAY LTD (COTTAGE NUR HOME),Third Party Payments,Private Contractor Fees,73373-RESIDENTIAL & NURSING CARE PLACEMENTS,"14,273.75",Revenue,15/04/2015,Social Care & Inclusion
WC55-0158,ACEPAY LTD (COTTAGE NUR HOME),Third Party Payments,Private Contractor Fees,73373-RESIDENTIAL & NURSING CARE PLACEMENTS,"25,196.34",Revenue,15/04/2015,Social Care & Inclusion
WC55-0159,ACORN REST HOME,Third Party Payments,Private Contractor Fees,73373-RESIDENTIAL & NURSING CARE PLACEMENTS,"1,460.40",Revenue,28/04/2015,Social Care & Inclusion
WC55-0160,ACORNS CHILDRENS HOSPICE TRUST,Supplies & Services,Services,63000-PROFESSIONAL FEES AND SERVICES,750.00,Revenue,16/04/2015,Childrens
WC55-0161,ACT NOW TRAINING LTD,Employees,Training,30030-EXTERNAL TRAINING,265.00,Revenue,08/04/2015,Resources
WC55-0162,ACTION ON HEARING LOSS,Third Party Payments,Private Contractor Fees,70000-SOCIAL SERVICES-FEES TO VOLUNTARY BODIES,"25,664.06",Revenue,01/04/2015,Social Care & Inclusion
WC55-0163,ACTIVE ASSISTANCE,Supplies & Services,Services,63000-PROFESSIONAL FEES AND SERVICES,"2,286.00",Revenue,28/04/2015,Childrens
WC55-0164,ACTIVE ASSISTANCE,Supplies & Services,Services,63000-PROFESSIONAL FEES AND SERVICES,"2,550.16",Revenue,28/04/2015,Childrens
WC55-0165,ACTIVE SECURITY SOLUTIONS LIMITED,Third Party Payments,Private Contractor Fees,73002-SECURITY-PRIV CONTRACTOR FEES,-721.25,Revenue,29/04/2015,Neighbourhood Services
WC55-0166,ACTIVE SECURITY SOLUTIONS LIMITED,Third Party Payments,Private Contractor Fees,73002-SECURITY-PRIV CONTRACTOR FEES,687.00,Revenue,28/04/2015,Neighbourhood Services
WC55-0167,ACTIVE SECURITY SOLUTIONS LIMITED,Third Party Payments,Private Contractor Fees,73002-SECURITY-PRIV CONTRACTOR FEES,721.25,Revenue,29/04/2015,Neighbourhood Services
WC55-0168,ACTIVE SECURITY SOLUTIONS LIMITED,Third Party Payments,Private Contractor Fees,73002-SECURITY-PRIV CONTRACTOR FEES,760.00,Revenue,28/04/2015,Neighbourhood Services
WC55-0169,REDACTED,Transfer Payments,Transfer Payments,76422-DIRECT PAYMENTS TO SOCIAL SERVICES CLIENTS,487.60,Revenue,14/04/2015,Childrens
WC55-0170,REDACTED,Transfer Payments,Transfer Payments,76422-DIRECT PAYMENTS TO SOCIAL SERVICES CLIENTS,812.00,Revenue,14/04/2015,Social Care & Inclusion
WC55-0171,REDACTED,Transfer Payments,Transfer Payments,76422-DIRECT PAYMENTS TO SOCIAL SERVICES CLIENTS,860.00,Revenue,14/04/2015,Social Care & Inclusion
WC55-0172,ADMIRAL SELF STORAGE LTD,Supplies & Services,"Equip,Furniture & Materials",60000-FURNITURE & EQUIPMENT,419.32,Revenue,24/04/2015,Resources
WC55-0173,ADMIRAL SELF STORAGE LTD,Supplies & Services,"Equip,Furniture & Materials",60000-FURNITURE & EQUIPMENT,"2,568.00",Revenue,09/04/2015,Childrens
WC55-0174,ADS ELECTRICAL & HIGHWAY SERVICES LTD,Supplies & Services,Other Supplies & Services,62515-MISCELLANEOUS SUPPLIES,285.00,Revenue,09/04/2015,Regeneration
WC55-0175,ADVANCE HEALTH CARE (UK) LTD,Employees,Agency,34305-AGENCY STAFF-EMPLOYEES,276.25,Revenue,01/04/2015,Social Care & Inclusion
WC55-0176,ADVANCE HEALTH CARE (UK) LTD,Employees,Agency,34305-AGENCY STAFF-EMPLOYEES,520.00,Revenue,14/04/2015,Social Care & Inclusion
WC55-0177,ADVANCE HEALTH CARE (UK) LTD,Employees,Agency,34305-AGENCY STAFF-EMPLOYEES,526.50,Revenue,21/04/2015,Social Care & Inclusion
WC55-0178,ADVANCE HEALTH CARE (UK) LTD,Employees,Agency,34305-AGENCY STAFF-EMPLOYEES,721.50,Revenue,14/04/2015,Social Care & Inclusion
WC55-0179,ADVANCE HEALTH CARE (UK) LTD,Employees,Agency,34305-AGENCY STAFF-EMPLOYEES,767.00,Revenue,16/04/2015,Social Care & Inclusion
WC55-0180,ADVANCE HEALTH CARE (UK) LTD,Employees,Agency,34305-AGENCY STAFF-EMPLOYEES,832.00,Revenue,16/04/2015,Social Care & Inclusion
WC55-0181,ADVANCE HEALTH CARE (UK) LTD,Employees,Agency,34305-AGENCY STAFF-EMPLOYEES,971.75,Revenue,21/04/2015,Social Care & Inclusion
WC55-0182,ADVANCE HEALTH CARE (UK) LTD,Third Party Payments,Private Contractor Fees,73372-DOMICILIARY CARE,"37,219.67",Revenue,27/04/2015,Social Care & Inclusion
WC55-0183,ADVANCE PHARMA LTD T/A PLECK PHARMACY,Third Party Payments,Joint Arrangements,71007-CONTRIBUTION TO PCT,291.84,Revenue,01/04/2015,Neighbourhood Services
WC55-0184,ADVANCE PHARMA LTD T/A PLECK PHARMACY,Third Party Payments,Joint Arrangements,71007-CONTRIBUTION TO PCT,305.45,Revenue,02/04/2015,Neighbourhood Services
WC55-0185,ADVANCED CONTRACTS (MIDLANDS) LTD,Premises,Premises-Repairs & Maintenance,"40000-REPAIRS,ALTERATIONS & MAINTENANCE-PREM",593.80,Revenue,02/04/2015,Regeneration
WC55-0186,ADVANCED CONTRACTS (MIDLANDS) LTD,Third Party Payments,Private Contractor Fees,73025-PROFESSIONAL SERVICES-PRIV CONTRACTOR & OTHER AGENCIES,750.00,Revenue,08/04/2015,Regeneration
WC55-0187,ADVANCED CONTRACTS (MIDLANDS) LTD,Third Party Payments,Private Contractor Fees,73025-PROFESSIONAL SERVICES-PRIV CONTRACTOR & OTHER AGENCIES,"1,110.00",Revenue,29/04/2015,Regeneration
WC55-0188,ADVENTURELAND DAY NURSERY,Employees,Other Staff Costs,32000-MISC FEES AND EXPENSES,396.00,Revenue,13/04/2015,Childrens
WC55-0189,ADVENTURELAND DAY NURSERY,Third Party Payments,Grants to Other Orgs,66505-OTHER-GRANTS TO OTHER ORGS,"11,098.00",Revenue,15/04/2015,Childrens
WC55-0190,ADVENTURELAND DAY NURSERY,Third Party Payments,Grants to Other Orgs,66505-OTHER-GRANTS TO OTHER ORGS,"13,349.70",Revenue,13/04/2015,Childrens
WC55-0191,ADVOCACY MATTERS LIMITED,Third Party Payments,Private Contractor Fees,70000-SOCIAL SERVICES-FEES TO VOLUNTARY BODIES,"22,560.75",Revenue,01/04/2015,Social Care & Inclusion
WC55-0192,AEBI SCHMIDT UK LIMITED,Supplies & Services,"Equip,Furniture & Materials",60500-GENERAL MATERIALS,721.02,Revenue,02/04/2015,Neighbourhood Services
WC55-0193,AEBI SCHMIDT UK LIMITED,Supplies & Services,"Equip,Furniture & Materials",60500-GENERAL MATERIALS,721.02,Revenue,13/04/2015,Neighbourhood Services
WC55-0194,AECOM INFRASTRUCTURE & ENVIRONMENT UK LIMITED,Capital,Capital,01001-OTHER CONSULTANTS FEES,559.34,Capital,13/04/2015,Regeneration
WC55-0195,AECOM INFRASTRUCTURE & ENVIRONMENT UK LIMITED,Capital,Capital,01001-OTHER CONSULTANTS FEES,"2,951.46",Capital,29/04/2015,Regeneration
WC55-0196,AECOM INFRASTRUCTURE & ENVIRONMENT UK LIMITED,Capital,Capital,01001-OTHER CONSULTANTS FEES,"29,600.00",Capital,23/04/2015,Neighbourhood Services
WC55-0197,AFTER ADOPTION,Transfer Payments,Transfer Payments,74009-ADOPTION ALLOWANCE,"8,450.00",Revenue,07/04/2015,Childrens
WC55-0198,AGE UK WALSALL,Transfer Payments,Transfer Payments,76423-DIRECT PAYMENTS SUPPORT,"8,050.00",Revenue,27/04/2015,Social Care & Inclusion
WC55-0199,AGGORA TECHNICAL LTD,Supplies & Services,Services,63000-PROFESSIONAL FEES AND SERVICES,"1,065.00",Revenue,21/04/2015,Neighbourhood Services
WC55-0200,AGINCARE UK LTD,Third Party Payments,Private Contractor Fees,73372-DOMICILIARY CARE,308.00,Revenue,08/04/2015,Social Care & Inclusion
WC55-0201,AGINCARE UK LTD,Third Party Payments,Private Contractor Fees,73372-DOMICILIARY CARE,308.00,Revenue,08/04/2015,Social Care & Inclusion
WC55-0202,AGINCARE UK LTD,Third Party Payments,Private Contractor Fees,73372-DOMICILIARY CARE,"1,713.60",Revenue,08/04/2015,Social Care & Inclusion
WC55-0203,AGINCARE UK LTD,Third Party Payments,Private Contractor Fees,73372-DOMICILIARY CARE,"1,713.60",Revenue,08/04/2015,Social Care & Inclusion
WC55-0204,AGINCARE UK LTD,Third Party Payments,Private Contractor Fees,73372-DOMICILIARY CARE,"2,036.88",Revenue,08/04/2015,Social Care & Inclusion
WC55-0205,AGINCARE UK LTD,Third Party Payments,Private Contractor Fees,73372-DOMICILIARY CARE,"2,036.88",Revenue,08/04/2015,Social Care & Inclusion
WC55-0206,AIM AWARDS,Supplies & Services,Other Supplies & Services,63013-EXAMINATIONS-SERVICES,"1,330.00",Revenue,23/04/2015,Neighbourhood Services
WC55-0207,REDACTED,Transfer Payments,Transfer Payments,76422-DIRECT PAYMENTS TO SOCIAL SERVICES CLIENTS,"1,882.00",Revenue,14/04/2015,Social Care & Inclusion
WC55-0208,REDACTED,Transfer Payments,Transfer Payments,76422-DIRECT PAYMENTS TO SOCIAL SERVICES CLIENTS,936.52,Revenue,14/04/2015,Social Care & Inclusion
WC55-0209,ALANA ECOLOGY LTD,Supplies & Services,Other Supplies & Services,62515-MISCELLANEOUS SUPPLIES,6.25,Revenue,29/04/2015,Neighbourhood Services
WC55-0210,ALANA ECOLOGY LTD,Third Party Payments,Private Contractor Fees,73019-PSE'S-PRIV CONTRACTOR FEES,599.39,Revenue,29/04/2015,Neighbourhood Services
WC55-0211,REDACTED,Transfer Payments,Transfer Payments,76422-DIRECT PAYMENTS TO SOCIAL SERVICES CLIENTS,667.80,Revenue,14/04/2015,Social Care & Inclusion
WC55-0212,ALBERT PRITCHARD INFANT AND WOOD GREEN JUNIOR FEDERATED SCHOOLS,Transfer Payments,Transfer Payments,77300-ISB-FORMULA ALLOCATION,600.00,Revenue,08/04/2015,Childrens
WC55-0213,ALBERT PRITCHARD INFANT AND WOOD GREEN JUNIOR FEDERATED SCHOOLS,Transfer Payments,Transfer Payments,77300-ISB-FORMULA ALLOCATION,600.00,Revenue,08/04/2015,Childrens
WC55-0214,ALDER COPPICE PRIMARY SCHOOL,Transfer Payments,Transfer Payments,77300-ISB-FORMULA ALLOCATION,600.00,Revenue,08/04/2015,Childrens
WC55-0215,ALDERGROVE MANOR CARE HOME,Third Party Payments,Private Contractor Fees,73373-RESIDENTIAL & NURSING CARE PLACEMENTS,446.12,Revenue,15/04/2015,Social Care & Inclusion
WC55-0216,ALDERGROVE MANOR CARE HOME,Third Party Payments,Private Contractor Fees,73373-RESIDENTIAL & NURSING CARE PLACEMENTS,"1,338.36",Revenue,15/04/2015,Social Care & Inclusion
WC55-0217,ALDRIDGE & BARONS LIMITED,Transport,Hire,52001-HIRE OF VEHICLES,300.00,Revenue,27/04/2015,Social Care & Inclusion
WC55-0218,ALDRIDGE & BARONS LIMITED,Transport,Hire,52001-HIRE OF VEHICLES,420.00,Revenue,27/04/2015,Social Care & Inclusion
WC55-0219,ALDRIDGE & BARONS LIMITED,Transport,Hire,52000-WITH DRIVER-HIRE OF VEHICLES,725.00,Revenue,15/04/2015,Childrens
WC55-0220,ALDRIDGE & BARONS LIMITED,Transport,Hire,52000-WITH DRIVER-HIRE OF VEHICLES,810.00,Revenue,15/04/2015,Childrens
WC55-0221,ALDRIDGE & BARONS LIMITED,Transport,Hire,52000-WITH DRIVER-HIRE OF VEHICLES,810.24,Revenue,15/04/2015,Childrens
WC55-0222,ALDRIDGE & BARONS LIMITED,Transport,Hire,52001-HIRE OF VEHICLES,967.78,Revenue,27/04/2015,Social Care & Inclusion
WC55-0223,ALDRIDGE & BARONS LIMITED,Transport,Hire,52001-HIRE OF VEHICLES,"1,113.20",Revenue,27/04/2015,Social Care & Inclusion
WC55-0224,ALDRIDGE & BARONS LIMITED,Transport,Hire,52000-WITH DRIVER-HIRE OF VEHICLES,"1,237.44",Revenue,15/04/2015,Childrens
WC55-0225,ALDRIDGE & BARONS LIMITED,Transport,Hire,52001-HIRE OF VEHICLES,"1,278.66",Revenue,08/04/2015,Social Care & Inclusion
WC55-0226,ALDRIDGE & BARONS LIMITED,Transport,Hire,52000-WITH DRIVER-HIRE OF VEHICLES,"1,289.00",Revenue,15/04/2015,Childrens
WC55-0227,ALDRIDGE & BARONS LIMITED,Transport,Hire,52000-WITH DRIVER-HIRE OF VEHICLES,"1,387.20",Revenue,15/04/2015,Childrens
WC55-0228,ALDRIDGE & BARONS LIMITED,Transport,Hire,52000-WITH DRIVER-HIRE OF VEHICLES,"1,546.80",Revenue,02/04/2015,Childrens
WC55-0229,ALDRIDGE & BARONS LIMITED,Transport,Hire,52000-WITH DRIVER-HIRE OF VEHICLES,"1,650.00",Revenue,15/04/2015,Childrens
WC55-0230,ALDRIDGE & BARONS LIMITED,Transport,Hire,52000-WITH DRIVER-HIRE OF VEHICLES,"1,729.62",Revenue,21/04/2015,Childrens
WC55-0231,ALDRIDGE & BARONS LIMITED,Transport,Hire,52000-WITH DRIVER-HIRE OF VEHICLES,"1,757.50",Revenue,15/04/2015,Childrens
WC55-0232,ALDRIDGE & BARONS LIMITED,Transport,Hire,52000-WITH DRIVER-HIRE OF VEHICLES,"1,867.20",Revenue,15/04/2015,Childrens
WC55-0233,ALDRIDGE & BARONS LIMITED,Transport,Hire,52000-WITH DRIVER-HIRE OF VEHICLES,"1,945.00",Revenue,15/04/2015,Childrens
WC55-0234,ALDRIDGE & BARONS LIMITED,Transport,Hire,52001-HIRE OF VEHICLES,"2,037.50",Revenue,27/04/2015,Social Care & Inclusion
WC55-0235,ALDRIDGE & BARONS LIMITED,Transport,Hire,52000-WITH DRIVER-HIRE OF VEHICLES,"2,100.00",Revenue,15/04/2015,Childrens
WC55-0236,ALDRIDGE & BARONS LIMITED,Transport,Hire,52000-WITH DRIVER-HIRE OF VEHICLES,"2,160.00",Revenue,15/04/2015,Childrens
WC55-0237,ALDRIDGE & BARONS LIMITED,Transport,Hire,52000-WITH DRIVER-HIRE OF VEHICLES,"2,400.00",Revenue,15/04/2015,Childrens
WC55-0238,ALDRIDGE & BARONS LIMITED,Transport,Hire,52000-WITH DRIVER-HIRE OF VEHICLES,"2,900.00",Revenue,15/04/2015,Childrens
WC55-0239,ALDRIDGE & BARONS LIMITED,Transport,Hire,52000-WITH DRIVER-HIRE OF VEHICLES,"2,916.00",Revenue,15/04/2015,Childrens
WC55-0240,ALDRIDGE & BARONS LIMITED,Transport,Hire,52000-WITH DRIVER-HIRE OF VEHICLES,"3,070.00",Revenue,15/04/2015,Childrens
WC55-0241,ALDRIDGE & BARONS LIMITED,Transport,Hire,52001-HIRE OF VEHICLES,"3,252.80",Revenue,27/04/2015,Social Care & Inclusion
WC55-0242,ALDRIDGE SCHOOL A SCIENCE COLLEGE.,Transfer Payments,Transfer Payments,77300-ISB-FORMULA ALLOCATION,"2,100.00",Revenue,08/04/2015,Childrens
WC55-0243,ALDRIDGE SCHOOL A SCIENCE COLLEGE.,Transfer Payments,Transfer Payments,77300-ISB-FORMULA ALLOCATION,"2,100.00",Revenue,14/04/2015,Childrens
WC55-0244,ALDRIDGE SCHOOL A SCIENCE COLLEGE.,Transfer Payments,Transfer Payments,77300-ISB-FORMULA ALLOCATION,"4,500.00",Revenue,14/04/2015,Childrens
WC55-0245,REDACTED,Transfer Payments,Transfer Payments,76422-DIRECT PAYMENTS TO SOCIAL SERVICES CLIENTS,"1,204.00",Revenue,14/04/2015,Social Care & Inclusion
WC55-0246,REDACTED,Supplies & Services,Services,63000-PROFESSIONAL FEES AND SERVICES,270.00,Revenue,02/04/2015,Neighbourhood Services
WC55-0247,REDACTED,Supplies & Services,Services,63000-PROFESSIONAL FEES AND SERVICES,270.00,Revenue,17/04/2015,Neighbourhood Services
WC55-0248,REDACTED,Supplies & Services,Services,63000-PROFESSIONAL FEES AND SERVICES,351.00,Revenue,17/04/2015,Neighbourhood Services
WC55-0249,REDACTED,Transfer Payments,Transfer Payments,76422-DIRECT PAYMENTS TO SOCIAL SERVICES CLIENTS,582.67,Revenue,14/04/2015,Childrens
WC55-0250,REDACTED,Transfer Payments,Transfer Payments,76422-DIRECT PAYMENTS TO SOCIAL SERVICES CLIENTS,854.00,Revenue,14/04/2015,Social Care & Inclusion
WC55-0251,REDACTED,Transfer Payments,Transfer Payments,76422-DIRECT PAYMENTS TO SOCIAL SERVICES CLIENTS,328.80,Revenue,14/04/2015,Social Care & Inclusion
WC55-0252,REDACTED,Third Party Payments,Private Contractor Fees,74006-HOLIDAY/CHRISTMAS ALLOWANCE-FOSTER CARERS-OTH AGENCY PROVISION,985.76,Revenue,27/04/2015,Childrens
WC55-0253,REDACTED,Supplies & Services,Other Supplies & Services,62515-MISCELLANEOUS SUPPLIES,"1,445.32",Revenue,27/04/2015,Childrens
WC55-0254,REDACTED,Third Party Payments,Grants to Other Orgs,66505-OTHER-GRANTS TO OTHER ORGS,667.49,Revenue,13/04/2015,Childrens
WC55-0255,REDACTED,Third Party Payments,Private Contractor Fees,74006-HOLIDAY/CHRISTMAS ALLOWANCE-FOSTER CARERS-OTH AGENCY PROVISION,549.69,Revenue,13/04/2015,Childrens
WC55-0256,ALLSORTS OFFICE SUPPLIES LTD,Supplies & Services,"Equip,Furniture & Materials",60000-FURNITURE & EQUIPMENT,730.30,Revenue,08/04/2015,Neighbourhood Services
WC55-0257,ALLSORTS OFFICE SUPPLIES LTD,Supplies & Services,Communications & Computing,63800-COMPUTER EQUIPMENT AND SUPPLIES,"2,240.00",Revenue,02/04/2015,Resources
WC55-0258,ALMA COURT,Third Party Payments,Private Contractor Fees,73373-RESIDENTIAL & NURSING CARE PLACEMENTS,"5,978.57",Revenue,15/04/2015,Social Care & Inclusion
WC55-0259,ALMA COURT,Third Party Payments,Private Contractor Fees,73373-RESIDENTIAL & NURSING CARE PLACEMENTS,"5,978.57",Revenue,15/04/2015,Social Care & Inclusion
WC55-0260,ALMOZENE NURSERY & CHILDRENS CENTRE,Third Party Payments,Grants to Other Orgs,66505-OTHER-GRANTS TO OTHER ORGS,"8,677.31",Revenue,13/04/2015,Childrens
WC55-0261,ALMOZENE NURSERY & CHILDRENS CENTRE,Third Party Payments,Grants to Other Orgs,66505-OTHER-GRANTS TO OTHER ORGS,"10,451.00",Revenue,15/04/2015,Childrens
WC55-0262,ALPHA HEALTH CARE LTD,Third Party Payments,Private Contractor Fees,73373-RESIDENTIAL & NURSING CARE PLACEMENTS,657.48,Revenue,21/04/2015,Social Care & Inclusion
WC55-0263,ALPHA HEALTH CARE LTD,Third Party Payments,Private Contractor Fees,73373-RESIDENTIAL & NURSING CARE PLACEMENTS,712.27,Revenue,15/04/2015,Social Care & Inclusion
WC55-0264,ALPHA HEALTH CARE LTD,Third Party Payments,Private Contractor Fees,73373-RESIDENTIAL & NURSING CARE PLACEMENTS,"1,375.60",Revenue,21/04/2015,Social Care & Inclusion
WC55-0265,ALPHA HEALTH CARE LTD,Third Party Payments,Private Contractor Fees,73373-RESIDENTIAL & NURSING CARE PLACEMENTS,"1,382.00",Revenue,21/04/2015,Social Care & Inclusion
WC55-0266,ALPHA HEALTH CARE LTD,Third Party Payments,Private Contractor Fees,73373-RESIDENTIAL & NURSING CARE PLACEMENTS,"1,460.40",Revenue,21/04/2015,Social Care & Inclusion
WC55-0267,ALPHA HEALTH CARE LTD,Third Party Payments,Private Contractor Fees,73373-RESIDENTIAL & NURSING CARE PLACEMENTS,"1,476.84",Revenue,21/04/2015,Social Care & Inclusion
WC55-0268,ALPHA HEALTH CARE LTD,Third Party Payments,Private Contractor Fees,73373-RESIDENTIAL & NURSING CARE PLACEMENTS,"1,476.84",Revenue,21/04/2015,Social Care & Inclusion
WC55-0269,ALPHA HEALTH CARE LTD,Third Party Payments,Private Contractor Fees,73373-RESIDENTIAL & NURSING CARE PLACEMENTS,"1,476.84",Revenue,21/04/2015,Social Care & Inclusion
WC55-0270,ALPHA HEALTH CARE LTD,Third Party Payments,Private Contractor Fees,73373-RESIDENTIAL & NURSING CARE PLACEMENTS,"1,494.00",Revenue,21/04/2015,Social Care & Inclusion
WC55-0271,ALPHA HEALTH CARE LTD,Third Party Payments,Private Contractor Fees,73373-RESIDENTIAL & NURSING CARE PLACEMENTS,"1,494.00",Revenue,21/04/2015,Social Care & Inclusion
WC55-0272,ALPHA HEALTH CARE LTD,Third Party Payments,Private Contractor Fees,73373-RESIDENTIAL & NURSING CARE PLACEMENTS,"1,494.00",Revenue,21/04/2015,Social Care & Inclusion
WC55-0273,ALPHA HEALTH CARE LTD,Third Party Payments,Private Contractor Fees,73373-RESIDENTIAL & NURSING CARE PLACEMENTS,"1,494.00",Revenue,21/04/2015,Social Care & Inclusion
WC55-0274,ALPHA HEALTH CARE LTD,Third Party Payments,Private Contractor Fees,73373-RESIDENTIAL & NURSING CARE PLACEMENTS,"1,534.12",Revenue,15/04/2015,Social Care & Inclusion
WC55-0275,ALPHA HEALTH CARE LTD,Third Party Payments,Private Contractor Fees,73373-RESIDENTIAL & NURSING CARE PLACEMENTS,"1,534.12",Revenue,21/04/2015,Social Care & Inclusion
WC55-0276,ALPHA HEALTH CARE LTD,Third Party Payments,Private Contractor Fees,73373-RESIDENTIAL & NURSING CARE PLACEMENTS,"1,534.12",Revenue,21/04/2015,Social Care & Inclusion
WC55-0277,ALPHA HEALTH CARE LTD,Third Party Payments,Private Contractor Fees,73373-RESIDENTIAL & NURSING CARE PLACEMENTS,"1,534.12",Revenue,21/04/2015,Social Care & Inclusion
WC55-0278,ALPHA HEALTH CARE LTD,Third Party Payments,Private Contractor Fees,73373-RESIDENTIAL & NURSING CARE PLACEMENTS,"1,534.12",Revenue,21/04/2015,Social Care & Inclusion
WC55-0279,ALPHA HEALTH CARE LTD,Third Party Payments,Private Contractor Fees,73373-RESIDENTIAL & NURSING CARE PLACEMENTS,"1,534.28",Revenue,21/04/2015,Social Care & Inclusion
WC55-0280,ALPHA HEALTH CARE LTD,Third Party Payments,Private Contractor Fees,73373-RESIDENTIAL & NURSING CARE PLACEMENTS,"1,933.16",Revenue,16/04/2015,Social Care & Inclusion
WC55-0281,ALPHA HEALTH CARE LTD,Third Party Payments,Private Contractor Fees,73373-RESIDENTIAL & NURSING CARE PLACEMENTS,"1,937.56",Revenue,21/04/2015,Social Care & Inclusion
WC55-0282,ALPHA HEALTH CARE LTD,Third Party Payments,Private Contractor Fees,73373-RESIDENTIAL & NURSING CARE PLACEMENTS,"2,071.24",Revenue,16/04/2015,Social Care & Inclusion
WC55-0283,ALPHA HEALTH CARE LTD,Third Party Payments,Private Contractor Fees,73373-RESIDENTIAL & NURSING CARE PLACEMENTS,"2,140.28",Revenue,16/04/2015,Social Care & Inclusion
WC55-0284,ALPHA HEALTH CARE LTD,Third Party Payments,Private Contractor Fees,73373-RESIDENTIAL & NURSING CARE PLACEMENTS,"2,140.28",Revenue,16/04/2015,Social Care & Inclusion
WC55-0285,ALPHA HEALTH CARE LTD,Third Party Payments,Private Contractor Fees,73373-RESIDENTIAL & NURSING CARE PLACEMENTS,"4,748.78",Revenue,15/04/2015,Social Care & Inclusion
WC55-0286,ALPHA HEALTH CARE LTD,Third Party Payments,Private Contractor Fees,73373-RESIDENTIAL & NURSING CARE PLACEMENTS,"5,300.00",Revenue,15/04/2015,Social Care & Inclusion
WC55-0287,ALPHA HEALTH CARE LTD,Third Party Payments,Private Contractor Fees,73373-RESIDENTIAL & NURSING CARE PLACEMENTS,"5,300.00",Revenue,15/04/2015,Social Care & Inclusion
WC55-0288,ALPHA HEALTH CARE LTD,Third Party Payments,Private Contractor Fees,73373-RESIDENTIAL & NURSING CARE PLACEMENTS,"5,300.00",Revenue,21/04/2015,Social Care & Inclusion
WC55-0289,ALPHA HEALTH CARE LTD,Third Party Payments,Private Contractor Fees,73373-RESIDENTIAL & NURSING CARE PLACEMENTS,"5,489.29",Revenue,15/04/2015,Social Care & Inclusion
WC55-0290,ALPHA HEALTH CARE LTD,Third Party Payments,Private Contractor Fees,73373-RESIDENTIAL & NURSING CARE PLACEMENTS,"5,600.00",Revenue,21/04/2015,Social Care & Inclusion
WC55-0291,ALPHA HEALTH CARE LTD,Third Party Payments,Private Contractor Fees,73373-RESIDENTIAL & NURSING CARE PLACEMENTS,"9,464.29",Revenue,15/04/2015,Social Care & Inclusion
WC55-0292,ALTODIGITAL NETWORKS LTD,Supplies & Services,"Equip,Furniture & Materials",60009-LEASING/HIRE/RENTAL-EQUIPMENT,260.37,Revenue,16/04/2015,Childrens
WC55-0293,ALTODIGITAL NETWORKS LTD,Supplies & Services,"Equip,Furniture & Materials",60009-LEASING/HIRE/RENTAL-EQUIPMENT,675.94,Revenue,08/04/2015,Resources
WC55-0294,ALUMWELL PLECK SURESTART CHILDRENS CENTRE,Third Party Payments,Grants to Other Orgs,66505-OTHER-GRANTS TO OTHER ORGS,"-3,943.30",Revenue,07/04/2015,Childrens
WC55-0295,ALUMWELLIES NURSERY,Third Party Payments,Grants to Other Orgs,66505-OTHER-GRANTS TO OTHER ORGS,"15,653.00",Revenue,15/04/2015,Childrens
WC55-0296,ALUMWELLIES NURSERY,Third Party Payments,Grants to Other Orgs,66505-OTHER-GRANTS TO OTHER ORGS,"17,354.61",Revenue,13/04/2015,Childrens
WC55-0297,REDACTED,Third Party Payments,Private Contractor Fees,74006-HOLIDAY/CHRISTMAS ALLOWANCE-FOSTER CARERS-OTH AGENCY PROVISION,"1,498.59",Revenue,13/04/2015,Childrens
WC55-0298,REDACTED,Supplies & Services,Other Supplies & Services,62515-MISCELLANEOUS SUPPLIES,354.48,Revenue,27/04/2015,Childrens
WC55-0299,REDACTED,Third Party Payments,Private Contractor Fees,74006-HOLIDAY/CHRISTMAS ALLOWANCE-FOSTER CARERS-OTH AGENCY PROVISION,571.44,Revenue,27/04/2015,Childrens
WC55-0300,REDACTED,Transfer Payments,Transfer Payments,76422-DIRECT PAYMENTS TO SOCIAL SERVICES CLIENTS,654.51,Revenue,14/04/2015,Social Care & Inclusion
WC55-0301,REDACTED,Transfer Payments,Transfer Payments,76422-DIRECT PAYMENTS TO SOCIAL SERVICES CLIENTS,312.92,Revenue,14/04/2015,Childrens
WC55-0302,AMEY LG LIMITED,Capital,Capital,01006-SITE WORKS MAIN CONTRACTORS,"-1,520.30",Capital,16/04/2015,Neighbourhood Services
WC55-0303,AMEY LG LIMITED,Capital,Capital,01001-OTHER CONSULTANTS FEES,363.73,Capital,01/04/2015,Regeneration
WC55-0304,AMEY LG LIMITED,Third Party Payments,Private Contractor Fees,73025-PROFESSIONAL SERVICES-PRIV CONTRACTOR & OTHER AGENCIES,437.54,Revenue,08/04/2015,Neighbourhood Services
WC55-0305,AMEY LG LIMITED,Third Party Payments,Private Contractor Fees,73025-PROFESSIONAL SERVICES-PRIV CONTRACTOR & OTHER AGENCIES,448.37,Revenue,28/04/2015,Neighbourhood Services
WC55-0306,AMEY LG LIMITED,Supplies & Services,"Equip,Furniture & Materials",60008-MAINTENANCE-FURNITURE & EQUIPMENT,488.10,Revenue,27/04/2015,Social Care & Inclusion
WC55-0307,AMEY LG LIMITED,Capital,Capital,01006-SITE WORKS MAIN CONTRACTORS,661.63,Capital,14/04/2015,Regeneration
WC55-0308,AMEY LG LIMITED,Capital,Capital,01006-SITE WORKS MAIN CONTRACTORS,"1,053.74",Capital,14/04/2015,Regeneration
WC55-0309,AMEY LG LIMITED,Capital,Capital,01009-SITE WORKS - OTHER CONTRACTORS,"1,387.52",Capital,08/04/2015,Regeneration
WC55-0310,AMEY LG LIMITED,Capital,Capital,01006-SITE WORKS MAIN CONTRACTORS,"1,414.61",Capital,14/04/2015,Regeneration
WC55-0311,AMEY LG LIMITED,Capital,Capital,01006-SITE WORKS MAIN CONTRACTORS,"1,502.18",Capital,16/04/2015,Neighbourhood Services
WC55-0312,AMEY LG LIMITED,Capital,Capital,01006-SITE WORKS MAIN CONTRACTORS,"1,520.30",Capital,07/04/2015,Neighbourhood Services
WC55-0313,AMEY LG LIMITED,Capital,Capital,01009-SITE WORKS - OTHER CONTRACTORS,"3,131.40",Capital,08/04/2015,Regeneration
WC55-0314,AMEY LG LIMITED,Capital,Capital,01009-SITE WORKS - OTHER CONTRACTORS,"3,664.41",Capital,08/04/2015,Regeneration
WC55-0315,AMEY LG LIMITED,Capital,Capital,01006-SITE WORKS MAIN CONTRACTORS,"3,740.26",Capital,14/04/2015,Regeneration
WC55-0316,AMEY LG LIMITED,Third Party Payments,Private Contractor Fees,73025-PROFESSIONAL SERVICES-PRIV CONTRACTOR & OTHER AGENCIES,"6,327.22",Revenue,23/04/2015,Neighbourhood Services
WC55-0317,AMEY LG LIMITED,Capital,Capital,01032-ELECTRICAL PAYMENTS / INSTALLATIONS,"7,645.93",Capital,02/04/2015,Regeneration
WC55-0318,AMEY LG LIMITED,Capital,Capital,01032-ELECTRICAL PAYMENTS / INSTALLATIONS,"8,073.67",Capital,02/04/2015,Regeneration
WC55-0319,AMEY LG LIMITED,Third Party Payments,Private Contractor Fees,73025-PROFESSIONAL SERVICES-PRIV CONTRACTOR & OTHER AGENCIES,"9,838.73",Revenue,28/04/2015,Neighbourhood Services
WC55-0320,AMEY LG LIMITED,Capital,Capital,01009-SITE WORKS - OTHER CONTRACTORS,"13,164.10",Capital,08/04/2015,Regeneration
WC55-0321,AMEY LG LIMITED,Supplies & Services,Other Supplies & Services,62515-MISCELLANEOUS SUPPLIES,"14,972.40",Revenue,08/04/2015,Neighbourhood Services
WC55-0322,AMEY LG LIMITED,Supplies & Services,Other Supplies & Services,62515-MISCELLANEOUS SUPPLIES,"21,709.69",Revenue,10/04/2015,Neighbourhood Services
WC55-0323,AMG NURSING CARE SERVICES,Supplies & Services,Services,63000-PROFESSIONAL FEES AND SERVICES,"1,088.88",Revenue,08/04/2015,Childrens
WC55-0324,AMG NURSING CARE SERVICES,Supplies & Services,Services,63000-PROFESSIONAL FEES AND SERVICES,"1,296.36",Revenue,02/04/2015,Childrens
WC55-0325,AMG NURSING CARE SERVICES,Supplies & Services,Services,63000-PROFESSIONAL FEES AND SERVICES,"1,814.80",Revenue,16/04/2015,Childrens
WC55-0326,AMG NURSING CARE SERVICES,Supplies & Services,Services,63000-PROFESSIONAL FEES AND SERVICES,"2,229.76",Revenue,14/04/2015,Childrens
WC55-0327,AMG NURSING CARE SERVICES,Third Party Payments,Private Contractor Fees,73372-DOMICILIARY CARE,"6,010.71",Revenue,02/04/2015,Social Care & Inclusion
WC55-0328,AMG NURSING CARE SERVICES,Third Party Payments,Private Contractor Fees,73372-DOMICILIARY CARE,"7,319.78",Revenue,29/04/2015,Social Care & Inclusion
WC55-0329,AMX SOLUTIONS LIMITED,Supplies & Services,Communications & Computing,63800-COMPUTER EQUIPMENT AND SUPPLIES,999.80,Revenue,23/04/2015,Neighbourhood Services
WC55-0330,REDACTED,Transfer Payments,Transfer Payments,76422-DIRECT PAYMENTS TO SOCIAL SERVICES CLIENTS,891.24,Revenue,14/04/2015,Social Care & Inclusion
WC55-0331,REDACTED,Third Party Payments,Private Contractor Fees,74006-HOLIDAY/CHRISTMAS ALLOWANCE-FOSTER CARERS-OTH AGENCY PROVISION,422.67,Revenue,13/04/2015,Childrens
WC55-0332,REDACTED,Transfer Payments,Transfer Payments,76422-DIRECT PAYMENTS TO SOCIAL SERVICES CLIENTS,544.00,Revenue,14/04/2015,Social Care & Inclusion
WC55-0333,REDACTED,Third Party Payments,Private Contractor Fees,74006-HOLIDAY/CHRISTMAS ALLOWANCE-FOSTER CARERS-OTH AGENCY PROVISION,"1,301.84",Revenue,27/04/2015,Childrens
WC55-0334,REDACTED,Supplies & Services,Other Supplies & Services,62515-MISCELLANEOUS SUPPLIES,"1,701.36",Revenue,27/04/2015,Childrens
WC55-0335,REDACTED,Transfer Payments,Transfer Payments,76422-DIRECT PAYMENTS TO SOCIAL SERVICES CLIENTS,378.00,Revenue,14/04/2015,Social Care & Inclusion
WC55-0336,REDACTED,Supplies & Services,Other Supplies & Services,62515-MISCELLANEOUS SUPPLIES,906.76,Revenue,27/04/2015,Childrens
WC55-0337,REDACTED,Third Party Payments,Private Contractor Fees,74006-HOLIDAY/CHRISTMAS ALLOWANCE-FOSTER CARERS-OTH AGENCY PROVISION,985.76,Revenue,27/04/2015,Childrens
WC55-0338,ANDREWS ELECTRICAL LTD,Capital,Capital,01006-SITE WORKS MAIN CONTRACTORS,"23,427.00",Capital,29/04/2015,Childrens
WC55-0339,ANDREWS ELECTRICAL LTD,Capital,Capital,01006-SITE WORKS MAIN CONTRACTORS,"43,073.85",Capital,08/04/2015,Childrens
WC55-0340,ANGEL COURT RESIDENTIAL CARE HOME,Third Party Payments,Private Contractor Fees,73373-RESIDENTIAL & NURSING CARE PLACEMENTS,"1,564.72",Revenue,21/04/2015,Social Care & Inclusion
WC55-0341,ANGEL COURT RESIDENTIAL CARE HOME,Third Party Payments,Private Contractor Fees,73373-RESIDENTIAL & NURSING CARE PLACEMENTS,"1,616.87",Revenue,21/04/2015,Social Care & Inclusion
WC55-0342,ANGEL COURT RESIDENTIAL CARE HOME,Third Party Payments,Private Contractor Fees,73373-RESIDENTIAL & NURSING CARE PLACEMENTS,"1,643.70",Revenue,21/04/2015,Social Care & Inclusion
WC55-0343,ANGEL COURT RESIDENTIAL CARE HOME,Third Party Payments,Private Contractor Fees,73373-RESIDENTIAL & NURSING CARE PLACEMENTS,"1,698.49",Revenue,21/04/2015,Social Care & Inclusion
WC55-0344,REDACTED,Third Party Payments,Private Contractor Fees,74006-HOLIDAY/CHRISTMAS ALLOWANCE-FOSTER CARERS-OTH AGENCY PROVISION,"2,267.12",Revenue,13/04/2015,Childrens
WC55-0345,ANGLIA STAIRLIFTS LTD,Capital,Capital,01045-PRIVATE GRANTS,"2,495.00",Capital,16/04/2015,Resources
WC55-0346,ANGLIA STAIRLIFTS LTD,Capital,Capital,01045-PRIVATE GRANTS,"3,695.00",Capital,21/04/2015,Resources
WC55-0347,ANGLIA STAIRLIFTS LTD,Capital,Capital,01045-PRIVATE GRANTS,"3,785.00",Capital,28/04/2015,Resources
WC55-0348,ANGLIA STAIRLIFTS LTD,Capital,Capital,01045-PRIVATE GRANTS,"4,015.00",Capital,16/04/2015,Resources
WC55-0349,ANGLIA STAIRLIFTS LTD,Capital,Capital,01045-PRIVATE GRANTS,"4,385.00",Capital,02/04/2015,Resources
WC55-0350,ANGLIA STAIRLIFTS LTD,Capital,Capital,01045-PRIVATE GRANTS,"4,745.00",Capital,21/04/2015,Resources
WC55-0351,ANGLIA STAIRLIFTS LTD,Capital,Capital,01045-PRIVATE GRANTS,"4,815.00",Capital,02/04/2015,Resources
WC55-0352,REDACTED,Supplies & Services,Other Supplies & Services,62515-MISCELLANEOUS SUPPLIES,925.00,Revenue,27/04/2015,Childrens
WC55-0353,REDACTED,Third Party Payments,Private Contractor Fees,74006-HOLIDAY/CHRISTMAS ALLOWANCE-FOSTER CARERS-OTH AGENCY PROVISION,"1,461.24",Revenue,27/04/2015,Childrens
WC55-0354,ANN ARBOR PUBLISHERS LTD,Supplies & Services,"Equip,Furniture & Materials",60501-LIBRARY BOOKS,365.00,Revenue,09/04/2015,Childrens
WC55-0355,REDACTED,Transfer Payments,Transfer Payments,76422-DIRECT PAYMENTS TO SOCIAL SERVICES CLIENTS,318.00,Revenue,14/04/2015,Social Care & Inclusion
WC55-0356,REDACTED,Third Party Payments,Private Contractor Fees,73374-SUPPORTED & OTHER ACCOMMODATION,"1,125.47",Revenue,14/04/2015,Social Care & Inclusion
WC55-0357,ANSON COURT RESIDENTIAL HOME,Third Party Payments,Private Contractor Fees,73373-RESIDENTIAL & NURSING CARE PLACEMENTS,"1,532.52",Revenue,15/04/2015,Social Care & Inclusion
WC55-0358,ANSON COURT RESIDENTIAL HOME,Third Party Payments,Private Contractor Fees,73373-RESIDENTIAL & NURSING CARE PLACEMENTS,"1,534.12",Revenue,15/04/2015,Social Care & Inclusion
WC55-0359,ANSON COURT RESIDENTIAL HOME,Third Party Payments,Private Contractor Fees,73373-RESIDENTIAL & NURSING CARE PLACEMENTS,"1,534.12",Revenue,15/04/2015,Social Care & Inclusion
WC55-0360,ANSON COURT RESIDENTIAL HOME,Third Party Payments,Private Contractor Fees,73373-RESIDENTIAL & NURSING CARE PLACEMENTS,"1,534.12",Revenue,15/04/2015,Social Care & Inclusion
WC55-0361,ANSON COURT RESIDENTIAL HOME,Third Party Payments,Private Contractor Fees,73373-RESIDENTIAL & NURSING CARE PLACEMENTS,"1,534.12",Revenue,15/04/2015,Social Care & Inclusion
WC55-0362,ANSON COURT RESIDENTIAL HOME,Third Party Payments,Private Contractor Fees,73373-RESIDENTIAL & NURSING CARE PLACEMENTS,"1,534.12",Revenue,15/04/2015,Social Care & Inclusion
WC55-0363,ANSON COURT RESIDENTIAL HOME,Third Party Payments,Private Contractor Fees,73373-RESIDENTIAL & NURSING CARE PLACEMENTS,"1,534.12",Revenue,15/04/2015,Social Care & Inclusion
WC55-0364,ANSON COURT RESIDENTIAL HOME,Third Party Payments,Private Contractor Fees,73373-RESIDENTIAL & NURSING CARE PLACEMENTS,"1,534.12",Revenue,15/04/2015,Social Care & Inclusion
WC55-0365,ANSON COURT RESIDENTIAL HOME,Third Party Payments,Private Contractor Fees,73373-RESIDENTIAL & NURSING CARE PLACEMENTS,"1,534.12",Revenue,15/04/2015,Social Care & Inclusion
WC55-0366,ANSON COURT RESIDENTIAL HOME,Third Party Payments,Private Contractor Fees,73373-RESIDENTIAL & NURSING CARE PLACEMENTS,"1,534.12",Revenue,15/04/2015,Social Care & Inclusion
WC55-0367,ANSON COURT RESIDENTIAL HOME,Third Party Payments,Private Contractor Fees,73373-RESIDENTIAL & NURSING CARE PLACEMENTS,"1,534.12",Revenue,15/04/2015,Social Care & Inclusion
WC55-0368,ANSON COURT RESIDENTIAL HOME,Third Party Payments,Private Contractor Fees,73373-RESIDENTIAL & NURSING CARE PLACEMENTS,"1,534.72",Revenue,15/04/2015,Social Care & Inclusion
WC55-0369,ANSON COURT RESIDENTIAL HOME,Third Party Payments,Private Contractor Fees,73373-RESIDENTIAL & NURSING CARE PLACEMENTS,"1,612.92",Revenue,15/04/2015,Social Care & Inclusion
WC55-0370,ANSON COURT RESIDENTIAL HOME,Third Party Payments,Private Contractor Fees,73373-RESIDENTIAL & NURSING CARE PLACEMENTS,"1,614.12",Revenue,15/04/2015,Social Care & Inclusion
WC55-0371,ANSON COURT RESIDENTIAL HOME,Third Party Payments,Private Contractor Fees,73373-RESIDENTIAL & NURSING CARE PLACEMENTS,"1,614.12",Revenue,15/04/2015,Social Care & Inclusion
WC55-0372,ANSON COURT RESIDENTIAL HOME,Third Party Payments,Private Contractor Fees,73373-RESIDENTIAL & NURSING CARE PLACEMENTS,"1,614.72",Revenue,15/04/2015,Social Care & Inclusion
WC55-0373,ANSON COURT RESIDENTIAL HOME,Third Party Payments,Private Contractor Fees,73373-RESIDENTIAL & NURSING CARE PLACEMENTS,"1,614.72",Revenue,15/04/2015,Social Care & Inclusion
WC55-0374,ANSON PRIMARY SCHOOL,Transfer Payments,Transfer Payments,77300-ISB-FORMULA ALLOCATION,300.00,Revenue,08/04/2015,Childrens
WC55-0375,REDACTED,Third Party Payments,Private Contractor Fees,74006-HOLIDAY/CHRISTMAS ALLOWANCE-FOSTER CARERS-OTH AGENCY PROVISION,"1,368.15",Revenue,13/04/2015,Childrens
WC55-0376,REDACTED,Third Party Payments,Private Contractor Fees,74006-HOLIDAY/CHRISTMAS ALLOWANCE-FOSTER CARERS-OTH AGENCY PROVISION,853.90,Revenue,13/04/2015,Childrens
WC55-0377,APCOA PARKING SERVICES (UK) LTD,Third Party Payments,Private Contractor Fees,73025-PROFESSIONAL SERVICES-PRIV CONTRACTOR & OTHER AGENCIES,"48,465.22",Revenue,22/04/2015,Neighbourhood Services
WC55-0378,APIC UK LTD,Capital,Capital,01006-SITE WORKS MAIN CONTRACTORS,881.00,Capital,29/04/2015,Childrens
WC55-0379,APIC UK LTD,Capital,Capital,01006-SITE WORKS MAIN CONTRACTORS,"1,000.00",Capital,29/04/2015,Childrens
WC55-0380,APNA HOUSE LTD,Third Party Payments,Private Contractor Fees,73373-RESIDENTIAL & NURSING CARE PLACEMENTS,"1,170.86",Revenue,15/04/2015,Social Care & Inclusion
WC55-0381,APNA HOUSE LTD,Third Party Payments,Private Contractor Fees,73373-RESIDENTIAL & NURSING CARE PLACEMENTS,"4,293.14",Revenue,15/04/2015,Social Care & Inclusion
WC55-0382,APNA HOUSE LTD,Third Party Payments,Private Contractor Fees,73373-RESIDENTIAL & NURSING CARE PLACEMENTS,"5,464.00",Revenue,15/04/2015,Social Care & Inclusion
WC55-0383,APNA HOUSE LTD,Third Party Payments,Private Contractor Fees,73373-RESIDENTIAL & NURSING CARE PLACEMENTS,"5,464.00",Revenue,15/04/2015,Social Care & Inclusion
WC55-0384,APNA HOUSE LTD,Third Party Payments,Private Contractor Fees,73373-RESIDENTIAL & NURSING CARE PLACEMENTS,"5,464.00",Revenue,15/04/2015,Social Care & Inclusion
WC55-0385,APNA HOUSE LTD,Third Party Payments,Private Contractor Fees,73373-RESIDENTIAL & NURSING CARE PLACEMENTS,"5,464.00",Revenue,15/04/2015,Social Care & Inclusion
WC55-0386,APPLE TRANSCRIPTION LIMITED,Supplies & Services,Services,63000-PROFESSIONAL FEES AND SERVICES,302.40,Revenue,08/04/2015,Childrens
WC55-0387,APSE 001,Supplies & Services,Subscriptions,64500-PUBLICATIONS/ORGANISATIONS-SUBSCRIPTIONS,"3,449.00",Revenue,27/04/2015,Neighbourhood Services
WC55-0388,AQA 001,Supplies & Services,Other Supplies & Services,63013-EXAMINATIONS-SERVICES,"2,224.80",Revenue,23/04/2015,Neighbourhood Services
WC55-0389,ARBORETUM NURSING HOME.,Third Party Payments,Private Contractor Fees,73373-RESIDENTIAL & NURSING CARE PLACEMENTS,276.17,Revenue,15/04/2015,Social Care & Inclusion
WC55-0390,ARBORETUM NURSING HOME.,Third Party Payments,Private Contractor Fees,73373-RESIDENTIAL & NURSING CARE PLACEMENTS,"1,919.66",Revenue,15/04/2015,Social Care & Inclusion
WC55-0391,ARBORETUM NURSING HOME.,Third Party Payments,Private Contractor Fees,73373-RESIDENTIAL & NURSING CARE PLACEMENTS,"1,933.16",Revenue,15/04/2015,Social Care & Inclusion
WC55-0392,ARBORETUM NURSING HOME.,Third Party Payments,Private Contractor Fees,73373-RESIDENTIAL & NURSING CARE PLACEMENTS,"1,933.16",Revenue,15/04/2015,Social Care & Inclusion
WC55-0393,ARBORETUM NURSING HOME.,Third Party Payments,Private Contractor Fees,73373-RESIDENTIAL & NURSING CARE PLACEMENTS,"1,933.16",Revenue,15/04/2015,Social Care & Inclusion
WC55-0394,ARBORETUM NURSING HOME.,Third Party Payments,Private Contractor Fees,73373-RESIDENTIAL & NURSING CARE PLACEMENTS,"1,933.16",Revenue,15/04/2015,Social Care & Inclusion
WC55-0395,ARBORETUM NURSING HOME.,Third Party Payments,Private Contractor Fees,73373-RESIDENTIAL & NURSING CARE PLACEMENTS,"1,933.16",Revenue,15/04/2015,Social Care & Inclusion
WC55-0396,ARBORETUM NURSING HOME.,Third Party Payments,Private Contractor Fees,73373-RESIDENTIAL & NURSING CARE PLACEMENTS,"1,933.16",Revenue,15/04/2015,Social Care & Inclusion
WC55-0397,ARBORETUM NURSING HOME.,Third Party Payments,Private Contractor Fees,73373-RESIDENTIAL & NURSING CARE PLACEMENTS,"1,933.16",Revenue,15/04/2015,Social Care & Inclusion
WC55-0398,ARBORETUM NURSING HOME.,Third Party Payments,Private Contractor Fees,73373-RESIDENTIAL & NURSING CARE PLACEMENTS,"1,933.16",Revenue,15/04/2015,Social Care & Inclusion
WC55-0399,ARBORETUM NURSING HOME.,Third Party Payments,Private Contractor Fees,73373-RESIDENTIAL & NURSING CARE PLACEMENTS,"1,937.56",Revenue,15/04/2015,Social Care & Inclusion
WC55-0400,ARBORETUM NURSING HOME.,Third Party Payments,Private Contractor Fees,73373-RESIDENTIAL & NURSING CARE PLACEMENTS,"2,061.85",Revenue,15/04/2015,Social Care & Inclusion
WC55-0401,ARBORETUM NURSING HOME.,Third Party Payments,Private Contractor Fees,73373-RESIDENTIAL & NURSING CARE PLACEMENTS,"2,061.86",Revenue,15/04/2015,Social Care & Inclusion
WC55-0402,ARBORETUM NURSING HOME.,Third Party Payments,Private Contractor Fees,73373-RESIDENTIAL & NURSING CARE PLACEMENTS,"2,071.24",Revenue,15/04/2015,Social Care & Inclusion
WC55-0403,ARBORETUM NURSING HOME.,Third Party Payments,Private Contractor Fees,73373-RESIDENTIAL & NURSING CARE PLACEMENTS,"2,075.96",Revenue,15/04/2015,Social Care & Inclusion
WC55-0404,ARBORETUM NURSING HOME.,Third Party Payments,Private Contractor Fees,73373-RESIDENTIAL & NURSING CARE PLACEMENTS,"2,075.96",Revenue,15/04/2015,Social Care & Inclusion
WC55-0405,ARBORETUM NURSING HOME.,Third Party Payments,Private Contractor Fees,73373-RESIDENTIAL & NURSING CARE PLACEMENTS,"2,140.28",Revenue,15/04/2015,Social Care & Inclusion
WC55-0406,ARBORETUM NURSING HOME.,Third Party Payments,Private Contractor Fees,73373-RESIDENTIAL & NURSING CARE PLACEMENTS,"2,145.16",Revenue,15/04/2015,Social Care & Inclusion
WC55-0407,ARBORETUM NURSING HOME.,Third Party Payments,Private Contractor Fees,73373-RESIDENTIAL & NURSING CARE PLACEMENTS,"2,209.33",Revenue,15/04/2015,Social Care & Inclusion
WC55-0408,ARBORETUM NURSING HOME.,Third Party Payments,Private Contractor Fees,73373-RESIDENTIAL & NURSING CARE PLACEMENTS,"2,278.36",Revenue,15/04/2015,Social Care & Inclusion
WC55-0409,ARBORETUM NURSING HOME.,Third Party Payments,Private Contractor Fees,73373-RESIDENTIAL & NURSING CARE PLACEMENTS,"2,347.41",Revenue,15/04/2015,Social Care & Inclusion
WC55-0410,ARBORETUM NURSING HOME.,Third Party Payments,Private Contractor Fees,73373-RESIDENTIAL & NURSING CARE PLACEMENTS,"2,416.45",Revenue,15/04/2015,Social Care & Inclusion
WC55-0411,ARBORETUM NURSING HOME.,Third Party Payments,Private Contractor Fees,73373-RESIDENTIAL & NURSING CARE PLACEMENTS,"4,832.90",Revenue,15/04/2015,Social Care & Inclusion
WC55-0412,ARBORETUM NURSING HOME.,Third Party Payments,Private Contractor Fees,73019-PSE'S-PRIV CONTRACTOR FEES,"13,928.55",Revenue,16/04/2015,Social Care & Inclusion
WC55-0413,ARBORETUM NURSING HOME.,Third Party Payments,Private Contractor Fees,73019-PSE'S-PRIV CONTRACTOR FEES,"15,000.00",Revenue,16/04/2015,Social Care & Inclusion
WC55-0414,ARBORETUM NURSING HOME.,Third Party Payments,Private Contractor Fees,73019-PSE'S-PRIV CONTRACTOR FEES,"15,000.00",Revenue,16/04/2015,Social Care & Inclusion
WC55-0415,ARBORETUM NURSING HOME.,Third Party Payments,Private Contractor Fees,73019-PSE'S-PRIV CONTRACTOR FEES,"15,000.00",Revenue,16/04/2015,Social Care & Inclusion
WC55-0416,ARCANE DIRECT MARKETING,Supplies & Services,Other Supplies & Services,62511-DISTRIBUTION,370.32,Revenue,15/04/2015,Neighbourhood Services
WC55-0417,ARCANE DIRECT MARKETING,Supplies & Services,Other Supplies & Services,62511-DISTRIBUTION,"1,635.42",Revenue,15/04/2015,Neighbourhood Services
WC55-0418,ARCHWAY TCS LTD,Premises,Premises-Repairs & Maintenance,"40000-REPAIRS,ALTERATIONS & MAINTENANCE-PREM",707.50,Revenue,21/04/2015,Neighbourhood Services
WC55-0419,ARCHWAY TCS LTD,Third Party Payments,Private Contractor Fees,73025-PROFESSIONAL SERVICES-PRIV CONTRACTOR & OTHER AGENCIES,707.50,Revenue,27/04/2015,Neighbourhood Services
WC55-0420,ARMADA,Employees,Training,30030-EXTERNAL TRAINING,495.00,Revenue,08/04/2015,Neighbourhood Services
WC55-0421,ARTREACH EVENTS LTD,Supplies & Services,Services,63000-PROFESSIONAL FEES AND SERVICES,"3,150.00",Revenue,07/04/2015,Neighbourhood Services
WC55-0422,ASA AWARDS,Supplies & Services,"Equip,Furniture & Materials",60006-NEW-FURNITURE & EQUIPMENT,340.80,Revenue,27/04/2015,Neighbourhood Services
WC55-0423,ASAN MANAGEMENT SERVICES LTD,Supplies & Services,Other Supplies & Services,63128-HIRE OF ROOM-SERVICES-FEES,334.00,Revenue,27/04/2015,Regeneration
WC55-0424,ASCENTIS NATION AWARDING BODY,Supplies & Services,Other Supplies & Services,63013-EXAMINATIONS-SERVICES,100.00,Revenue,29/04/2015,Neighbourhood Services
WC55-0425,ASCENTIS NATION AWARDING BODY,Supplies & Services,Other Supplies & Services,63013-EXAMINATIONS-SERVICES,250.00,Revenue,29/04/2015,Neighbourhood Services
WC55-0426,ASCENTIS NATION AWARDING BODY,Supplies & Services,Other Supplies & Services,63013-EXAMINATIONS-SERVICES,500.00,Revenue,29/04/2015,Neighbourhood Services
WC55-0427,ASDA PHARMACY,Supplies & Services,Services,63000-PROFESSIONAL FEES AND SERVICES,52.50,Revenue,28/04/2015,Neighbourhood Services
WC55-0428,ASDA PHARMACY,Supplies & Services,Services,63000-PROFESSIONAL FEES AND SERVICES,73.50,Revenue,02/04/2015,Neighbourhood Services
WC55-0429,ASDA PHARMACY,Supplies & Services,Services,63000-PROFESSIONAL FEES AND SERVICES,115.60,Revenue,02/04/2015,Neighbourhood Services
WC55-0430,ASDA PHARMACY,Supplies & Services,Services,63000-PROFESSIONAL FEES AND SERVICES,125.00,Revenue,28/04/2015,Neighbourhood Services
WC55-0431,ASDA PHARMACY,Supplies & Services,Services,63000-PROFESSIONAL FEES AND SERVICES,207.20,Revenue,02/04/2015,Neighbourhood Services
WC55-0432,ASDA PHARMACY,Third Party Payments,Joint Arrangements,71007-CONTRIBUTION TO PCT,300.00,Revenue,29/04/2015,Neighbourhood Services
WC55-0433,ASDA PHARMACY,Third Party Payments,Joint Arrangements,71007-CONTRIBUTION TO PCT,428.32,Revenue,28/04/2015,Neighbourhood Services
WC55-0434,ASDA PHARMACY,Supplies & Services,Services,63000-PROFESSIONAL FEES AND SERVICES,470.20,Revenue,28/04/2015,Neighbourhood Services
WC55-0435,ASDA PHARMACY,Third Party Payments,Joint Arrangements,71007-CONTRIBUTION TO PCT,535.23,Revenue,02/04/2015,Neighbourhood Services
WC55-0436,ASDA PHARMACY,Third Party Payments,Joint Arrangements,71007-CONTRIBUTION TO PCT,547.57,Revenue,02/04/2015,Neighbourhood Services
WC55-0437,ASDA PHARMACY,Third Party Payments,Joint Arrangements,71007-CONTRIBUTION TO PCT,900.00,Revenue,02/04/2015,Neighbourhood Services
WC55-0438,ASH GRANGE CARE HOME,Third Party Payments,Private Contractor Fees,73373-RESIDENTIAL & NURSING CARE PLACEMENTS,"-1,314.77",Revenue,15/04/2015,Social Care & Inclusion
WC55-0439,ASH GRANGE CARE HOME,Third Party Payments,Private Contractor Fees,73373-RESIDENTIAL & NURSING CARE PLACEMENTS,312.94,Revenue,21/04/2015,Social Care & Inclusion
WC55-0440,ASH GRANGE CARE HOME,Third Party Payments,Private Contractor Fees,73373-RESIDENTIAL & NURSING CARE PLACEMENTS,484.39,Revenue,28/04/2015,Social Care & Inclusion
WC55-0441,ASH GRANGE CARE HOME,Third Party Payments,Private Contractor Fees,73373-RESIDENTIAL & NURSING CARE PLACEMENTS,730.20,Revenue,15/04/2015,Social Care & Inclusion
WC55-0442,ASH GRANGE CARE HOME,Third Party Payments,Private Contractor Fees,73373-RESIDENTIAL & NURSING CARE PLACEMENTS,"1,147.46",Revenue,15/04/2015,Social Care & Inclusion
WC55-0443,ASH GRANGE CARE HOME,Third Party Payments,Private Contractor Fees,73373-RESIDENTIAL & NURSING CARE PLACEMENTS,"1,176.38",Revenue,28/04/2015,Social Care & Inclusion
WC55-0444,ASH GRANGE CARE HOME,Third Party Payments,Private Contractor Fees,73373-RESIDENTIAL & NURSING CARE PLACEMENTS,"1,795.08",Revenue,21/04/2015,Social Care & Inclusion
WC55-0445,ASH GRANGE CARE HOME,Third Party Payments,Private Contractor Fees,73373-RESIDENTIAL & NURSING CARE PLACEMENTS,"1,949.88",Revenue,21/04/2015,Social Care & Inclusion
WC55-0446,ASH GRANGE CARE HOME,Third Party Payments,Private Contractor Fees,73373-RESIDENTIAL & NURSING CARE PLACEMENTS,"1,949.88",Revenue,21/04/2015,Social Care & Inclusion
WC55-0447,ASH GRANGE CARE HOME,Third Party Payments,Private Contractor Fees,73373-RESIDENTIAL & NURSING CARE PLACEMENTS,"1,949.88",Revenue,21/04/2015,Social Care & Inclusion
WC55-0448,ASH GRANGE CARE HOME,Third Party Payments,Private Contractor Fees,73373-RESIDENTIAL & NURSING CARE PLACEMENTS,"1,949.88",Revenue,21/04/2015,Social Care & Inclusion
WC55-0449,ASH GRANGE CARE HOME,Third Party Payments,Private Contractor Fees,73373-RESIDENTIAL & NURSING CARE PLACEMENTS,"1,949.88",Revenue,21/04/2015,Social Care & Inclusion
WC55-0450,ASH GRANGE CARE HOME,Third Party Payments,Private Contractor Fees,73373-RESIDENTIAL & NURSING CARE PLACEMENTS,"1,949.88",Revenue,21/04/2015,Social Care & Inclusion
WC55-0451,ASH GRANGE CARE HOME,Third Party Payments,Private Contractor Fees,73373-RESIDENTIAL & NURSING CARE PLACEMENTS,"1,949.88",Revenue,21/04/2015,Social Care & Inclusion
WC55-0452,ASH GRANGE CARE HOME,Third Party Payments,Private Contractor Fees,73373-RESIDENTIAL & NURSING CARE PLACEMENTS,"8,658.09",Revenue,21/04/2015,Social Care & Inclusion
WC55-0453,ASH GRANGE CARE HOME,Third Party Payments,Private Contractor Fees,73019-PSE'S-PRIV CONTRACTOR FEES,"14,700.00",Revenue,01/04/2015,Social Care & Inclusion
WC55-0454,ASHBOURNE LODGE,Third Party Payments,Private Contractor Fees,73373-RESIDENTIAL & NURSING CARE PLACEMENTS,"2,057.57",Revenue,15/04/2015,Social Care & Inclusion
WC55-0455,ASKELITE LTD,Capital,Capital,01006-SITE WORKS MAIN CONTRACTORS,"2,599.00",Capital,27/04/2015,Social Care & Inclusion
WC55-0456,ASKEWS AND HOLTS LIBRARY SERVICES LTD,Supplies & Services,"Equip,Furniture & Materials",60501-LIBRARY BOOKS,252.02,Revenue,21/04/2015,Neighbourhood Services
WC55-0457,ASKEWS AND HOLTS LIBRARY SERVICES LTD,Supplies & Services,"Equip,Furniture & Materials",60501-LIBRARY BOOKS,260.77,Revenue,21/04/2015,Neighbourhood Services
WC55-0458,ASKEWS AND HOLTS LIBRARY SERVICES LTD,Supplies & Services,"Equip,Furniture & Materials",60501-LIBRARY BOOKS,270.09,Revenue,28/04/2015,Neighbourhood Services
WC55-0459,ASKEWS AND HOLTS LIBRARY SERVICES LTD,Supplies & Services,"Equip,Furniture & Materials",60501-LIBRARY BOOKS,283.88,Revenue,10/04/2015,Neighbourhood Services
WC55-0460,ASKEWS AND HOLTS LIBRARY SERVICES LTD,Supplies & Services,"Equip,Furniture & Materials",60501-LIBRARY BOOKS,287.21,Revenue,21/04/2015,Neighbourhood Services
WC55-0461,ASKEWS AND HOLTS LIBRARY SERVICES LTD,Supplies & Services,"Equip,Furniture & Materials",60501-LIBRARY BOOKS,295.17,Revenue,14/04/2015,Neighbourhood Services
WC55-0462,ASKEWS AND HOLTS LIBRARY SERVICES LTD,Supplies & Services,"Equip,Furniture & Materials",60501-LIBRARY BOOKS,298.83,Revenue,17/04/2015,Neighbourhood Services
WC55-0463,ASKEWS AND HOLTS LIBRARY SERVICES LTD,Supplies & Services,"Equip,Furniture & Materials",60501-LIBRARY BOOKS,309.19,Revenue,27/04/2015,Neighbourhood Services
WC55-0464,ASKEWS AND HOLTS LIBRARY SERVICES LTD,Supplies & Services,"Equip,Furniture & Materials",60501-LIBRARY BOOKS,332.16,Revenue,14/04/2015,Neighbourhood Services
WC55-0465,ASKEWS AND HOLTS LIBRARY SERVICES LTD,Supplies & Services,"Equip,Furniture & Materials",60501-LIBRARY BOOKS,366.87,Revenue,21/04/2015,Neighbourhood Services
WC55-0466,ASKEWS AND HOLTS LIBRARY SERVICES LTD,Supplies & Services,"Equip,Furniture & Materials",60501-LIBRARY BOOKS,380.80,Revenue,14/04/2015,Neighbourhood Services
WC55-0467,ASKEWS AND HOLTS LIBRARY SERVICES LTD,Supplies & Services,"Equip,Furniture & Materials",60501-LIBRARY BOOKS,398.39,Revenue,29/04/2015,Neighbourhood Services
WC55-0468,ASKEWS AND HOLTS LIBRARY SERVICES LTD,Supplies & Services,"Equip,Furniture & Materials",60501-LIBRARY BOOKS,401.25,Revenue,17/04/2015,Neighbourhood Services
WC55-0469,ASKEWS AND HOLTS LIBRARY SERVICES LTD,Supplies & Services,"Equip,Furniture & Materials",60501-LIBRARY BOOKS,459.77,Revenue,22/04/2015,Neighbourhood Services
WC55-0470,ASKEWS AND HOLTS LIBRARY SERVICES LTD,Supplies & Services,"Equip,Furniture & Materials",60501-LIBRARY BOOKS,606.71,Revenue,14/04/2015,Neighbourhood Services
WC55-0471,ASKEWS AND HOLTS LIBRARY SERVICES LTD,Supplies & Services,"Equip,Furniture & Materials",60501-LIBRARY BOOKS,663.69,Revenue,21/04/2015,Neighbourhood Services
WC55-0472,ASKEWS AND HOLTS LIBRARY SERVICES LTD,Supplies & Services,"Equip,Furniture & Materials",60501-LIBRARY BOOKS,691.12,Revenue,14/04/2015,Neighbourhood Services
WC55-0473,ASKEWS AND HOLTS LIBRARY SERVICES LTD,Supplies & Services,"Equip,Furniture & Materials",60501-LIBRARY BOOKS,721.81,Revenue,14/04/2015,Neighbourhood Services
WC55-0474,ASKEWS AND HOLTS LIBRARY SERVICES LTD,Supplies & Services,"Equip,Furniture & Materials",60501-LIBRARY BOOKS,"1,477.93",Revenue,14/04/2015,Neighbourhood Services
WC55-0475,REDACTED,Transfer Payments,Transfer Payments,76422-DIRECT PAYMENTS TO SOCIAL SERVICES CLIENTS,493.00,Revenue,14/04/2015,Social Care & Inclusion
WC55-0476,ASN FIRST AID & HYGIENE LTD,Supplies & Services,"Equip,Furniture & Materials",61502-PROTECTIVE CLOTHING & UNIFORM,757.50,Revenue,15/04/2015,Social Care & Inclusion
WC55-0477,ASSOCIATION OF ACCOUNTING TECHNICIANS.,Supplies & Services,Other Supplies & Services,63013-EXAMINATIONS-SERVICES,684.00,Revenue,15/04/2015,Neighbourhood Services
WC55-0478,A-STAT OFFICE TECHNOLOGY LTD,Supplies & Services,"Printing, Stationery & Office Exp",62000-EXTERNAL PRINTING SERVICES,394.94,Revenue,29/04/2015,Childrens
WC55-0479,ASTECH CONSULTANTS LTD,Supplies & Services,Communications & Computing,63800-COMPUTER EQUIPMENT AND SUPPLIES,"6,489.96",Revenue,27/04/2015,Resources
WC55-0480,ASTON CHILDRENS CARE,Third Party Payments,Private Contractor Fees,74036-EXTERNAL RESIDENTIAL CARE-OTH AGENCY PROVISION,342.85,Revenue,29/04/2015,Childrens
WC55-0481,ATHWAL NEWS LTD,Supplies & Services,"Equip,Furniture & Materials",60501-LIBRARY BOOKS,542.41,Revenue,27/04/2015,Neighbourhood Services
WC55-0482,AURORA GRAPHICS & DISPLAYS LTD,Supplies & Services,"Printing, Stationery & Office Exp",62008-OUTWORK-PRINT ROOM,"1,063.86",Revenue,01/04/2015,Resources
WC55-0483,AURORAS CARNIVAL,Employees,Other Staff Costs,32000-MISC FEES AND EXPENSES,554.00,Revenue,29/04/2015,Neighbourhood Services
WC55-0484,AUTISM WEST MIDLANDS,Capital,Capital,01006-SITE WORKS MAIN CONTRACTORS,"5,000.00",Capital,27/04/2015,Social Care & Inclusion
WC55-0485,AVANTGARDE PHARMA LTD T/A AL-SHAFA PHARMACY,Supplies & Services,Services,63000-PROFESSIONAL FEES AND SERVICES,130.00,Revenue,02/04/2015,Neighbourhood Services
WC55-0486,AVANTGARDE PHARMA LTD T/A AL-SHAFA PHARMACY,Supplies & Services,Services,63000-PROFESSIONAL FEES AND SERVICES,270.60,Revenue,02/04/2015,Neighbourhood Services
WC55-0487,AVANTGARDE PHARMA LTD T/A AL-SHAFA PHARMACY,Third Party Payments,Joint Arrangements,71007-CONTRIBUTION TO PCT,725.66,Revenue,02/04/2015,Neighbourhood Services
WC55-0488,AWKEYE,Supplies & Services,"Equip,Furniture & Materials",60500-GENERAL MATERIALS,264.00,Revenue,23/04/2015,Neighbourhood Services
WC55-0489,AXIELL ALM LIMITED,Supplies & Services,Services,63000-PROFESSIONAL FEES AND SERVICES,502.97,Revenue,22/04/2015,Neighbourhood Services
WC55-0490,AXIELL ALM LIMITED,Supplies & Services,Services,63000-PROFESSIONAL FEES AND SERVICES,649.25,Revenue,22/04/2015,Neighbourhood Services
WC55-0491,AXIELL ALM LIMITED,Supplies & Services,Communications & Computing,63820-RECHARGE FOR MAINTENANCE/APPLICATION COSTS-COMPUTER,"3,624.81",Revenue,08/04/2015,Resources
WC55-0492,AXIELL LIMITED,Supplies & Services,Communications & Computing,63820-RECHARGE FOR MAINTENANCE/APPLICATION COSTS-COMPUTER,"17,041.29",Revenue,08/04/2015,Resources
WC55-0493,AXIOM BUILDING SOLUTIONS LTD,Capital,Capital,01006-SITE WORKS MAIN CONTRACTORS,500.00,Capital,29/04/2015,Childrens
WC55-0494,REDACTED,Transfer Payments,Transfer Payments,76422-DIRECT PAYMENTS TO SOCIAL SERVICES CLIENTS,"2,652.00",Revenue,14/04/2015,Social Care & Inclusion
WC55-0495,AZZURRI COMMUNICATIONS LTD,Supplies & Services,Communications & Computing,63800-COMPUTER EQUIPMENT AND SUPPLIES,"4,611.35",Revenue,16/04/2015,Resources
WC55-0496,B & S CHAINS LTD,Supplies & Services,"Equip,Furniture & Materials",60006-NEW-FURNITURE & EQUIPMENT,630.00,Revenue,22/04/2015,Neighbourhood Services
WC55-0497,B & T REWINDS LTD,Premises,Premises-Repairs & Maintenance,"40000-REPAIRS,ALTERATIONS & MAINTENANCE-PREM","1,635.00",Revenue,08/04/2015,Regeneration
WC55-0498,REDACTED,Supplies & Services,Other Supplies & Services,62515-MISCELLANEOUS SUPPLIES,906.76,Revenue,27/04/2015,Childrens
WC55-0499,REDACTED,Third Party Payments,Private Contractor Fees,74006-HOLIDAY/CHRISTMAS ALLOWANCE-FOSTER CARERS-OTH AGENCY PROVISION,955.02,Revenue,27/04/2015,Childrens
WC55-0500,REDACTED,Supplies & Services,Other Supplies & Services,62515-MISCELLANEOUS SUPPLIES,"1,445.32",Revenue,27/04/2015,Childrens
WC55-0501,REDACTED,Third Party Payments,Private Contractor Fees,74006-HOLIDAY/CHRISTMAS ALLOWANCE-FOSTER CARERS-OTH AGENCY PROVISION,"1,971.52",Revenue,27/04/2015,Childrens
WC55-0502,BAAF,Employees,Training,30000-INTERNAL TRAINING,500.00,Revenue,08/04/2015,Childrens
WC55-0503,BAAF,Employees,Training,30030-EXTERNAL TRAINING,500.00,Revenue,13/04/2015,Childrens
WC55-0504,BAAF,Employees,Training,30000-INTERNAL TRAINING,750.00,Revenue,08/04/2015,Childrens
WC55-0505,BAAF,Employees,Training,30000-INTERNAL TRAINING,750.00,Revenue,13/04/2015,Childrens
WC55-0506,BAAF,Employees,Training,30030-EXTERNAL TRAINING,750.00,Revenue,14/04/2015,Childrens
WC55-0507,REDACTED,Transfer Payments,Transfer Payments,76422-DIRECT PAYMENTS TO SOCIAL SERVICES CLIENTS,863.20,Revenue,14/04/2015,Social Care & Inclusion
WC55-0508,BACPR EDUCATION CONSORTIUM,Employees,Training,30030-EXTERNAL TRAINING,"1,250.00",Revenue,23/04/2015,Neighbourhood Services
WC55-0509,BAKER ROSS LTD,Supplies & Services,"Equip,Furniture & Materials",60500-GENERAL MATERIALS,"1,072.87",Revenue,08/04/2015,Childrens
WC55-0510,REDACTED,Transfer Payments,Transfer Payments,76422-DIRECT PAYMENTS TO SOCIAL SERVICES CLIENTS,"2,849.92",Revenue,14/04/2015,Social Care & Inclusion
WC55-0511,REDACTED,Transfer Payments,Transfer Payments,76422-DIRECT PAYMENTS TO SOCIAL SERVICES CLIENTS,620.00,Revenue,14/04/2015,Social Care & Inclusion
WC55-0512,REDACTED,Transfer Payments,Transfer Payments,76422-DIRECT PAYMENTS TO SOCIAL SERVICES CLIENTS,644.00,Revenue,14/04/2015,Social Care & Inclusion
WC55-0513,REDACTED,Transfer Payments,Transfer Payments,76422-DIRECT PAYMENTS TO SOCIAL SERVICES CLIENTS,"1,314.88",Revenue,14/04/2015,Social Care & Inclusion
WC55-0514,REDACTED,Transfer Payments,Transfer Payments,76422-DIRECT PAYMENTS TO SOCIAL SERVICES CLIENTS,"1,280.00",Revenue,14/04/2015,Social Care & Inclusion
WC55-0515,REDACTED,Transfer Payments,Transfer Payments,76422-DIRECT PAYMENTS TO SOCIAL SERVICES CLIENTS,632.52,Revenue,14/04/2015,Social Care & Inclusion
WC55-0516,BARCHAM TREES PLC,Supplies & Services,"Equip,Furniture & Materials",60500-GENERAL MATERIALS,"2,120.25",Revenue,15/04/2015,Neighbourhood Services
WC55-0517,BARCHAM TREES PLC,Supplies & Services,"Equip,Furniture & Materials",60500-GENERAL MATERIALS,"2,120.25",Revenue,15/04/2015,Neighbourhood Services
WC55-0518,BARNARDOS SERVICES LTD,Third Party Payments,Private Contractor Fees,74037-INDEPENDENT FOSTER CARE-OTH AGENCY PROVISION,"4,478.57",Revenue,28/04/2015,Childrens
WC55-0519,BARNARDOS SERVICES LTD,Supplies & Services,Services,63000-PROFESSIONAL FEES AND SERVICES,"4,884.48",Revenue,08/04/2015,Childrens
WC55-0520,BARR BEACON SCHOOL TRUST,Transfer Payments,Transfer Payments,77300-ISB-FORMULA ALLOCATION,"1,500.00",Revenue,14/04/2015,Childrens
WC55-0521,BARTHOLAMEW LODGE CARE HOME,Third Party Payments,Private Contractor Fees,73373-RESIDENTIAL & NURSING CARE PLACEMENTS,533.57,Revenue,15/04/2015,Social Care & Inclusion
WC55-0522,BARTHOLAMEW LODGE CARE HOME,Third Party Payments,Private Contractor Fees,73373-RESIDENTIAL & NURSING CARE PLACEMENTS,"2,134.29",Revenue,15/04/2015,Social Care & Inclusion
WC55-0523,BATHROOM BASICS LTD,Capital,Capital,01045-PRIVATE GRANTS,"4,079.00",Capital,21/04/2015,Resources
WC55-0524,BEACON PHARMACY,Third Party Payments,Joint Arrangements,71007-CONTRIBUTION TO PCT,375.00,Revenue,10/04/2015,Neighbourhood Services
WC55-0525,BEADEN POWERLEC LIMITED,Capital,Capital,01006-SITE WORKS MAIN CONTRACTORS,"25,149.00",Capital,08/04/2015,Childrens
WC55-0526,BEADEN POWERLEC LIMITED,Capital,Capital,01006-SITE WORKS MAIN CONTRACTORS,"54,472.52",Capital,02/04/2015,Childrens
WC55-0527,REDACTED,Third Party Payments,Private Contractor Fees,74006-HOLIDAY/CHRISTMAS ALLOWANCE-FOSTER CARERS-OTH AGENCY PROVISION,827.04,Revenue,27/04/2015,Childrens
WC55-0528,REDACTED,Supplies & Services,Other Supplies & Services,62515-MISCELLANEOUS SUPPLIES,975.66,Revenue,27/04/2015,Childrens
WC55-0529,BEARWOOD NURSING HOME LTD,Third Party Payments,Private Contractor Fees,73373-RESIDENTIAL & NURSING CARE PLACEMENTS,"1,173.86",Revenue,21/04/2015,Social Care & Inclusion
WC55-0530,BEARWOOD NURSING HOME LTD,Third Party Payments,Private Contractor Fees,73373-RESIDENTIAL & NURSING CARE PLACEMENTS,"1,494.00",Revenue,21/04/2015,Social Care & Inclusion
WC55-0531,BEARWOOD NURSING HOME LTD,Third Party Payments,Private Contractor Fees,73373-RESIDENTIAL & NURSING CARE PLACEMENTS,"1,494.00",Revenue,21/04/2015,Social Care & Inclusion
WC55-0532,BEARWOOD NURSING HOME LTD,Third Party Payments,Private Contractor Fees,73373-RESIDENTIAL & NURSING CARE PLACEMENTS,"1,494.00",Revenue,21/04/2015,Social Care & Inclusion
WC55-0533,REDACTED,Transfer Payments,Transfer Payments,76422-DIRECT PAYMENTS TO SOCIAL SERVICES CLIENTS,641.76,Revenue,14/04/2015,Social Care & Inclusion
WC55-0534,BECKYS CHILDMINDING SERVICE,Third Party Payments,Grants to Other Orgs,66505-OTHER-GRANTS TO OTHER ORGS,"1,334.97",Revenue,13/04/2015,Childrens
WC55-0535,REDACTED,Supplies & Services,Other Supplies & Services,62515-MISCELLANEOUS SUPPLIES,354.48,Revenue,27/04/2015,Childrens
WC55-0536,REDACTED,Third Party Payments,Private Contractor Fees,74006-HOLIDAY/CHRISTMAS ALLOWANCE-FOSTER CARERS-OTH AGENCY PROVISION,857.16,Revenue,27/04/2015,Childrens
WC55-0537,BELLEVUE COURT CARE HOME,Third Party Payments,Private Contractor Fees,73373-RESIDENTIAL & NURSING CARE PLACEMENTS,373.50,Revenue,15/04/2015,Social Care & Inclusion
WC55-0538,BELLEVUE COURT CARE HOME,Third Party Payments,Private Contractor Fees,73373-RESIDENTIAL & NURSING CARE PLACEMENTS,382.54,Revenue,15/04/2015,Social Care & Inclusion
WC55-0539,BELLEVUE COURT CARE HOME,Third Party Payments,Private Contractor Fees,73373-RESIDENTIAL & NURSING CARE PLACEMENTS,"1,115.22",Revenue,15/04/2015,Social Care & Inclusion
WC55-0540,BELLEVUE COURT CARE HOME,Third Party Payments,Private Contractor Fees,73373-RESIDENTIAL & NURSING CARE PLACEMENTS,"1,120.50",Revenue,15/04/2015,Social Care & Inclusion
WC55-0541,BELLEVUE COURT CARE HOME,Third Party Payments,Private Contractor Fees,73373-RESIDENTIAL & NURSING CARE PLACEMENTS,"1,147.62",Revenue,15/04/2015,Social Care & Inclusion
WC55-0542,BEMROSEBOOTH LTD,Supplies & Services,"Printing, Stationery & Office Exp",62001-STATIONERY & GENERAL SUPPLIES-OFFICE EXP,"1,200.00",Revenue,02/04/2015,Neighbourhood Services
WC55-0543,REDACTED,Transfer Payments,Transfer Payments,76422-DIRECT PAYMENTS TO SOCIAL SERVICES CLIENTS,"2,205.00",Revenue,14/04/2015,Social Care & Inclusion
WC55-0544,BENNIMAN CONSTRUCTION GROUP,Premises,Premises-Repairs & Maintenance,"40000-REPAIRS,ALTERATIONS & MAINTENANCE-PREM","12,080.56",Revenue,07/04/2015,Regeneration
WC55-0545,BENTLEY CHILD CARE,Third Party Payments,Private Contractor Fees,73014-LEGAL FEES-PRIV CONTRACTOR FEES,"2,309.20",Revenue,01/04/2015,Childrens
WC55-0546,BENTLEY CHILD CARE,Third Party Payments,Private Contractor Fees,73014-LEGAL FEES-PRIV CONTRACTOR FEES,"2,813.88",Revenue,01/04/2015,Childrens
WC55-0547,BENTLEY CHILD CARE,Third Party Payments,Private Contractor Fees,73014-LEGAL FEES-PRIV CONTRACTOR FEES,"3,347.53",Revenue,01/04/2015,Childrens
WC55-0548,BENTLEY COURT PRIORY,Third Party Payments,Private Contractor Fees,73373-RESIDENTIAL & NURSING CARE PLACEMENTS,"2,140.29",Revenue,15/04/2015,Social Care & Inclusion
WC55-0549,REDACTED,Transfer Payments,Transfer Payments,76422-DIRECT PAYMENTS TO SOCIAL SERVICES CLIENTS,424.56,Revenue,14/04/2015,Social Care & Inclusion
WC55-0550,BERTRAM TRADING LTD T/A BERTRAM LIBRARY SERVICES),Supplies & Services,"Equip,Furniture & Materials",60501-LIBRARY BOOKS,293.44,Revenue,02/04/2015,Neighbourhood Services
WC55-0551,REDACTED,Transfer Payments,Transfer Payments,76422-DIRECT PAYMENTS TO SOCIAL SERVICES CLIENTS,912.00,Revenue,14/04/2015,Social Care & Inclusion
WC55-0552,REDACTED,Supplies & Services,Other Supplies & Services,62515-MISCELLANEOUS SUPPLIES,"1,045.32",Revenue,27/04/2015,Childrens
WC55-0553,REDACTED,Third Party Payments,Private Contractor Fees,74006-HOLIDAY/CHRISTMAS ALLOWANCE-FOSTER CARERS-OTH AGENCY PROVISION,"1,142.88",Revenue,27/04/2015,Childrens
WC55-0554,REDACTED,Transfer Payments,Transfer Payments,76422-DIRECT PAYMENTS TO SOCIAL SERVICES CLIENTS,968.00,Revenue,14/04/2015,Social Care & Inclusion
WC55-0555,BESCOT LODGE RESIDENTIAL CARE HOME,Third Party Payments,Private Contractor Fees,73373-RESIDENTIAL & NURSING CARE PLACEMENTS,821.85,Revenue,28/04/2015,Social Care & Inclusion
WC55-0556,BESCOT LODGE RESIDENTIAL CARE HOME,Third Party Payments,Private Contractor Fees,73373-RESIDENTIAL & NURSING CARE PLACEMENTS,"1,479.33",Revenue,28/04/2015,Social Care & Inclusion
WC55-0557,BESCOT LODGE RESIDENTIAL CARE HOME,Third Party Payments,Private Contractor Fees,73373-RESIDENTIAL & NURSING CARE PLACEMENTS,"1,564.71",Revenue,28/04/2015,Social Care & Inclusion
WC55-0558,BESCOT LODGE RESIDENTIAL CARE HOME,Third Party Payments,Private Contractor Fees,73373-RESIDENTIAL & NURSING CARE PLACEMENTS,"1,643.70",Revenue,28/04/2015,Social Care & Inclusion
WC55-0559,BESCOT LODGE RESIDENTIAL CARE HOME,Third Party Payments,Private Contractor Fees,73373-RESIDENTIAL & NURSING CARE PLACEMENTS,"1,643.70",Revenue,28/04/2015,Social Care & Inclusion
WC55-0560,BESCOT LODGE RESIDENTIAL CARE HOME,Third Party Payments,Private Contractor Fees,73373-RESIDENTIAL & NURSING CARE PLACEMENTS,"1,643.70",Revenue,28/04/2015,Social Care & Inclusion
WC55-0561,BESCOT LODGE RESIDENTIAL CARE HOME,Third Party Payments,Private Contractor Fees,73373-RESIDENTIAL & NURSING CARE PLACEMENTS,"1,643.70",Revenue,28/04/2015,Social Care & Inclusion
WC55-0562,BESCOT LODGE RESIDENTIAL CARE HOME,Third Party Payments,Private Contractor Fees,73373-RESIDENTIAL & NURSING CARE PLACEMENTS,"1,643.70",Revenue,28/04/2015,Social Care & Inclusion
WC55-0563,BESCOT LODGE RESIDENTIAL CARE HOME,Third Party Payments,Private Contractor Fees,73373-RESIDENTIAL & NURSING CARE PLACEMENTS,"1,643.70",Revenue,28/04/2015,Social Care & Inclusion
WC55-0564,BESCOT LODGE RESIDENTIAL CARE HOME,Third Party Payments,Private Contractor Fees,73373-RESIDENTIAL & NURSING CARE PLACEMENTS,"1,661.27",Revenue,28/04/2015,Social Care & Inclusion
WC55-0565,BESCOT LODGE RESIDENTIAL CARE HOME,Third Party Payments,Private Contractor Fees,73373-RESIDENTIAL & NURSING CARE PLACEMENTS,"1,661.36",Revenue,21/04/2015,Social Care & Inclusion
WC55-0566,BESCOT LODGE RESIDENTIAL CARE HOME,Third Party Payments,Private Contractor Fees,73373-RESIDENTIAL & NURSING CARE PLACEMENTS,"1,698.49",Revenue,28/04/2015,Social Care & Inclusion
WC55-0567,BESCOT PROMOTIONS,Third Party Payments,Private Contractor Fees,73025-PROFESSIONAL SERVICES-PRIV CONTRACTOR & OTHER AGENCIES,"2,600.00",Revenue,23/04/2015,Regeneration
WC55-0568,BETHPHAGE.,Third Party Payments,Private Contractor Fees,73374-SUPPORTED & OTHER ACCOMMODATION,650.00,Revenue,28/04/2015,Social Care & Inclusion
WC55-0569,BETHPHAGE.,Third Party Payments,Private Contractor Fees,73374-SUPPORTED & OTHER ACCOMMODATION,"1,347.52",Revenue,28/04/2015,Social Care & Inclusion
WC55-0570,BETHPHAGE.,Third Party Payments,Private Contractor Fees,73374-SUPPORTED & OTHER ACCOMMODATION,"1,768.00",Revenue,28/04/2015,Social Care & Inclusion
WC55-0571,BETHPHAGE.,Third Party Payments,Private Contractor Fees,73374-SUPPORTED & OTHER ACCOMMODATION,"2,031.84",Revenue,28/04/2015,Social Care & Inclusion
WC55-0572,BETHPHAGE.,Third Party Payments,Private Contractor Fees,73374-SUPPORTED & OTHER ACCOMMODATION,"3,831.92",Revenue,28/04/2015,Social Care & Inclusion
WC55-0573,REDACTED,Transfer Payments,Transfer Payments,76422-DIRECT PAYMENTS TO SOCIAL SERVICES CLIENTS,949.52,Revenue,14/04/2015,Social Care & Inclusion
WC55-0574,REDACTED,Transfer Payments,Transfer Payments,76422-DIRECT PAYMENTS TO SOCIAL SERVICES CLIENTS,"1,984.71",Revenue,14/04/2015,Social Care & Inclusion
WC55-0575,BFA SAFETY TRAINING,Employees,Training,30030-EXTERNAL TRAINING,395.00,Revenue,29/04/2015,Childrens
WC55-0576,BFA SAFETY TRAINING,Employees,Training,30030-EXTERNAL TRAINING,595.00,Revenue,22/04/2015,Resources
WC55-0577,BFA SAFETY TRAINING,Employees,Training,30030-EXTERNAL TRAINING,795.00,Revenue,22/04/2015,Resources
WC55-0578,BIDFORD ON AVON C OF E PRIMARY SCHOOL,Transfer Payments,Transfer Payments,77300-ISB-FORMULA ALLOCATION,600.00,Revenue,08/04/2015,Childrens
WC55-0579,BIFFA WASTE SERVICES LTD,Third Party Payments,Private Contractor Fees,73005-LANDFILL PTYS-PRIV CONTRACTOR FEES,"1,170.95",Revenue,13/04/2015,Neighbourhood Services
WC55-0580,BIFFA WASTE SERVICES LTD,Third Party Payments,Private Contractor Fees,73005-LANDFILL PTYS-PRIV CONTRACTOR FEES,"1,451.34",Revenue,15/04/2015,Neighbourhood Services
WC55-0581,BIFFA WASTE SERVICES LTD,Third Party Payments,Private Contractor Fees,73005-LANDFILL PTYS-PRIV CONTRACTOR FEES,"1,551.27",Revenue,16/04/2015,Neighbourhood Services
WC55-0582,BIFFA WASTE SERVICES LTD,Third Party Payments,Private Contractor Fees,73005-LANDFILL PTYS-PRIV CONTRACTOR FEES,"1,645.20",Revenue,16/04/2015,Neighbourhood Services
WC55-0583,BIFFA WASTE SERVICES LTD,Third Party Payments,Private Contractor Fees,73005-LANDFILL PTYS-PRIV CONTRACTOR FEES,"2,019.89",Revenue,16/04/2015,Neighbourhood Services
WC55-0584,BIFFA WASTE SERVICES LTD,Third Party Payments,Private Contractor Fees,73039-LANDFILL TAX-PRIV CONTRACTOR FEES,"7,255.99",Revenue,13/04/2015,Neighbourhood Services
WC55-0585,BIFFA WASTE SERVICES LTD,Third Party Payments,Private Contractor Fees,73039-LANDFILL TAX-PRIV CONTRACTOR FEES,"8,993.60",Revenue,15/04/2015,Neighbourhood Services
WC55-0586,BIFFA WASTE SERVICES LTD,Third Party Payments,Private Contractor Fees,73039-LANDFILL TAX-PRIV CONTRACTOR FEES,"9,612.80",Revenue,16/04/2015,Neighbourhood Services
WC55-0587,BIFFA WASTE SERVICES LTD,Third Party Payments,Private Contractor Fees,73039-LANDFILL TAX-PRIV CONTRACTOR FEES,"10,260.42",Revenue,16/04/2015,Neighbourhood Services
WC55-0588,BIFFA WASTE SERVICES LTD,Third Party Payments,Private Contractor Fees,73039-LANDFILL TAX-PRIV CONTRACTOR FEES,"12,516.81",Revenue,16/04/2015,Neighbourhood Services
WC55-0589,REDACTED,Transfer Payments,Transfer Payments,76422-DIRECT PAYMENTS TO SOCIAL SERVICES CLIENTS,487.72,Revenue,14/04/2015,Childrens
WC55-0590,REDACTED,Transfer Payments,Transfer Payments,76422-DIRECT PAYMENTS TO SOCIAL SERVICES CLIENTS,537.20,Revenue,14/04/2015,Childrens
WC55-0591,BIRMINGHAM CITY COUNCIL,Supplies & Services,Services,63000-PROFESSIONAL FEES AND SERVICES,"1,500.00",Revenue,02/04/2015,Resources
WC55-0592,BIRMINGHAM CITY UNIVERSITY,Employees,Training,30000-INTERNAL TRAINING,550.00,Revenue,14/04/2015,Childrens
WC55-0593,BIRMINGHAM MUSEUMS TRUST,Supplies & Services,Other Supplies & Services,63011-CONSERVATION-SERVICES,271.25,Revenue,10/04/2015,Neighbourhood Services
WC55-0594,BIRMINGHAM MUSEUMS TRUST,Supplies & Services,Other Supplies & Services,63011-CONSERVATION-SERVICES,271.25,Revenue,10/04/2015,Neighbourhood Services
WC55-0595,BLACK COUNTRY CONSORTIUM LIMITED,Supplies & Services,Services,63000-PROFESSIONAL FEES AND SERVICES,"1,877.30",Revenue,08/04/2015,Regeneration
WC55-0596,BLACK COUNTRY CONSORTIUM LIMITED,Supplies & Services,Services,63000-PROFESSIONAL FEES AND SERVICES,"14,506.98",Revenue,08/04/2015,Regeneration
WC55-0597,BLACK COUNTRY PARTNERSHIP NHS,Third Party Payments,Joint Arrangements,71007-CONTRIBUTION TO PCT,"31,620.00",Revenue,02/04/2015,Social Care & Inclusion
WC55-0598,BLACK COUNTRY PARTNERSHIP NHS,Third Party Payments,Joint Arrangements,71007-CONTRIBUTION TO PCT,"39,780.00",Revenue,02/04/2015,Social Care & Inclusion
WC55-0599,BLACK COUNTRY PARTNERSHIP NHS,Third Party Payments,Private Contractor Fees,73375-IN PATIENT BEDS,"74,970.00",Revenue,20/04/2015,Social Care & Inclusion
WC55-0600,BLACKHEATH PRIMARY SCHOOL,Transfer Payments,Transfer Payments,77300-ISB-FORMULA ALLOCATION,300.00,Revenue,08/04/2015,Childrens
WC55-0601,BLACKHEATH PRIMARY SCHOOL,Transfer Payments,Transfer Payments,77300-ISB-FORMULA ALLOCATION,350.00,Revenue,10/04/2015,Childrens
WC55-0602,BLAKENALL HEATH JMI SCHOOL,Third Party Payments,Grants to Other Orgs,66502-TOP UP FUNDING -GRANTS TO SCHOOLS,"4,038.45",Revenue,28/04/2015,Childrens
WC55-0603,BLAKENALL HEATH JMI SCHOOL,Transfer Payments,Transfer Payments,77302-ISB-SCHOOL STANDARDS GRANT,"55,755.00",Revenue,22/04/2015,Childrens
WC55-0604,BLAKENALL HEATH JMI SCHOOL,Transfer Payments,Transfer Payments,77300-ISB-FORMULA ALLOCATION,"88,933.93",Revenue,14/04/2015,Childrens
WC55-0605,BLOXWICH COMMUNITY PARTNERSHIP.,Supplies & Services,Other Supplies & Services,62515-MISCELLANEOUS SUPPLIES,634.81,Revenue,28/04/2015,Neighbourhood Services
WC55-0606,BLOXWICH RADIO TAXIS,Transport,Hire,52000-WITH DRIVER-HIRE OF VEHICLES,750.00,Revenue,16/04/2015,Childrens
WC55-0607,BLOXWICH RADIO TAXIS,Transport,Hire,52000-WITH DRIVER-HIRE OF VEHICLES,776.40,Revenue,16/04/2015,Childrens
WC55-0608,BLUE COAT CHURCH OF ENGLAND ACADEMY,Third Party Payments,Grants to Other Orgs,66502-TOP UP FUNDING -GRANTS TO SCHOOLS,"3,778.85",Revenue,02/04/2015,Childrens
WC55-0609,BLUE GIRAFFE CHILDCARE,Third Party Payments,Grants to Other Orgs,66505-OTHER-GRANTS TO OTHER ORGS,"8,677.31",Revenue,13/04/2015,Childrens
WC55-0610,BLUE GIRAFFE CHILDCARE,Third Party Payments,Grants to Other Orgs,66505-OTHER-GRANTS TO OTHER ORGS,"9,053.00",Revenue,15/04/2015,Childrens
WC55-0611,BNP PARIBAS LEASE GROUP,Supplies & Services,"Equip,Furniture & Materials",60009-LEASING/HIRE/RENTAL-EQUIPMENT,479.74,Revenue,21/04/2015,Social Care & Inclusion
WC55-0612,BOC LTD,Supplies & Services,"Equip,Furniture & Materials",60500-GENERAL MATERIALS,579.79,Revenue,16/04/2015,Neighbourhood Services
WC55-0613,BOLINDA UK LTD,Supplies & Services,"Equip,Furniture & Materials",60501-LIBRARY BOOKS,392.69,Revenue,14/04/2015,Neighbourhood Services
WC55-0614,BOLINDA UK LTD,Supplies & Services,"Equip,Furniture & Materials",60501-LIBRARY BOOKS,518.23,Revenue,17/04/2015,Neighbourhood Services
WC55-0615,BOLINDA UK LTD,Supplies & Services,"Equip,Furniture & Materials",60501-LIBRARY BOOKS,"1,131.67",Revenue,14/04/2015,Neighbourhood Services
WC55-0616,BONINGALE NURSERIES,Capital,Capital,01028-OTHER PURCHASE COSTS,72.48,Capital,22/04/2015,Neighbourhood Services
WC55-0617,BONINGALE NURSERIES,Supplies & Services,"Equip,Furniture & Materials",60500-GENERAL MATERIALS,300.00,Revenue,22/04/2015,Neighbourhood Services
WC55-0618,BONINGALE NURSERIES,Supplies & Services,"Equip,Furniture & Materials",60500-GENERAL MATERIALS,"1,999.00",Revenue,22/04/2015,Neighbourhood Services
WC55-0619,BOOTS UK LIMITED,Supplies & Services,Services,63000-PROFESSIONAL FEES AND SERVICES,296.63,Revenue,28/04/2015,Neighbourhood Services
WC55-0620,BOOTS UK LIMITED,Supplies & Services,Services,63000-PROFESSIONAL FEES AND SERVICES,330.50,Revenue,28/04/2015,Neighbourhood Services
WC55-0621,BOOTS UK LIMITED,Supplies & Services,Services,63000-PROFESSIONAL FEES AND SERVICES,348.50,Revenue,14/04/2015,Neighbourhood Services
WC55-0622,BOOTS UK LIMITED,Supplies & Services,Services,63102-CONSULTANTS FEES - CORPORATE,374.00,Revenue,28/04/2015,Neighbourhood Services
WC55-0623,BORN TO PERFORM,Supplies & Services,Other Supplies & Services,62515-MISCELLANEOUS SUPPLIES,450.00,Revenue,22/04/2015,Regeneration
WC55-0624,BOULTON TRAVEL LIMITED,Transport,Hire,52000-WITH DRIVER-HIRE OF VEHICLES,"2,260.00",Revenue,20/04/2015,Childrens
WC55-0625,BOULTON TRAVEL LIMITED,Transport,Hire,52000-WITH DRIVER-HIRE OF VEHICLES,"2,440.00",Revenue,20/04/2015,Childrens
WC55-0626,BRADLEY ENVIRONMENTAL,Third Party Payments,Private Contractor Fees,73007-SAMPLING FEES-PRIV CONTRACTOR FEES,900.00,Revenue,21/04/2015,Regeneration
WC55-0627,BRADLEY ENVIRONMENTAL,Third Party Payments,Private Contractor Fees,73007-SAMPLING FEES-PRIV CONTRACTOR FEES,900.00,Revenue,23/04/2015,Regeneration
WC55-0628,BRAMBLE HUB LIMITED,Supplies & Services,Communications & Computing,63820-RECHARGE FOR MAINTENANCE/APPLICATION COSTS-COMPUTER,"19,127.35",Revenue,21/04/2015,Resources
WC55-0629,BRELMAYNE LTD,Supplies & Services,"Equip,Furniture & Materials",60008-MAINTENANCE-FURNITURE & EQUIPMENT,48.16,Revenue,21/04/2015,Neighbourhood Services
WC55-0630,BRELMAYNE LTD,Supplies & Services,"Equip,Furniture & Materials",60008-MAINTENANCE-FURNITURE & EQUIPMENT,50.34,Revenue,21/04/2015,Neighbourhood Services
WC55-0631,BRELMAYNE LTD,Supplies & Services,"Equip,Furniture & Materials",60008-MAINTENANCE-FURNITURE & EQUIPMENT,68.94,Revenue,21/04/2015,Neighbourhood Services
WC55-0632,BRELMAYNE LTD,Supplies & Services,"Equip,Furniture & Materials",60008-MAINTENANCE-FURNITURE & EQUIPMENT,69.71,Revenue,21/04/2015,Neighbourhood Services
WC55-0633,BRELMAYNE LTD,Supplies & Services,"Equip,Furniture & Materials",60008-MAINTENANCE-FURNITURE & EQUIPMENT,129.22,Revenue,21/04/2015,Neighbourhood Services
WC55-0634,BRELMAYNE LTD,Supplies & Services,"Equip,Furniture & Materials",60008-MAINTENANCE-FURNITURE & EQUIPMENT,130.96,Revenue,21/04/2015,Neighbourhood Services
WC55-0635,BRELMAYNE LTD,Supplies & Services,"Equip,Furniture & Materials",60008-MAINTENANCE-FURNITURE & EQUIPMENT,146.46,Revenue,21/04/2015,Neighbourhood Services
WC55-0636,BRELMAYNE LTD,Supplies & Services,"Equip,Furniture & Materials",60008-MAINTENANCE-FURNITURE & EQUIPMENT,160.53,Revenue,21/04/2015,Neighbourhood Services
WC55-0637,BRELMAYNE LTD,Supplies & Services,"Equip,Furniture & Materials",60008-MAINTENANCE-FURNITURE & EQUIPMENT,198.68,Revenue,21/04/2015,Neighbourhood Services
WC55-0638,BRELMAYNE LTD,Supplies & Services,"Equip,Furniture & Materials",60008-MAINTENANCE-FURNITURE & EQUIPMENT,237.50,Revenue,21/04/2015,Neighbourhood Services
WC55-0639,BRELMAYNE LTD,Third Party Payments,Private Contractor Fees,73025-PROFESSIONAL SERVICES-PRIV CONTRACTOR & OTHER AGENCIES,250.51,Revenue,28/04/2015,Regeneration
WC55-0640,BRELMAYNE LTD,Supplies & Services,"Equip,Furniture & Materials",60008-MAINTENANCE-FURNITURE & EQUIPMENT,251.89,Revenue,21/04/2015,Neighbourhood Services
WC55-0641,BRELMAYNE LTD,Supplies & Services,"Equip,Furniture & Materials",60008-MAINTENANCE-FURNITURE & EQUIPMENT,252.50,Revenue,13/04/2015,Neighbourhood Services
WC55-0642,BRELMAYNE LTD,Capital,Capital,01006-SITE WORKS MAIN CONTRACTORS,260.68,Capital,28/04/2015,Regeneration
WC55-0643,BRELMAYNE LTD,Capital,Capital,01006-SITE WORKS MAIN CONTRACTORS,263.85,Capital,08/04/2015,Regeneration
WC55-0644,BRELMAYNE LTD,Premises,Premises-Repairs & Maintenance,"40000-REPAIRS,ALTERATIONS & MAINTENANCE-PREM",267.77,Revenue,21/04/2015,Regeneration
WC55-0645,BRELMAYNE LTD,Third Party Payments,Private Contractor Fees,73025-PROFESSIONAL SERVICES-PRIV CONTRACTOR & OTHER AGENCIES,278.20,Revenue,08/04/2015,Regeneration
WC55-0646,BRELMAYNE LTD,Third Party Payments,Private Contractor Fees,73025-PROFESSIONAL SERVICES-PRIV CONTRACTOR & OTHER AGENCIES,279.26,Revenue,23/04/2015,Regeneration
WC55-0647,BRELMAYNE LTD,Capital,Capital,01006-SITE WORKS MAIN CONTRACTORS,282.30,Capital,08/04/2015,Regeneration
WC55-0648,BRELMAYNE LTD,Premises,Premises-Repairs & Maintenance,"40000-REPAIRS,ALTERATIONS & MAINTENANCE-PREM",296.71,Revenue,14/04/2015,Regeneration
WC55-0649,BRELMAYNE LTD,Premises,Premises-Repairs & Maintenance,"40000-REPAIRS,ALTERATIONS & MAINTENANCE-PREM",301.57,Revenue,14/04/2015,Regeneration
WC55-0650,BRELMAYNE LTD,Third Party Payments,Private Contractor Fees,73025-PROFESSIONAL SERVICES-PRIV CONTRACTOR & OTHER AGENCIES,306.85,Revenue,21/04/2015,Regeneration
WC55-0651,BRELMAYNE LTD,Capital,Capital,01006-SITE WORKS MAIN CONTRACTORS,311.45,Capital,08/04/2015,Regeneration
WC55-0652,BRELMAYNE LTD,Premises,Premises-Repairs & Maintenance,"40000-REPAIRS,ALTERATIONS & MAINTENANCE-PREM",322.52,Revenue,24/04/2015,Regeneration
WC55-0653,BRELMAYNE LTD,Premises,Premises-Repairs & Maintenance,"40000-REPAIRS,ALTERATIONS & MAINTENANCE-PREM",324.45,Revenue,21/04/2015,Regeneration
WC55-0654,BRELMAYNE LTD,Premises,Premises-Repairs & Maintenance,"40000-REPAIRS,ALTERATIONS & MAINTENANCE-PREM",335.93,Revenue,08/04/2015,Regeneration
WC55-0655,BRELMAYNE LTD,Third Party Payments,Private Contractor Fees,73025-PROFESSIONAL SERVICES-PRIV CONTRACTOR & OTHER AGENCIES,338.92,Revenue,08/04/2015,Regeneration
WC55-0656,BRELMAYNE LTD,Third Party Payments,Private Contractor Fees,73025-PROFESSIONAL SERVICES-PRIV CONTRACTOR & OTHER AGENCIES,347.22,Revenue,24/04/2015,Regeneration
WC55-0657,BRELMAYNE LTD,Third Party Payments,Private Contractor Fees,73025-PROFESSIONAL SERVICES-PRIV CONTRACTOR & OTHER AGENCIES,362.75,Revenue,28/04/2015,Regeneration
WC55-0658,BRELMAYNE LTD,Third Party Payments,Private Contractor Fees,73025-PROFESSIONAL SERVICES-PRIV CONTRACTOR & OTHER AGENCIES,369.27,Revenue,24/04/2015,Regeneration
WC55-0659,BRELMAYNE LTD,Third Party Payments,Private Contractor Fees,73025-PROFESSIONAL SERVICES-PRIV CONTRACTOR & OTHER AGENCIES,369.51,Revenue,23/04/2015,Regeneration
WC55-0660,BRELMAYNE LTD,Capital,Capital,01006-SITE WORKS MAIN CONTRACTORS,374.26,Capital,23/04/2015,Regeneration
WC55-0661,BRELMAYNE LTD,Third Party Payments,Private Contractor Fees,73025-PROFESSIONAL SERVICES-PRIV CONTRACTOR & OTHER AGENCIES,380.85,Revenue,24/04/2015,Regeneration
WC55-0662,BRELMAYNE LTD,Premises,Premises-Repairs & Maintenance,"40000-REPAIRS,ALTERATIONS & MAINTENANCE-PREM",398.00,Revenue,08/04/2015,Regeneration
WC55-0663,BRELMAYNE LTD,Third Party Payments,Private Contractor Fees,73025-PROFESSIONAL SERVICES-PRIV CONTRACTOR & OTHER AGENCIES,420.93,Revenue,21/04/2015,Regeneration
WC55-0664,BRELMAYNE LTD,Premises,Premises-Repairs & Maintenance,"40000-REPAIRS,ALTERATIONS & MAINTENANCE-PREM",423.72,Revenue,21/04/2015,Regeneration
WC55-0665,BRELMAYNE LTD,Capital,Capital,01006-SITE WORKS MAIN CONTRACTORS,424.46,Capital,24/04/2015,Regeneration
WC55-0666,BRELMAYNE LTD,Supplies & Services,"Equip,Furniture & Materials",60008-MAINTENANCE-FURNITURE & EQUIPMENT,426.93,Revenue,21/04/2015,Neighbourhood Services
WC55-0667,BRELMAYNE LTD,Premises,Premises-Repairs & Maintenance,"40000-REPAIRS,ALTERATIONS & MAINTENANCE-PREM",438.00,Revenue,24/04/2015,Regeneration
WC55-0668,BRELMAYNE LTD,Premises,Premises-Repairs & Maintenance,"40000-REPAIRS,ALTERATIONS & MAINTENANCE-PREM",462.24,Revenue,08/04/2015,Regeneration
WC55-0669,BRELMAYNE LTD,Capital,Capital,01006-SITE WORKS MAIN CONTRACTORS,476.39,Capital,23/04/2015,Regeneration
WC55-0670,BRELMAYNE LTD,Third Party Payments,Private Contractor Fees,73025-PROFESSIONAL SERVICES-PRIV CONTRACTOR & OTHER AGENCIES,481.11,Revenue,08/04/2015,Regeneration
WC55-0671,BRELMAYNE LTD,Capital,Capital,01006-SITE WORKS MAIN CONTRACTORS,593.82,Capital,08/04/2015,Regeneration
WC55-0672,BRELMAYNE LTD,Premises,Premises-Repairs & Maintenance,"40000-REPAIRS,ALTERATIONS & MAINTENANCE-PREM",599.64,Revenue,02/04/2015,Regeneration
WC55-0673,BRELMAYNE LTD,Third Party Payments,Private Contractor Fees,73025-PROFESSIONAL SERVICES-PRIV CONTRACTOR & OTHER AGENCIES,602.57,Revenue,24/04/2015,Regeneration
WC55-0674,BRELMAYNE LTD,Capital,Capital,01006-SITE WORKS MAIN CONTRACTORS,608.82,Capital,14/04/2015,Regeneration
WC55-0675,BRELMAYNE LTD,Third Party Payments,Private Contractor Fees,73025-PROFESSIONAL SERVICES-PRIV CONTRACTOR & OTHER AGENCIES,637.04,Revenue,24/04/2015,Regeneration
WC55-0676,BRELMAYNE LTD,Capital,Capital,01006-SITE WORKS MAIN CONTRACTORS,654.87,Capital,24/04/2015,Regeneration
WC55-0677,BRELMAYNE LTD,Capital,Capital,01006-SITE WORKS MAIN CONTRACTORS,663.39,Capital,24/04/2015,Regeneration
WC55-0678,BRELMAYNE LTD,Third Party Payments,Private Contractor Fees,73025-PROFESSIONAL SERVICES-PRIV CONTRACTOR & OTHER AGENCIES,761.25,Revenue,28/04/2015,Regeneration
WC55-0679,BRELMAYNE LTD,Third Party Payments,Private Contractor Fees,73025-PROFESSIONAL SERVICES-PRIV CONTRACTOR & OTHER AGENCIES,778.00,Revenue,02/04/2015,Regeneration
WC55-0680,BRELMAYNE LTD,Capital,Capital,01006-SITE WORKS MAIN CONTRACTORS,848.19,Capital,08/04/2015,Regeneration
WC55-0681,BRELMAYNE LTD,Third Party Payments,Private Contractor Fees,73025-PROFESSIONAL SERVICES-PRIV CONTRACTOR & OTHER AGENCIES,890.60,Revenue,28/04/2015,Regeneration
WC55-0682,BRELMAYNE LTD,Premises,Premises-Repairs & Maintenance,"40000-REPAIRS,ALTERATIONS & MAINTENANCE-PREM","1,047.54",Revenue,24/04/2015,Regeneration
WC55-0683,BRELMAYNE LTD,Capital,Capital,01006-SITE WORKS MAIN CONTRACTORS,"1,083.87",Capital,14/04/2015,Regeneration
WC55-0684,BRELMAYNE LTD,Premises,Premises-Repairs & Maintenance,"40000-REPAIRS,ALTERATIONS & MAINTENANCE-PREM","1,367.12",Revenue,08/04/2015,Regeneration
WC55-0685,BRELMAYNE LTD,Supplies & Services,"Equip,Furniture & Materials",60008-MAINTENANCE-FURNITURE & EQUIPMENT,"1,460.85",Revenue,02/04/2015,Neighbourhood Services
WC55-0686,BRELMAYNE LTD,Third Party Payments,Private Contractor Fees,73025-PROFESSIONAL SERVICES-PRIV CONTRACTOR & OTHER AGENCIES,"1,671.41",Revenue,24/04/2015,Regeneration
WC55-0687,BRELMAYNE LTD,Supplies & Services,"Equip,Furniture & Materials",60006-NEW-FURNITURE & EQUIPMENT,"2,921.37",Revenue,21/04/2015,Neighbourhood Services
WC55-0688,BRELMAYNE LTD,Premises,Premises-Repairs & Maintenance,"40000-REPAIRS,ALTERATIONS & MAINTENANCE-PREM","4,266.36",Revenue,14/04/2015,Regeneration
WC55-0689,BRELMAYNE LTD,Third Party Payments,Private Contractor Fees,73025-PROFESSIONAL SERVICES-PRIV CONTRACTOR & OTHER AGENCIES,"5,373.30",Revenue,24/04/2015,Regeneration
WC55-0690,BRELMAYNE LTD,Third Party Payments,Private Contractor Fees,73025-PROFESSIONAL SERVICES-PRIV CONTRACTOR & OTHER AGENCIES,"9,600.00",Revenue,28/04/2015,Regeneration
WC55-0691,REDACTED,Transfer Payments,Transfer Payments,76422-DIRECT PAYMENTS TO SOCIAL SERVICES CLIENTS,440.00,Revenue,14/04/2015,Social Care & Inclusion
WC55-0692,REDACTED,Third Party Payments,Private Contractor Fees,74006-HOLIDAY/CHRISTMAS ALLOWANCE-FOSTER CARERS-OTH AGENCY PROVISION,"1,301.84",Revenue,27/04/2015,Childrens
WC55-0693,REDACTED,Supplies & Services,Other Supplies & Services,62515-MISCELLANEOUS SUPPLIES,"1,555.14",Revenue,27/04/2015,Childrens
WC55-0694,REDACTED,Transfer Payments,Transfer Payments,76422-DIRECT PAYMENTS TO SOCIAL SERVICES CLIENTS,544.00,Revenue,14/04/2015,Social Care & Inclusion
WC55-0695,REDACTED,Third Party Payments,Private Contractor Fees,73374-SUPPORTED & OTHER ACCOMMODATION,"2,935.24",Revenue,21/04/2015,Social Care & Inclusion
WC55-0696,REDACTED,Transfer Payments,Transfer Payments,76422-DIRECT PAYMENTS TO SOCIAL SERVICES CLIENTS,493.20,Revenue,14/04/2015,Social Care & Inclusion
WC55-0697,REDACTED,Transfer Payments,Transfer Payments,76422-DIRECT PAYMENTS TO SOCIAL SERVICES CLIENTS,"1,294.80",Revenue,14/04/2015,Social Care & Inclusion
WC55-0698,REDACTED,Transfer Payments,Transfer Payments,76422-DIRECT PAYMENTS TO SOCIAL SERVICES CLIENTS,697.00,Revenue,14/04/2015,Social Care & Inclusion
WC55-0699,REDACTED,Transfer Payments,Transfer Payments,76422-DIRECT PAYMENTS TO SOCIAL SERVICES CLIENTS,"1,039.79",Revenue,14/04/2015,Social Care & Inclusion
WC55-0700,BRISTOW & SUTOR,Supplies & Services,Services,63102-CONSULTANTS FEES - CORPORATE,857.39,Revenue,13/04/2015,Resources
WC55-0701,BRITISH GAS BUSINESS,Premises,Utilities,42000-GAS-ENERGY COSTS,185.55,Revenue,16/04/2015,Regeneration
WC55-0702,BRITISH GAS BUSINESS,Premises,Utilities,42000-GAS-ENERGY COSTS,376.88,Revenue,24/04/2015,Childrens
WC55-0703,BRITISH GAS BUSINESS,Premises,Utilities,42000-GAS-ENERGY COSTS,403.27,Revenue,16/04/2015,Regeneration
WC55-0704,BRITISH GAS BUSINESS,Premises,Utilities,42001-GAS METERED-ENERGY COSTS,425.80,Revenue,27/04/2015,Childrens
WC55-0705,BRITISH GAS BUSINESS,Premises,Utilities,42000-GAS-ENERGY COSTS,435.26,Revenue,23/04/2015,Childrens
WC55-0706,BRITISH GAS BUSINESS,Premises,Utilities,42000-GAS-ENERGY COSTS,"1,522.93",Revenue,29/04/2015,Regeneration
WC55-0707,BRITISH GAS BUSINESS,Premises,Utilities,42000-GAS-ENERGY COSTS,"4,820.62",Revenue,16/04/2015,Regeneration
WC55-0708,BRITISH GAS BUSINESS,Premises,Utilities,42000-GAS-ENERGY COSTS,"7,063.58",Revenue,21/04/2015,Childrens
WC55-0709,BRITISH GAS BUSINESS,Premises,Utilities,42000-GAS-ENERGY COSTS,"8,904.43",Revenue,16/04/2015,Regeneration
WC55-0710,BRITISH GAS BUSINESS,Premises,Utilities,42000-GAS-ENERGY COSTS,"12,506.85",Revenue,16/04/2015,Regeneration
WC55-0711,BRITISH GAS BUSINESS,Premises,Utilities,42000-GAS-ENERGY COSTS,"26,721.90",Revenue,16/04/2015,Regeneration
WC55-0712,BRITISH HGV TRAINING GROUP,Employees,Training,30030-EXTERNAL TRAINING,"2,220.00",Revenue,02/04/2015,Neighbourhood Services
WC55-0713,BRITISH HGV TRAINING GROUP,Employees,Training,30030-EXTERNAL TRAINING,"4,255.00",Revenue,02/04/2015,Neighbourhood Services
WC55-0714,BRITISH RED CROSS,Supplies & Services,Services,63000-PROFESSIONAL FEES AND SERVICES,250.00,Revenue,10/04/2015,Neighbourhood Services
WC55-0715,BROADOAK CARE,Third Party Payments,Private Contractor Fees,73373-RESIDENTIAL & NURSING CARE PLACEMENTS,"1,354.00",Revenue,15/04/2015,Social Care & Inclusion
WC55-0716,BROADOAK CARE,Third Party Payments,Private Contractor Fees,73373-RESIDENTIAL & NURSING CARE PLACEMENTS,"1,354.01",Revenue,15/04/2015,Social Care & Inclusion
WC55-0717,BROADOAK CARE,Third Party Payments,Private Contractor Fees,73373-RESIDENTIAL & NURSING CARE PLACEMENTS,"1,354.01",Revenue,15/04/2015,Social Care & Inclusion
WC55-0718,BROADOAK CARE,Third Party Payments,Private Contractor Fees,73373-RESIDENTIAL & NURSING CARE PLACEMENTS,"1,424.50",Revenue,15/04/2015,Social Care & Inclusion
WC55-0719,BROADOAK CARE,Third Party Payments,Private Contractor Fees,73373-RESIDENTIAL & NURSING CARE PLACEMENTS,"1,424.50",Revenue,15/04/2015,Social Care & Inclusion
WC55-0720,BROADOAK CARE,Third Party Payments,Private Contractor Fees,73373-RESIDENTIAL & NURSING CARE PLACEMENTS,"1,424.50",Revenue,15/04/2015,Social Care & Inclusion
WC55-0721,BROADOAK CARE,Third Party Payments,Private Contractor Fees,73373-RESIDENTIAL & NURSING CARE PLACEMENTS,"1,424.50",Revenue,15/04/2015,Social Care & Inclusion
WC55-0722,BROADOAK CARE,Third Party Payments,Private Contractor Fees,73373-RESIDENTIAL & NURSING CARE PLACEMENTS,"1,424.50",Revenue,15/04/2015,Social Care & Inclusion
WC55-0723,BROADOAK CARE,Third Party Payments,Private Contractor Fees,73373-RESIDENTIAL & NURSING CARE PLACEMENTS,"1,424.50",Revenue,15/04/2015,Social Care & Inclusion
WC55-0724,BROADOAK CARE,Third Party Payments,Private Contractor Fees,73373-RESIDENTIAL & NURSING CARE PLACEMENTS,"1,424.50",Revenue,15/04/2015,Social Care & Inclusion
WC55-0725,BROADOAK CARE,Third Party Payments,Private Contractor Fees,73373-RESIDENTIAL & NURSING CARE PLACEMENTS,"1,424.50",Revenue,15/04/2015,Social Care & Inclusion
WC55-0726,BROADOAK CARE,Third Party Payments,Private Contractor Fees,73373-RESIDENTIAL & NURSING CARE PLACEMENTS,"1,424.50",Revenue,15/04/2015,Social Care & Inclusion
WC55-0727,BROADOAK CARE,Third Party Payments,Private Contractor Fees,73373-RESIDENTIAL & NURSING CARE PLACEMENTS,"1,424.50",Revenue,15/04/2015,Social Care & Inclusion
WC55-0728,BROADOAK CARE,Third Party Payments,Private Contractor Fees,73373-RESIDENTIAL & NURSING CARE PLACEMENTS,"1,424.54",Revenue,15/04/2015,Social Care & Inclusion
WC55-0729,BROADOAK CARE,Third Party Payments,Private Contractor Fees,73373-RESIDENTIAL & NURSING CARE PLACEMENTS,"1,424.54",Revenue,15/04/2015,Social Care & Inclusion
WC55-0730,BROADOAK CARE,Third Party Payments,Private Contractor Fees,73373-RESIDENTIAL & NURSING CARE PLACEMENTS,"1,424.54",Revenue,15/04/2015,Social Care & Inclusion
WC55-0731,BROADOAK CARE,Third Party Payments,Private Contractor Fees,73373-RESIDENTIAL & NURSING CARE PLACEMENTS,"1,424.54",Revenue,15/04/2015,Social Care & Inclusion
WC55-0732,BROADOAK CARE,Third Party Payments,Private Contractor Fees,73373-RESIDENTIAL & NURSING CARE PLACEMENTS,"1,424.54",Revenue,15/04/2015,Social Care & Inclusion
WC55-0733,BROADOAK CARE,Third Party Payments,Private Contractor Fees,73373-RESIDENTIAL & NURSING CARE PLACEMENTS,"1,424.54",Revenue,15/04/2015,Social Care & Inclusion
WC55-0734,BROADWAY PHARMACY,Supplies & Services,Services,63000-PROFESSIONAL FEES AND SERVICES,159.30,Revenue,29/04/2015,Neighbourhood Services
WC55-0735,BROADWAY PHARMACY,Supplies & Services,Services,63000-PROFESSIONAL FEES AND SERVICES,220.00,Revenue,29/04/2015,Neighbourhood Services
WC55-0736,BROADWAY PHARMACY,Third Party Payments,Joint Arrangements,71007-CONTRIBUTION TO PCT,294.06,Revenue,29/04/2015,Neighbourhood Services
WC55-0737,BROADWAY TRAVEL CONNECTIONS,Transport,Hire,52000-WITH DRIVER-HIRE OF VEHICLES,"1,600.00",Revenue,21/04/2015,Childrens
WC55-0738,BROADWAY TRAVEL CONNECTIONS,Transport,Hire,52000-WITH DRIVER-HIRE OF VEHICLES,"2,240.00",Revenue,08/04/2015,Childrens
WC55-0739,BROOK DESIGN HARDWARE LTD T/A BROOKVENT,Supplies & Services,"Equip,Furniture & Materials",60500-GENERAL MATERIALS,"10,368.27",Revenue,09/04/2015,Social Care & Inclusion
WC55-0740,BROWNE JACOBSON SOLICITORS,Third Party Payments,Private Contractor Fees,73025-PROFESSIONAL SERVICES-PRIV CONTRACTOR & OTHER AGENCIES,850.00,Revenue,10/04/2015,Regeneration
WC55-0741,BROWNHILLS ASPHALT TARMACADAM,Third Party Payments,Private Contractor Fees,73025-PROFESSIONAL SERVICES-PRIV CONTRACTOR & OTHER AGENCIES,300.00,Revenue,08/04/2015,Regeneration
WC55-0742,BROWNHILLS ASPHALT TARMACADAM,Third Party Payments,Private Contractor Fees,73025-PROFESSIONAL SERVICES-PRIV CONTRACTOR & OTHER AGENCIES,400.00,Revenue,23/04/2015,Regeneration
WC55-0743,BROWNHILLS ASPHALT TARMACADAM,Third Party Payments,Private Contractor Fees,73025-PROFESSIONAL SERVICES-PRIV CONTRACTOR & OTHER AGENCIES,420.00,Revenue,23/04/2015,Regeneration
WC55-0744,BROWNHILLS ASPHALT TARMACADAM,Premises,Premises-Repairs & Maintenance,"40000-REPAIRS,ALTERATIONS & MAINTENANCE-PREM",430.00,Revenue,29/04/2015,Regeneration
WC55-0745,BROWNHILLS ASPHALT TARMACADAM,Third Party Payments,Private Contractor Fees,73025-PROFESSIONAL SERVICES-PRIV CONTRACTOR & OTHER AGENCIES,492.00,Revenue,24/04/2015,Regeneration
WC55-0746,BROWNHILLS ASPHALT TARMACADAM,Premises,Premises-Repairs & Maintenance,"40000-REPAIRS,ALTERATIONS & MAINTENANCE-PREM",525.00,Revenue,02/04/2015,Regeneration
WC55-0747,BROWNHILLS ASPHALT TARMACADAM,Capital,Capital,01005-ARCHITECTS INSTRUCTION,588.00,Capital,09/04/2015,Childrens
WC55-0748,BROWNHILLS ASPHALT TARMACADAM,Supplies & Services,"Equip,Furniture & Materials",60008-MAINTENANCE-FURNITURE & EQUIPMENT,630.00,Revenue,08/04/2015,Neighbourhood Services
WC55-0749,BROWNHILLS ASPHALT TARMACADAM,Premises,Premises-Repairs & Maintenance,"40000-REPAIRS,ALTERATIONS & MAINTENANCE-PREM",675.00,Revenue,02/04/2015,Neighbourhood Services
WC55-0750,BROWNHILLS ASPHALT TARMACADAM,Capital,Capital,01005-ARCHITECTS INSTRUCTION,796.00,Capital,09/04/2015,Childrens
WC55-0751,BROWNHILLS ASPHALT TARMACADAM,Third Party Payments,Private Contractor Fees,73025-PROFESSIONAL SERVICES-PRIV CONTRACTOR & OTHER AGENCIES,918.00,Revenue,21/04/2015,Resources
WC55-0752,BROWNHILLS ASPHALT TARMACADAM,Third Party Payments,Private Contractor Fees,73025-PROFESSIONAL SERVICES-PRIV CONTRACTOR & OTHER AGENCIES,"1,100.00",Revenue,28/04/2015,Regeneration
WC55-0753,BROWNHILLS ASPHALT TARMACADAM,Third Party Payments,Private Contractor Fees,73025-PROFESSIONAL SERVICES-PRIV CONTRACTOR & OTHER AGENCIES,"1,120.00",Revenue,24/04/2015,Regeneration
WC55-0754,BROWNHILLS ASPHALT TARMACADAM,Third Party Payments,Private Contractor Fees,73025-PROFESSIONAL SERVICES-PRIV CONTRACTOR & OTHER AGENCIES,"1,200.00",Revenue,21/04/2015,Regeneration
WC55-0755,BROWNHILLS ASPHALT TARMACADAM,Third Party Payments,Private Contractor Fees,73025-PROFESSIONAL SERVICES-PRIV CONTRACTOR & OTHER AGENCIES,"1,350.00",Revenue,24/04/2015,Regeneration
WC55-0756,BROWNHILLS ASPHALT TARMACADAM,Third Party Payments,Private Contractor Fees,73025-PROFESSIONAL SERVICES-PRIV CONTRACTOR & OTHER AGENCIES,"1,538.00",Revenue,22/04/2015,Regeneration
WC55-0757,BROWNHILLS ASPHALT TARMACADAM,Capital,Capital,01006-SITE WORKS MAIN CONTRACTORS,"1,546.00",Capital,15/04/2015,Childrens
WC55-0758,BROWNHILLS ASPHALT TARMACADAM,Supplies & Services,"Equip,Furniture & Materials",60500-GENERAL MATERIALS,"1,700.00",Revenue,16/04/2015,Neighbourhood Services
WC55-0759,BROWNHILLS ASPHALT TARMACADAM,Capital,Capital,01006-SITE WORKS MAIN CONTRACTORS,"1,716.00",Capital,16/04/2015,Neighbourhood Services
WC55-0760,BROWNHILLS ASPHALT TARMACADAM,Premises,Premises-Repairs & Maintenance,"40000-REPAIRS,ALTERATIONS & MAINTENANCE-PREM","1,790.00",Revenue,24/04/2015,Regeneration
WC55-0761,BROWNHILLS ASPHALT TARMACADAM,Capital,Capital,01006-SITE WORKS MAIN CONTRACTORS,"1,837.00",Capital,16/04/2015,Neighbourhood Services
WC55-0762,BROWNHILLS ASPHALT TARMACADAM,Capital,Capital,01005-ARCHITECTS INSTRUCTION,"1,914.00",Capital,08/04/2015,Childrens
WC55-0763,BROWNHILLS ASPHALT TARMACADAM,Third Party Payments,Private Contractor Fees,73025-PROFESSIONAL SERVICES-PRIV CONTRACTOR & OTHER AGENCIES,"1,940.00",Revenue,28/04/2015,Regeneration
WC55-0764,BROWNHILLS ASPHALT TARMACADAM,Capital,Capital,01005-ARCHITECTS INSTRUCTION,"2,070.00",Capital,09/04/2015,Childrens
WC55-0765,BROWNHILLS ASPHALT TARMACADAM,Capital,Capital,01005-ARCHITECTS INSTRUCTION,"2,225.00",Capital,08/04/2015,Childrens
WC55-0766,BROWNHILLS ASPHALT TARMACADAM,Capital,Capital,01006-SITE WORKS MAIN CONTRACTORS,"2,400.00",Capital,24/04/2015,Childrens
WC55-0767,BROWNHILLS ASPHALT TARMACADAM,Premises,Premises-Repairs & Maintenance,"40000-REPAIRS,ALTERATIONS & MAINTENANCE-PREM","2,650.00",Revenue,24/04/2015,Regeneration
WC55-0768,BROWNHILLS ASPHALT TARMACADAM,Premises,Premises-Repairs & Maintenance,"40000-REPAIRS,ALTERATIONS & MAINTENANCE-PREM","2,700.00",Revenue,02/04/2015,Neighbourhood Services
WC55-0769,BROWNHILLS ASPHALT TARMACADAM,Third Party Payments,Private Contractor Fees,73025-PROFESSIONAL SERVICES-PRIV CONTRACTOR & OTHER AGENCIES,"2,790.00",Revenue,08/04/2015,Neighbourhood Services
WC55-0770,BROWNHILLS ASPHALT TARMACADAM,Capital,Capital,01006-SITE WORKS MAIN CONTRACTORS,"3,180.00",Capital,02/04/2015,Neighbourhood Services
WC55-0771,BROWNHILLS ASPHALT TARMACADAM,Premises,Premises-Repairs & Maintenance,"40000-REPAIRS,ALTERATIONS & MAINTENANCE-PREM","3,985.00",Revenue,02/04/2015,Neighbourhood Services
WC55-0772,BROWNHILLS ASPHALT TARMACADAM,Capital,Capital,01006-SITE WORKS MAIN CONTRACTORS,"4,650.00",Capital,28/04/2015,Regeneration
WC55-0773,BROWNHILLS ASPHALT TARMACADAM,Capital,Capital,01006-SITE WORKS MAIN CONTRACTORS,"5,440.00",Capital,29/04/2015,Childrens
WC55-0774,BROWNHILLS ASPHALT TARMACADAM,Capital,Capital,01023-TECHNICAL ASSISTANTS TIME,"6,405.00",Capital,08/04/2015,Neighbourhood Services
WC55-0775,BROWNHILLS ASPHALT TARMACADAM,Premises,Premises-Repairs & Maintenance,"40000-REPAIRS,ALTERATIONS & MAINTENANCE-PREM","8,694.00",Revenue,02/04/2015,Neighbourhood Services
WC55-0776,BROWNHILLS ASPHALT TARMACADAM,Premises,Premises-Repairs & Maintenance,"40000-REPAIRS,ALTERATIONS & MAINTENANCE-PREM","17,445.00",Revenue,24/04/2015,Regeneration
WC55-0777,BROWNHILLS COMMUNITY ASSOCIATION,Third Party Payments,Grants to Other Orgs,66505-OTHER-GRANTS TO OTHER ORGS,"6,733.53",Revenue,13/04/2015,Childrens
WC55-0778,BROWNHILLS COMMUNITY ASSOCIATION,Third Party Payments,Grants to Other Orgs,66505-OTHER-GRANTS TO OTHER ORGS,"9,091.00",Revenue,15/04/2015,Childrens
WC55-0779,BROXAP LTD,Supplies & Services,"Equip,Furniture & Materials",60006-NEW-FURNITURE & EQUIPMENT,500.00,Revenue,02/04/2015,Neighbourhood Services
WC55-0780,REDACTED,Transfer Payments,Transfer Payments,76422-DIRECT PAYMENTS TO SOCIAL SERVICES CLIENTS,"1,445.00",Revenue,14/04/2015,Social Care & Inclusion
WC55-0781,B-SURE SECURITY SERVICES LTD,Premises,Premises-Repairs & Maintenance,"40000-REPAIRS,ALTERATIONS & MAINTENANCE-PREM",350.00,Revenue,27/04/2015,Regeneration
WC55-0782,B-SURE SECURITY SERVICES LTD,Premises,Premises-Repairs & Maintenance,"40000-REPAIRS,ALTERATIONS & MAINTENANCE-PREM","2,365.00",Revenue,24/04/2015,Regeneration
WC55-0783,BT,Supplies & Services,Communications & Computing,63602-COST OF RENTAL-TELEPHONES,223.19,Revenue,02/04/2015,Childrens
WC55-0784,BT,Supplies & Services,Communications & Computing,63603-COST OF CALLS-TELEPHONES,384.35,Revenue,02/04/2015,Childrens
WC55-0785,BT PLC,Supplies & Services,Communications & Computing,63603-COST OF CALLS-TELEPHONES,"1,350.15",Revenue,02/04/2015,Resources
WC55-0786,BT PLC,Supplies & Services,Communications & Computing,63601-COSTS (NOT INTERNAL RECHARGES)-TELEPHONES,"1,517.06",Revenue,21/04/2015,Resources
WC55-0787,BT PLC,Supplies & Services,Communications & Computing,63601-COSTS (NOT INTERNAL RECHARGES)-TELEPHONES,"12,929.10",Revenue,21/04/2015,Resources
WC55-0788,BT REDCARE,Third Party Payments,Private Contractor Fees,73025-PROFESSIONAL SERVICES-PRIV CONTRACTOR & OTHER AGENCIES,"4,656.11",Revenue,27/04/2015,Neighbourhood Services
WC55-0789,BUFFET EXPRESS LTD,Supplies & Services,Provisions,61305-CATERING,859.00,Revenue,01/04/2015,Childrens
WC55-0790,BUPA CARE HOMES (CFHCARE) LTD,Third Party Payments,Private Contractor Fees,73373-RESIDENTIAL & NURSING CARE PLACEMENTS,"1,458.00",Revenue,28/04/2015,Social Care & Inclusion
WC55-0791,BUPA CARE HOMES (CFHCARE) LTD,Third Party Payments,Private Contractor Fees,73373-RESIDENTIAL & NURSING CARE PLACEMENTS,"1,494.00",Revenue,28/04/2015,Social Care & Inclusion
WC55-0792,BUPA CARE HOMES (CFHCARE) LTD,Third Party Payments,Private Contractor Fees,73373-RESIDENTIAL & NURSING CARE PLACEMENTS,"3,060.92",Revenue,28/04/2015,Social Care & Inclusion
WC55-0793,BURNTWOOD COMPRESSOR SERVICES LIMITED,Premises,Premises-Repairs & Maintenance,"40000-REPAIRS,ALTERATIONS & MAINTENANCE-PREM",276.48,Revenue,14/04/2015,Regeneration
WC55-0794,BURNTWOOD COMPRESSOR SERVICES LIMITED,Premises,Premises-Repairs & Maintenance,"40000-REPAIRS,ALTERATIONS & MAINTENANCE-PREM","2,222.18",Revenue,24/04/2015,Regeneration
WC55-0795,BUSH HOME LTD,Third Party Payments,Private Contractor Fees,73373-RESIDENTIAL & NURSING CARE PLACEMENTS,365.10,Revenue,21/04/2015,Social Care & Inclusion
WC55-0796,BUSH HOME LTD,Third Party Payments,Private Contractor Fees,73373-RESIDENTIAL & NURSING CARE PLACEMENTS,383.53,Revenue,21/04/2015,Social Care & Inclusion
WC55-0797,BUSH HOME LTD,Third Party Payments,Private Contractor Fees,73373-RESIDENTIAL & NURSING CARE PLACEMENTS,383.53,Revenue,21/04/2015,Social Care & Inclusion
WC55-0798,BUSH HOME LTD,Third Party Payments,Private Contractor Fees,73373-RESIDENTIAL & NURSING CARE PLACEMENTS,417.26,Revenue,21/04/2015,Social Care & Inclusion
WC55-0799,BUSH HOME LTD,Third Party Payments,Private Contractor Fees,73373-RESIDENTIAL & NURSING CARE PLACEMENTS,730.20,Revenue,15/04/2015,Social Care & Inclusion
WC55-0800,BUSH HOME LTD,Third Party Payments,Private Contractor Fees,73373-RESIDENTIAL & NURSING CARE PLACEMENTS,"1,043.14",Revenue,21/04/2015,Social Care & Inclusion
WC55-0801,BUSH HOME LTD,Third Party Payments,Private Contractor Fees,73373-RESIDENTIAL & NURSING CARE PLACEMENTS,"1,314.96",Revenue,28/04/2015,Social Care & Inclusion
WC55-0802,BUSH HOME LTD,Third Party Payments,Private Contractor Fees,73373-RESIDENTIAL & NURSING CARE PLACEMENTS,"1,354.01",Revenue,15/04/2015,Social Care & Inclusion
WC55-0803,BUSH HOME LTD,Third Party Payments,Private Contractor Fees,73373-RESIDENTIAL & NURSING CARE PLACEMENTS,"1,356.08",Revenue,15/04/2015,Social Care & Inclusion
WC55-0804,BUSH HOME LTD,Third Party Payments,Private Contractor Fees,73373-RESIDENTIAL & NURSING CARE PLACEMENTS,"1,356.09",Revenue,15/04/2015,Social Care & Inclusion
WC55-0805,BUSH HOME LTD,Third Party Payments,Private Contractor Fees,73373-RESIDENTIAL & NURSING CARE PLACEMENTS,"1,356.09",Revenue,15/04/2015,Social Care & Inclusion
WC55-0806,BUSH HOME LTD,Third Party Payments,Private Contractor Fees,73373-RESIDENTIAL & NURSING CARE PLACEMENTS,"1,356.09",Revenue,21/04/2015,Social Care & Inclusion
WC55-0807,BUSH HOME LTD,Third Party Payments,Private Contractor Fees,73373-RESIDENTIAL & NURSING CARE PLACEMENTS,"1,424.54",Revenue,15/04/2015,Social Care & Inclusion
WC55-0808,BUSH HOME LTD,Third Party Payments,Private Contractor Fees,73373-RESIDENTIAL & NURSING CARE PLACEMENTS,"1,424.54",Revenue,15/04/2015,Social Care & Inclusion
WC55-0809,BUSH HOME LTD,Third Party Payments,Private Contractor Fees,73373-RESIDENTIAL & NURSING CARE PLACEMENTS,"1,424.54",Revenue,15/04/2015,Social Care & Inclusion
WC55-0810,BUSH HOME LTD,Third Party Payments,Private Contractor Fees,73373-RESIDENTIAL & NURSING CARE PLACEMENTS,"1,424.54",Revenue,15/04/2015,Social Care & Inclusion
WC55-0811,BUSH HOME LTD,Third Party Payments,Private Contractor Fees,73373-RESIDENTIAL & NURSING CARE PLACEMENTS,"1,424.54",Revenue,15/04/2015,Social Care & Inclusion
WC55-0812,BUSH HOME LTD,Third Party Payments,Private Contractor Fees,73373-RESIDENTIAL & NURSING CARE PLACEMENTS,"1,424.54",Revenue,15/04/2015,Social Care & Inclusion
WC55-0813,BUSH HOME LTD,Third Party Payments,Private Contractor Fees,73373-RESIDENTIAL & NURSING CARE PLACEMENTS,"1,424.54",Revenue,15/04/2015,Social Care & Inclusion
WC55-0814,BUSH HOME LTD,Third Party Payments,Private Contractor Fees,73373-RESIDENTIAL & NURSING CARE PLACEMENTS,"1,424.55",Revenue,15/04/2015,Social Care & Inclusion
WC55-0815,BUSH HOME LTD,Third Party Payments,Private Contractor Fees,73373-RESIDENTIAL & NURSING CARE PLACEMENTS,"1,446.35",Revenue,15/04/2015,Social Care & Inclusion
WC55-0816,BUSH HOME LTD,Third Party Payments,Private Contractor Fees,73373-RESIDENTIAL & NURSING CARE PLACEMENTS,"1,458.16",Revenue,28/04/2015,Social Care & Inclusion
WC55-0817,BUSH HOME LTD,Third Party Payments,Private Contractor Fees,73373-RESIDENTIAL & NURSING CARE PLACEMENTS,"1,458.16",Revenue,28/04/2015,Social Care & Inclusion
WC55-0818,BUSH HOME LTD,Third Party Payments,Private Contractor Fees,73373-RESIDENTIAL & NURSING CARE PLACEMENTS,"1,460.40",Revenue,21/04/2015,Social Care & Inclusion
WC55-0819,BUSH HOME LTD,Third Party Payments,Private Contractor Fees,73373-RESIDENTIAL & NURSING CARE PLACEMENTS,"1,460.40",Revenue,28/04/2015,Social Care & Inclusion
WC55-0820,BUSH HOME LTD,Third Party Payments,Private Contractor Fees,73373-RESIDENTIAL & NURSING CARE PLACEMENTS,"1,460.40",Revenue,28/04/2015,Social Care & Inclusion
WC55-0821,BUSH HOME LTD,Third Party Payments,Private Contractor Fees,73373-RESIDENTIAL & NURSING CARE PLACEMENTS,"1,460.40",Revenue,28/04/2015,Social Care & Inclusion
WC55-0822,BUSH HOME LTD,Third Party Payments,Private Contractor Fees,73373-RESIDENTIAL & NURSING CARE PLACEMENTS,"1,534.12",Revenue,15/04/2015,Social Care & Inclusion
WC55-0823,BUSH HOME LTD,Third Party Payments,Private Contractor Fees,73373-RESIDENTIAL & NURSING CARE PLACEMENTS,"1,534.12",Revenue,28/04/2015,Social Care & Inclusion
WC55-0824,BUSH HOME LTD,Third Party Payments,Private Contractor Fees,73373-RESIDENTIAL & NURSING CARE PLACEMENTS,"1,534.12",Revenue,28/04/2015,Social Care & Inclusion
WC55-0825,BUSH HOME LTD,Third Party Payments,Private Contractor Fees,73373-RESIDENTIAL & NURSING CARE PLACEMENTS,"1,534.12",Revenue,28/04/2015,Social Care & Inclusion
WC55-0826,BUSH HOME LTD,Third Party Payments,Private Contractor Fees,73373-RESIDENTIAL & NURSING CARE PLACEMENTS,"1,534.12",Revenue,28/04/2015,Social Care & Inclusion
WC55-0827,BUSH HOME LTD,Third Party Payments,Private Contractor Fees,73373-RESIDENTIAL & NURSING CARE PLACEMENTS,"1,534.12",Revenue,28/04/2015,Social Care & Inclusion
WC55-0828,BUSH HOME LTD,Third Party Payments,Private Contractor Fees,73373-RESIDENTIAL & NURSING CARE PLACEMENTS,"1,534.12",Revenue,28/04/2015,Social Care & Inclusion
WC55-0829,BUSY BEES CHILDCARE LTD,Third Party Payments,Grants to Other Orgs,66505-OTHER-GRANTS TO OTHER ORGS,667.49,Revenue,13/04/2015,Childrens
WC55-0830,BUSY BEES CHILDCARE LTD,Third Party Payments,Grants to Other Orgs,66505-OTHER-GRANTS TO OTHER ORGS,"6,247.00",Revenue,15/04/2015,Childrens
WC55-0831,BY THE BRIDGE,Third Party Payments,Private Contractor Fees,74037-INDEPENDENT FOSTER CARE-OTH AGENCY PROVISION,"4,157.14",Revenue,28/04/2015,Childrens
WC55-0832,C & V ORCHARD MANOR LTD,Third Party Payments,Private Contractor Fees,73373-RESIDENTIAL & NURSING CARE PLACEMENTS,"1,439.80",Revenue,21/04/2015,Social Care & Inclusion
WC55-0833,C & V ORCHARD MANOR LTD,Third Party Payments,Private Contractor Fees,73373-RESIDENTIAL & NURSING CARE PLACEMENTS,"1,439.80",Revenue,21/04/2015,Social Care & Inclusion
WC55-0834,C & V ORCHARD MANOR LTD,Third Party Payments,Private Contractor Fees,73373-RESIDENTIAL & NURSING CARE PLACEMENTS,"1,439.81",Revenue,21/04/2015,Social Care & Inclusion
WC55-0835,C & V ORCHARD MANOR LTD,Third Party Payments,Private Contractor Fees,73373-RESIDENTIAL & NURSING CARE PLACEMENTS,"1,460.10",Revenue,21/04/2015,Social Care & Inclusion
WC55-0836,C & V ORCHARD MANOR LTD,Third Party Payments,Private Contractor Fees,73373-RESIDENTIAL & NURSING CARE PLACEMENTS,"1,460.40",Revenue,21/04/2015,Social Care & Inclusion
WC55-0837,C & V ORCHARD MANOR LTD,Third Party Payments,Private Contractor Fees,73373-RESIDENTIAL & NURSING CARE PLACEMENTS,"1,460.40",Revenue,21/04/2015,Social Care & Inclusion
WC55-0838,C & V ORCHARD MANOR LTD,Third Party Payments,Private Contractor Fees,73373-RESIDENTIAL & NURSING CARE PLACEMENTS,"1,531.76",Revenue,21/04/2015,Social Care & Inclusion
WC55-0839,C & V ORCHARD MANOR LTD,Third Party Payments,Private Contractor Fees,73373-RESIDENTIAL & NURSING CARE PLACEMENTS,"1,531.76",Revenue,21/04/2015,Social Care & Inclusion
WC55-0840,C & V ORCHARD RESIDENTIAL LTD,Third Party Payments,Private Contractor Fees,73373-RESIDENTIAL & NURSING CARE PLACEMENTS,"1,458.16",Revenue,21/04/2015,Social Care & Inclusion
WC55-0841,C & V ORCHARD RESIDENTIAL LTD,Third Party Payments,Private Contractor Fees,73373-RESIDENTIAL & NURSING CARE PLACEMENTS,"1,460.40",Revenue,21/04/2015,Social Care & Inclusion
WC55-0842,C & V ORCHARD RESIDENTIAL LTD,Third Party Payments,Private Contractor Fees,73373-RESIDENTIAL & NURSING CARE PLACEMENTS,"1,531.00",Revenue,21/04/2015,Social Care & Inclusion
WC55-0843,C & V ORCHARD RESIDENTIAL LTD,Third Party Payments,Private Contractor Fees,73373-RESIDENTIAL & NURSING CARE PLACEMENTS,"1,531.76",Revenue,21/04/2015,Social Care & Inclusion
WC55-0844,C & V ORCHARD RESIDENTIAL LTD,Third Party Payments,Private Contractor Fees,73373-RESIDENTIAL & NURSING CARE PLACEMENTS,"1,531.76",Revenue,21/04/2015,Social Care & Inclusion
WC55-0845,C & V ORCHARD RESIDENTIAL LTD,Third Party Payments,Private Contractor Fees,73373-RESIDENTIAL & NURSING CARE PLACEMENTS,"1,531.76",Revenue,21/04/2015,Social Care & Inclusion
WC55-0846,C & V ORCHARD RESIDENTIAL LTD,Third Party Payments,Private Contractor Fees,73373-RESIDENTIAL & NURSING CARE PLACEMENTS,"1,531.80",Revenue,21/04/2015,Social Care & Inclusion
WC55-0847,C & V ORCHARD RESIDENTIAL LTD,Third Party Payments,Private Contractor Fees,73373-RESIDENTIAL & NURSING CARE PLACEMENTS,"1,534.12",Revenue,21/04/2015,Social Care & Inclusion
WC55-0848,C & V ORCHARD RESIDENTIAL LTD,Third Party Payments,Private Contractor Fees,73373-RESIDENTIAL & NURSING CARE PLACEMENTS,"1,534.12",Revenue,21/04/2015,Social Care & Inclusion
WC55-0849,C & V ORCHARD RESIDENTIAL LTD,Third Party Payments,Private Contractor Fees,73373-RESIDENTIAL & NURSING CARE PLACEMENTS,"1,534.12",Revenue,21/04/2015,Social Care & Inclusion
WC55-0850,C & V ORCHARD RESIDENTIAL LTD,Third Party Payments,Private Contractor Fees,73373-RESIDENTIAL & NURSING CARE PLACEMENTS,"1,534.12",Revenue,21/04/2015,Social Care & Inclusion
WC55-0851,C & V ORCHARD RESIDENTIAL LTD,Third Party Payments,Private Contractor Fees,73373-RESIDENTIAL & NURSING CARE PLACEMENTS,"1,534.12",Revenue,21/04/2015,Social Care & Inclusion
WC55-0852,C A TRAFFIC LTD,Capital,Capital,01009-SITE WORKS - OTHER CONTRACTORS,"3,431.00",Capital,01/04/2015,Regeneration
WC55-0853,REDACTED,Supplies & Services,Other Supplies & Services,62515-MISCELLANEOUS SUPPLIES,"4,317.64",Revenue,27/04/2015,Childrens
WC55-0854,REDACTED,Third Party Payments,Private Contractor Fees,74006-HOLIDAY/CHRISTMAS ALLOWANCE-FOSTER CARERS-OTH AGENCY PROVISION,"4,702.52",Revenue,27/04/2015,Childrens
WC55-0855,REDACTED,Supplies & Services,Other Supplies & Services,62515-MISCELLANEOUS SUPPLIES,"1,445.32",Revenue,27/04/2015,Childrens
WC55-0856,REDACTED,Third Party Payments,Private Contractor Fees,74006-HOLIDAY/CHRISTMAS ALLOWANCE-FOSTER CARERS-OTH AGENCY PROVISION,"1,586.24",Revenue,27/04/2015,Childrens
WC55-0857,C P DAVIDSON & SONS LTD,Third Party Payments,Private Contractor Fees,73025-PROFESSIONAL SERVICES-PRIV CONTRACTOR & OTHER AGENCIES,260.00,Revenue,15/04/2015,Neighbourhood Services
WC55-0858,C P DAVIDSON & SONS LTD,Third Party Payments,Private Contractor Fees,73025-PROFESSIONAL SERVICES-PRIV CONTRACTOR & OTHER AGENCIES,748.36,Revenue,15/04/2015,Neighbourhood Services
WC55-0859,CADLINE LTD,Supplies & Services,Communications & Computing,63800-COMPUTER EQUIPMENT AND SUPPLIES,"1,765.00",Revenue,14/04/2015,Resources
WC55-0860,CALDMORE AREA HOUSING ASS LTD,Third Party Payments,Private Contractor Fees,73372-DOMICILIARY CARE,348.49,Revenue,28/04/2015,Social Care & Inclusion
WC55-0861,CALDMORE AREA HOUSING ASS LTD,Third Party Payments,Private Contractor Fees,73373-RESIDENTIAL & NURSING CARE PLACEMENTS,442.38,Revenue,15/04/2015,Social Care & Inclusion
WC55-0862,CALDMORE AREA HOUSING ASS LTD,Third Party Payments,Private Contractor Fees,73373-RESIDENTIAL & NURSING CARE PLACEMENTS,530.85,Revenue,28/04/2015,Social Care & Inclusion
WC55-0863,CALDMORE AREA HOUSING ASS LTD,Third Party Payments,Private Contractor Fees,73374-SUPPORTED & OTHER ACCOMMODATION,618.00,Revenue,28/04/2015,Social Care & Inclusion
WC55-0864,CALDMORE AREA HOUSING ASS LTD,Third Party Payments,Private Contractor Fees,73374-SUPPORTED & OTHER ACCOMMODATION,618.00,Revenue,28/04/2015,Social Care & Inclusion
WC55-0865,CALDMORE AREA HOUSING ASS LTD,Third Party Payments,Private Contractor Fees,73374-SUPPORTED & OTHER ACCOMMODATION,618.00,Revenue,28/04/2015,Social Care & Inclusion
WC55-0866,CALDMORE AREA HOUSING ASS LTD,Third Party Payments,Private Contractor Fees,73374-SUPPORTED & OTHER ACCOMMODATION,618.00,Revenue,28/04/2015,Social Care & Inclusion
WC55-0867,CALDMORE AREA HOUSING ASS LTD,Third Party Payments,Private Contractor Fees,73374-SUPPORTED & OTHER ACCOMMODATION,618.00,Revenue,28/04/2015,Social Care & Inclusion
WC55-0868,CALDMORE AREA HOUSING ASS LTD,Third Party Payments,Private Contractor Fees,73374-SUPPORTED & OTHER ACCOMMODATION,618.00,Revenue,28/04/2015,Social Care & Inclusion
WC55-0869,CALDMORE AREA HOUSING ASS LTD,Third Party Payments,Private Contractor Fees,73372-DOMICILIARY CARE,618.00,Revenue,28/04/2015,Social Care & Inclusion
WC55-0870,CALDMORE AREA HOUSING ASS LTD,Third Party Payments,Private Contractor Fees,73374-SUPPORTED & OTHER ACCOMMODATION,618.00,Revenue,28/04/2015,Social Care & Inclusion
WC55-0871,CALDMORE AREA HOUSING ASS LTD,Third Party Payments,Private Contractor Fees,73374-SUPPORTED & OTHER ACCOMMODATION,618.00,Revenue,28/04/2015,Social Care & Inclusion
WC55-0872,CALDMORE AREA HOUSING ASS LTD,Third Party Payments,Private Contractor Fees,73374-SUPPORTED & OTHER ACCOMMODATION,618.00,Revenue,28/04/2015,Social Care & Inclusion
WC55-0873,CALDMORE AREA HOUSING ASS LTD,Third Party Payments,Private Contractor Fees,73373-RESIDENTIAL & NURSING CARE PLACEMENTS,"1,857.99",Revenue,15/04/2015,Social Care & Inclusion
WC55-0874,CALDMORE AREA HOUSING ASS LTD,Third Party Payments,Private Contractor Fees,73373-RESIDENTIAL & NURSING CARE PLACEMENTS,"2,388.84",Revenue,15/04/2015,Social Care & Inclusion
WC55-0875,CALDMORE AREA HOUSING ASS LTD,Third Party Payments,Private Contractor Fees,70000-SOCIAL SERVICES-FEES TO VOLUNTARY BODIES,"35,000.00",Revenue,01/04/2015,Social Care & Inclusion
WC55-0876,CALDMORE VILLAGE FESTIVAL GROUP,Supplies & Services,Other Supplies & Services,62515-MISCELLANEOUS SUPPLIES,"1,849.90",Revenue,24/04/2015,Neighbourhood Services
WC55-0877,REDACTED,Third Party Payments,Private Contractor Fees,74006-HOLIDAY/CHRISTMAS ALLOWANCE-FOSTER CARERS-OTH AGENCY PROVISION,373.71,Revenue,13/04/2015,Childrens
WC55-0878,REDACTED,Transfer Payments,Transfer Payments,76422-DIRECT PAYMENTS TO SOCIAL SERVICES CLIENTS,287.71,Revenue,14/04/2015,Childrens
WC55-0879,CALOO LTD,Capital,Capital,01006-SITE WORKS MAIN CONTRACTORS,"11,995.00",Capital,20/04/2015,Neighbourhood Services
WC55-0880,CAMBIAN CHILDCARE LIMITED,Third Party Payments,Private Contractor Fees,74036-EXTERNAL RESIDENTIAL CARE-OTH AGENCY PROVISION,"2,571.30",Revenue,29/04/2015,Childrens
WC55-0881,CAMBIAN CHILDCARE LIMITED,Third Party Payments,Private Contractor Fees,74037-INDEPENDENT FOSTER CARE-OTH AGENCY PROVISION,"3,103.10",Revenue,29/04/2015,Childrens
WC55-0882,CAMBIAN CHILDCARE LIMITED,Third Party Payments,Private Contractor Fees,74037-INDEPENDENT FOSTER CARE-OTH AGENCY PROVISION,"3,361.64",Revenue,29/04/2015,Childrens
WC55-0883,CAMBIAN CHILDCARE LIMITED,Third Party Payments,Private Contractor Fees,74036-EXTERNAL RESIDENTIAL CARE-OTH AGENCY PROVISION,"13,877.10",Revenue,29/04/2015,Childrens
WC55-0884,CAMBIAN LEARNING DISABILITES MIDLANDS LIMITED,Third Party Payments,Private Contractor Fees,73375-IN PATIENT BEDS,"10,557.00",Revenue,10/04/2015,Social Care & Inclusion
WC55-0885,CAMBIAN LEARNING DISABILITES MIDLANDS LIMITED,Third Party Payments,Private Contractor Fees,73375-IN PATIENT BEDS,"10,908.90",Revenue,27/04/2015,Social Care & Inclusion
WC55-0886,CAMERA ONE LIMITED,Supplies & Services,"Equip,Furniture & Materials",60006-NEW-FURNITURE & EQUIPMENT,"3,875.00",Revenue,09/04/2015,Neighbourhood Services
WC55-0887,CAMERA ONE LIMITED,Supplies & Services,"Equip,Furniture & Materials",60006-NEW-FURNITURE & EQUIPMENT,"4,385.00",Revenue,09/04/2015,Neighbourhood Services
WC55-0888,CAMERA ONE LIMITED,Supplies & Services,"Equip,Furniture & Materials",60006-NEW-FURNITURE & EQUIPMENT,"11,720.00",Revenue,09/04/2015,Neighbourhood Services
WC55-0889,CAMERA ONE LIMITED,Supplies & Services,"Equip,Furniture & Materials",60006-NEW-FURNITURE & EQUIPMENT,"30,080.00",Revenue,16/04/2015,Neighbourhood Services
WC55-0890,CAMPBELL ASSOCIATES,Supplies & Services,Services,63102-CONSULTANTS FEES - CORPORATE,750.00,Revenue,22/04/2015,Neighbourhood Services
WC55-0891,CAMPBELL INSTALLATIONS LTD,Supplies & Services,"Equip,Furniture & Materials",60008-MAINTENANCE-FURNITURE & EQUIPMENT,260.00,Revenue,09/04/2015,Neighbourhood Services
WC55-0892,CAMPION SCHOOL,Transfer Payments,Transfer Payments,77300-ISB-FORMULA ALLOCATION,300.00,Revenue,08/04/2015,Childrens
WC55-0893,CANFORD AUDIO,Supplies & Services,"Equip,Furniture & Materials",60500-GENERAL MATERIALS,300.00,Revenue,08/04/2015,Resources
WC55-0894,CANNOCK CHASE HIGH SCHOOL,Transfer Payments,Transfer Payments,77300-ISB-FORMULA ALLOCATION,300.00,Revenue,08/04/2015,Childrens
WC55-0895,CAPITA BUSINESS SERVICES LTD 001,Employees,Training,30000-INTERNAL TRAINING,399.00,Revenue,13/04/2015,Childrens
WC55-0896,CAPITA CHILDREN'S SERVICES,Supplies & Services,Communications & Computing,63800-COMPUTER EQUIPMENT AND SUPPLIES,"152,692.44",Revenue,27/04/2015,Childrens
WC55-0897,CAPITA IT SERVICES (BSF) LIMITED,Supplies & Services,Communications & Computing,63800-COMPUTER EQUIPMENT AND SUPPLIES,"1,077.12",Revenue,02/04/2015,Resources
WC55-0898,CAPITAL HAIR & BEAUTY LTD,Supplies & Services,Other Supplies & Services,63115-HIRE OF ROOM (duplicate please use 63128)-SERVICES-FEES,700.00,Revenue,23/04/2015,Neighbourhood Services
WC55-0899,CARE & MANAGEMENT SERVICES LTD,Third Party Payments,Private Contractor Fees,74036-EXTERNAL RESIDENTIAL CARE-OTH AGENCY PROVISION,"5,600.00",Revenue,22/04/2015,Childrens
WC55-0900,CARE & MANAGEMENT SERVICES LTD,Third Party Payments,Private Contractor Fees,74036-EXTERNAL RESIDENTIAL CARE-OTH AGENCY PROVISION,"6,200.00",Revenue,29/04/2015,Childrens
WC55-0901,CARE & MANAGEMENT SERVICES LTD,Third Party Payments,Private Contractor Fees,74036-EXTERNAL RESIDENTIAL CARE-OTH AGENCY PROVISION,"20,800.00",Revenue,22/04/2015,Childrens
WC55-0902,CARE 2 U LIMITED,Third Party Payments,Private Contractor Fees,73372-DOMICILIARY CARE,"39,619.08",Revenue,27/04/2015,Social Care & Inclusion
WC55-0903,CARE 2 U LIMITED,Third Party Payments,Private Contractor Fees,73372-DOMICILIARY CARE,"41,891.80",Revenue,08/04/2015,Social Care & Inclusion
WC55-0904,CARE AVENUES LTD,Third Party Payments,Private Contractor Fees,73372-DOMICILIARY CARE,"6,034.63",Revenue,27/04/2015,Social Care & Inclusion
WC55-0905,CARE IN BATHING LIMITED,Capital,Capital,01006-SITE WORKS MAIN CONTRACTORS,993.73,Capital,13/04/2015,Resources
WC55-0906,CARE LEAVERS,Third Party Payments,Private Contractor Fees,74500-CARE LEAVERS MTCE PAYMENTS,80.00,Revenue,17/04/2015,Childrens
WC55-0907,CARE LEAVERS,Supplies & Services,Other Supplies & Services,63114-OTHER FEES & LICENCES-SERVICES-FEES,168.50,Revenue,17/04/2015,Childrens
WC55-0908,CARE LEAVERS,Supplies & Services,Other Supplies & Services,63114-OTHER FEES & LICENCES-SERVICES-FEES,178.50,Revenue,22/04/2015,Childrens
WC55-0909,CARE LEAVERS,Supplies & Services,Other Supplies & Services,64002-OTHER EXPENSES-EXPENSES,235.00,Revenue,22/04/2015,Childrens
WC55-0910,CARE LEAVERS,Third Party Payments,Private Contractor Fees,74500-CARE LEAVERS MTCE PAYMENTS,414.99,Revenue,22/04/2015,Childrens
WC55-0911,CARE LEAVERS,Transfer Payments,Transfer Payments,76400-RESIDENTS PERSONAL EXPENSES-ALLOWANCES TO S/S CLIENTS,"1,545.80",Revenue,22/04/2015,Childrens
WC55-0912,CARE LEAVERS,Supplies & Services,Other Supplies & Services,64002-OTHER EXPENSES-EXPENSES,"2,483.53",Revenue,17/04/2015,Childrens
WC55-0913,CARE LEAVERS,Transfer Payments,Transfer Payments,76400-RESIDENTS PERSONAL EXPENSES-ALLOWANCES TO S/S CLIENTS,"2,689.02",Revenue,17/04/2015,Childrens
WC55-0914,CARE LEAVERS,Transfer Payments,Transfer Payments,76000-TRANSFER PAYMENTS - SOCIAL SERVICES CLIENTS,"5,671.20",Revenue,17/04/2015,Childrens
WC55-0915,CARE LEAVERS,Transfer Payments,Transfer Payments,76010-ACCOMMODATION AND RELATED COSTS-ASSISTANCE TO S/S CLIENTS,"6,215.82",Revenue,17/04/2015,Childrens
WC55-0916,CARE LEAVERS,Transfer Payments,Transfer Payments,76010-ACCOMMODATION AND RELATED COSTS-ASSISTANCE TO S/S CLIENTS,"13,593.16",Revenue,22/04/2015,Childrens
WC55-0917,CARE SHOP,Supplies & Services,"Equip,Furniture & Materials",60539-CLEANING MATERIALS,253.03,Revenue,29/04/2015,Social Care & Inclusion
WC55-0918,CARE TODAY CHILDRENS SERVICES,Third Party Payments,Private Contractor Fees,74036-EXTERNAL RESIDENTIAL CARE-OTH AGENCY PROVISION,"2,851.44",Revenue,02/04/2015,Childrens
WC55-0919,CARE TODAY CHILDRENS SERVICES,Third Party Payments,Private Contractor Fees,74036-EXTERNAL RESIDENTIAL CARE-OTH AGENCY PROVISION,"7,043.49",Revenue,28/04/2015,Childrens
WC55-0920,CARE4HEALTH LTD.,Third Party Payments,Private Contractor Fees,73019-PSE'S-PRIV CONTRACTOR FEES,"1,070.33",Revenue,16/04/2015,Social Care & Inclusion
WC55-0921,CARE4HEALTH LTD.,Employees,Agency,34305-AGENCY STAFF-EMPLOYEES,"1,074.00",Revenue,21/04/2015,Social Care & Inclusion
WC55-0922,CARE4HEALTH LTD.,Employees,Agency,34305-AGENCY STAFF-EMPLOYEES,"1,077.15",Revenue,08/04/2015,Social Care & Inclusion
WC55-0923,CARE4HEALTH LTD.,Employees,Agency,34305-AGENCY STAFF-EMPLOYEES,"1,145.70",Revenue,16/04/2015,Social Care & Inclusion
WC55-0924,CARE4HEALTH LTD.,Third Party Payments,Private Contractor Fees,73019-PSE'S-PRIV CONTRACTOR FEES,"1,298.63",Revenue,16/04/2015,Social Care & Inclusion
WC55-0925,CARE4HEALTH LTD.,Third Party Payments,Private Contractor Fees,73019-PSE'S-PRIV CONTRACTOR FEES,"1,306.35",Revenue,13/04/2015,Social Care & Inclusion
WC55-0926,CARE4HEALTH LTD.,Third Party Payments,Private Contractor Fees,73019-PSE'S-PRIV CONTRACTOR FEES,"1,346.70",Revenue,21/04/2015,Social Care & Inclusion
WC55-0927,CAREVIEW SERVICES LTD,Third Party Payments,Private Contractor Fees,73373-RESIDENTIAL & NURSING CARE PLACEMENTS,"6,438.51",Revenue,15/04/2015,Social Care & Inclusion
WC55-0928,CAREVIEW SERVICES LTD,Third Party Payments,Private Contractor Fees,73373-RESIDENTIAL & NURSING CARE PLACEMENTS,"6,653.13",Revenue,13/04/2015,Social Care & Inclusion
WC55-0929,CARILLION COMMUNICATIONS LIMITED,Supplies & Services,"Equip,Furniture & Materials",60512-LOOSE TOOLS & CONSUMABLES,"2,282.12",Revenue,24/04/2015,Neighbourhood Services
WC55-0930,CARING CARE LIMITED,Third Party Payments,Private Contractor Fees,73025-PROFESSIONAL SERVICES-PRIV CONTRACTOR & OTHER AGENCIES,287.50,Revenue,01/04/2015,Social Care & Inclusion
WC55-0931,CARING CARE LIMITED,Third Party Payments,Private Contractor Fees,73025-PROFESSIONAL SERVICES-PRIV CONTRACTOR & OTHER AGENCIES,506.00,Revenue,01/04/2015,Social Care & Inclusion
WC55-0932,CARING CARE LIMITED,Third Party Payments,Private Contractor Fees,73025-PROFESSIONAL SERVICES-PRIV CONTRACTOR & OTHER AGENCIES,736.00,Revenue,01/04/2015,Social Care & Inclusion
WC55-0933,CARING CARE LIMITED,Third Party Payments,Private Contractor Fees,73025-PROFESSIONAL SERVICES-PRIV CONTRACTOR & OTHER AGENCIES,782.00,Revenue,01/04/2015,Social Care & Inclusion
WC55-0934,CARING CARE LIMITED,Third Party Payments,Private Contractor Fees,73025-PROFESSIONAL SERVICES-PRIV CONTRACTOR & OTHER AGENCIES,954.50,Revenue,01/04/2015,Social Care & Inclusion
WC55-0935,CARING CARE LIMITED,Third Party Payments,Private Contractor Fees,73025-PROFESSIONAL SERVICES-PRIV CONTRACTOR & OTHER AGENCIES,"1,017.75",Revenue,01/04/2015,Social Care & Inclusion
WC55-0936,CARING CARE LIMITED,Third Party Payments,Private Contractor Fees,73025-PROFESSIONAL SERVICES-PRIV CONTRACTOR & OTHER AGENCIES,"1,075.25",Revenue,01/04/2015,Social Care & Inclusion
WC55-0937,CARING CARE LIMITED,Third Party Payments,Private Contractor Fees,73025-PROFESSIONAL SERVICES-PRIV CONTRACTOR & OTHER AGENCIES,"1,391.50",Revenue,01/04/2015,Social Care & Inclusion
WC55-0938,CARING CARE LIMITED,Third Party Payments,Private Contractor Fees,73025-PROFESSIONAL SERVICES-PRIV CONTRACTOR & OTHER AGENCIES,"1,564.00",Revenue,01/04/2015,Social Care & Inclusion
WC55-0939,CARING CARE LIMITED,Third Party Payments,Private Contractor Fees,73372-DOMICILIARY CARE,"51,562.73",Revenue,01/04/2015,Social Care & Inclusion
WC55-0940,CARING CARE LIMITED,Third Party Payments,Private Contractor Fees,73372-DOMICILIARY CARE,"57,459.98",Revenue,27/04/2015,Social Care & Inclusion
WC55-0941,CARING HANDS LIMITED,Third Party Payments,Private Contractor Fees,73372-DOMICILIARY CARE,"50,353.90",Revenue,08/04/2015,Social Care & Inclusion
WC55-0942,CARING HANDS LIMITED,Third Party Payments,Private Contractor Fees,73372-DOMICILIARY CARE,"53,214.07",Revenue,27/04/2015,Social Care & Inclusion
WC55-0943,REDACTED,Third Party Payments,Private Contractor Fees,73374-SUPPORTED & OTHER ACCOMMODATION,495.59,Revenue,07/04/2015,Social Care & Inclusion
WC55-0944,REDACTED,Third Party Payments,Private Contractor Fees,73374-SUPPORTED & OTHER ACCOMMODATION,"4,912.20",Revenue,21/04/2015,Social Care & Inclusion
WC55-0945,REDACTED,Transfer Payments,Transfer Payments,76422-DIRECT PAYMENTS TO SOCIAL SERVICES CLIENTS,450.00,Revenue,14/04/2015,Social Care & Inclusion
WC55-0946,REDACTED,Supplies & Services,Other Supplies & Services,62515-MISCELLANEOUS SUPPLIES,300.00,Revenue,27/04/2015,Childrens
WC55-0947,REDACTED,Third Party Payments,Private Contractor Fees,74006-HOLIDAY/CHRISTMAS ALLOWANCE-FOSTER CARERS-OTH AGENCY PROVISION,469.80,Revenue,27/04/2015,Childrens
WC55-0948,REDACTED,Supplies & Services,Other Supplies & Services,62515-MISCELLANEOUS SUPPLIES,540.20,Revenue,27/04/2015,Childrens
WC55-0949,REDACTED,Third Party Payments,Private Contractor Fees,74006-HOLIDAY/CHRISTMAS ALLOWANCE-FOSTER CARERS-OTH AGENCY PROVISION,359.41,Revenue,13/04/2015,Childrens
WC55-0950,REDACTED,Third Party Payments,Private Contractor Fees,73014-LEGAL FEES-PRIV CONTRACTOR FEES,"3,000.00",Revenue,22/04/2015,Childrens
WC55-0951,CARTER SYNERGY LTD,Premises,Premises-Repairs & Maintenance,"40000-REPAIRS,ALTERATIONS & MAINTENANCE-PREM",610.04,Revenue,15/04/2015,Neighbourhood Services
WC55-0952,CARTER SYNERGY LTD,Premises,Premises-Repairs & Maintenance,40025-METALWORK FABRICATION/REPAIRS-OP MTCE,785.00,Revenue,28/04/2015,Neighbourhood Services
WC55-0953,CARTER SYNERGY LTD,Premises,Premises-Repairs & Maintenance,"40000-REPAIRS,ALTERATIONS & MAINTENANCE-PREM","1,235.36",Revenue,10/04/2015,Neighbourhood Services
WC55-0954,CARTER SYNERGY LTD,Premises,Premises-Repairs & Maintenance,40011-SECURITY SYSTEM-OP MTCE,"4,598.40",Revenue,02/04/2015,Neighbourhood Services
WC55-0955,CARTER SYNERGY LTD,Capital,Capital,01044-PURCHASE OF FURNITURE & EQUIPMENT,"8,544.50",Capital,02/04/2015,Neighbourhood Services
WC55-0956,CARTER SYNERGY LTD,Premises,Premises-Repairs & Maintenance,40216-OTHER-PLAN MTCE,"9,939.41",Revenue,10/04/2015,Neighbourhood Services
WC55-0957,CASTLE BROMWICH JUNIOR SCHOOL,Transfer Payments,Transfer Payments,77300-ISB-FORMULA ALLOCATION,300.00,Revenue,09/04/2015,Childrens
WC55-0958,CATHEDRAL LEASING LTD,Supplies & Services,"Equip,Furniture & Materials",60520-HEALTH & SAFETY-MATERIALS,704.76,Revenue,30/04/2015,Social Care & Inclusion
WC55-0959,REDACTED,Transfer Payments,Transfer Payments,76422-DIRECT PAYMENTS TO SOCIAL SERVICES CLIENTS,622.68,Revenue,14/04/2015,Social Care & Inclusion
WC55-0960,REDACTED,Transfer Payments,Transfer Payments,76422-DIRECT PAYMENTS TO SOCIAL SERVICES CLIENTS,690.48,Revenue,14/04/2015,Social Care & Inclusion
WC55-0961,REDACTED,Third Party Payments,Private Contractor Fees,74006-HOLIDAY/CHRISTMAS ALLOWANCE-FOSTER CARERS-OTH AGENCY PROVISION,422.67,Revenue,13/04/2015,Childrens
WC55-0962,REDACTED,Transfer Payments,Transfer Payments,76422-DIRECT PAYMENTS TO SOCIAL SERVICES CLIENTS,388.40,Revenue,14/04/2015,Social Care & Inclusion
WC55-0963,REDACTED,Transfer Payments,Transfer Payments,76422-DIRECT PAYMENTS TO SOCIAL SERVICES CLIENTS,"1,014.27",Revenue,14/04/2015,Childrens
WC55-0964,REDACTED,Third Party Payments,Private Contractor Fees,74006-HOLIDAY/CHRISTMAS ALLOWANCE-FOSTER CARERS-OTH AGENCY PROVISION,422.67,Revenue,13/04/2015,Childrens
WC55-0965,CE RISK SAFETY AND SECURITY LTD,Third Party Payments,Private Contractor Fees,73002-SECURITY-PRIV CONTRACTOR FEES,"4,774.21",Revenue,01/04/2015,Resources
WC55-0966,CENTRAL AND NORTH WEST LONDON NHS FOUNDATION TRUST,Supplies & Services,Services,63000-PROFESSIONAL FEES AND SERVICES,295.02,Revenue,20/04/2015,Neighbourhood Services
WC55-0967,CENTRAL AND NORTH WEST LONDON NHS FOUNDATION TRUST,Supplies & Services,Services,63000-PROFESSIONAL FEES AND SERVICES,330.22,Revenue,20/04/2015,Neighbourhood Services
WC55-0968,CENTRAL CONSTRUCTION TRAINING LTD,Third Party Payments,Grants to Other Orgs,66500-GRANTS TO OTHER ORGS,750.00,Revenue,09/04/2015,Regeneration
WC55-0969,CENTRAL CONSTRUCTION TRAINING LTD,Third Party Payments,Grants to Other Orgs,66500-GRANTS TO OTHER ORGS,750.00,Revenue,23/04/2015,Regeneration
WC55-0970,CENTRAL CONSTRUCTION TRAINING LTD,Third Party Payments,Grants to Other Orgs,66500-GRANTS TO OTHER ORGS,"1,125.00",Revenue,23/04/2015,Regeneration
WC55-0971,CENTRAL CONSTRUCTION TRAINING LTD,Third Party Payments,Grants to Other Orgs,66500-GRANTS TO OTHER ORGS,"1,500.00",Revenue,17/04/2015,Regeneration
WC55-0972,CENTRAL CONSTRUCTION TRAINING LTD,Third Party Payments,Grants to Other Orgs,66500-GRANTS TO OTHER ORGS,"1,500.00",Revenue,23/04/2015,Regeneration
WC55-0973,CENTRAL CONSTRUCTION TRAINING LTD,Third Party Payments,Grants to Other Orgs,66500-GRANTS TO OTHER ORGS,"1,500.00",Revenue,23/04/2015,Regeneration
WC55-0974,CENTRAL INSULATION & ENVIRONM,Third Party Payments,Private Contractor Fees,73025-PROFESSIONAL SERVICES-PRIV CONTRACTOR & OTHER AGENCIES,350.00,Revenue,21/04/2015,Regeneration
WC55-0975,CENTRAL MAILING SERVICES,Supplies & Services,"Printing, Stationery & Office Exp",63500-POSTAGES AND COURIER SERVICES,404.25,Revenue,02/04/2015,Resources
WC55-0976,CENTRAL MAILING SERVICES,Supplies & Services,"Printing, Stationery & Office Exp",63500-POSTAGES AND COURIER SERVICES,784.04,Revenue,02/04/2015,Resources
WC55-0977,CENTRAL MAILING SERVICES,Supplies & Services,"Printing, Stationery & Office Exp",63500-POSTAGES AND COURIER SERVICES,813.82,Revenue,02/04/2015,Resources
WC55-0978,CENTRAL MAILING SERVICES,Supplies & Services,"Printing, Stationery & Office Exp",63500-POSTAGES AND COURIER SERVICES,"1,171.50",Revenue,02/04/2015,Resources
WC55-0979,CENTRAL MAILING SERVICES,Supplies & Services,"Printing, Stationery & Office Exp",63500-POSTAGES AND COURIER SERVICES,"2,172.60",Revenue,02/04/2015,Resources
WC55-0980,CENTRAL POWER SERVICES LIMITED,Premises,Premises-Repairs & Maintenance,"40000-REPAIRS,ALTERATIONS & MAINTENANCE-PREM",590.00,Revenue,09/04/2015,Regeneration
WC55-0981,CENTRO WMPTA,Transport,Hire,52000-WITH DRIVER-HIRE OF VEHICLES,"-1,107.60",Revenue,29/04/2015,Childrens
WC55-0982,CENTRO WMPTA,Transport,Hire,52000-WITH DRIVER-HIRE OF VEHICLES,477.50,Revenue,10/04/2015,Childrens
WC55-0983,CENTRO WMPTA,Transfer Payments,Transfer Payments,76000-TRANSFER PAYMENTS - SOCIAL SERVICES CLIENTS,"1,100.00",Revenue,13/04/2015,Social Care & Inclusion
WC55-0984,CENTRO WMPTA,Transport,Hire,52000-WITH DRIVER-HIRE OF VEHICLES,"1,661.40",Revenue,14/04/2015,Childrens
WC55-0985,CENTRO WMPTA,Capital,Capital,01006-SITE WORKS MAIN CONTRACTORS,"4,155.29",Capital,08/04/2015,Regeneration
WC55-0986,REDACTED,Third Party Payments,Private Contractor Fees,74006-HOLIDAY/CHRISTMAS ALLOWANCE-FOSTER CARERS-OTH AGENCY PROVISION,568.18,Revenue,13/04/2015,Childrens
WC55-0987,CERTAS ENERGY UK LIMITED,Transport,Other Transport,50301-FUEL-TRANSPORT RUN COSTS,450.00,Revenue,16/04/2015,Neighbourhood Services
WC55-0988,CERTAS ENERGY UK LIMITED,Transport,Other Transport,50301-FUEL-TRANSPORT RUN COSTS,681.45,Revenue,27/04/2015,Neighbourhood Services
WC55-0989,CERTAS ENERGY UK LIMITED,Transport,Other Transport,50301-FUEL-TRANSPORT RUN COSTS,"1,312.74",Revenue,16/04/2015,Neighbourhood Services
WC55-0990,CERTAS ENERGY UK LIMITED,Transport,Other Transport,50301-FUEL-TRANSPORT RUN COSTS,"1,364.55",Revenue,22/04/2015,Neighbourhood Services
WC55-0991,CERTAS ENERGY UK LIMITED,Transport,Other Transport,50301-FUEL-TRANSPORT RUN COSTS,"13,830.36",Revenue,22/04/2015,Neighbourhood Services
WC55-0992,CERTAS ENERGY UK LIMITED,Transport,Other Transport,50301-FUEL-TRANSPORT RUN COSTS,"18,157.42",Revenue,22/04/2015,Neighbourhood Services
WC55-0993,CERTAS ENERGY UK LIMITED,Transport,Other Transport,50301-FUEL-TRANSPORT RUN COSTS,"18,434.06",Revenue,16/04/2015,Neighbourhood Services
WC55-0994,CEXC LIMITED,Supplies & Services,Communications & Computing,63800-COMPUTER EQUIPMENT AND SUPPLIES,609.80,Revenue,29/04/2015,Resources
WC55-0995,CEXC LIMITED,Supplies & Services,Communications & Computing,63800-COMPUTER EQUIPMENT AND SUPPLIES,648.36,Revenue,27/04/2015,Resources
WC55-0996,CEXC LIMITED,Supplies & Services,Communications & Computing,63800-COMPUTER EQUIPMENT AND SUPPLIES,"10,235.48",Revenue,10/04/2015,Resources
WC55-0997,CF ASSET FINANCE LIMITED,Supplies & Services,"Equip,Furniture & Materials",60009-LEASING/HIRE/RENTAL-EQUIPMENT,272.86,Revenue,27/04/2015,Resources
WC55-0998,CF ASSET FINANCE LIMITED,Supplies & Services,"Equip,Furniture & Materials",60009-LEASING/HIRE/RENTAL-EQUIPMENT,309.70,Revenue,09/04/2015,Resources
WC55-0999,CF CORPORATE FINANCE LTD,Supplies & Services,"Equip,Furniture & Materials",60009-LEASING/HIRE/RENTAL-EQUIPMENT,255.00,Revenue,01/04/2015,Childrens
WC55-1000,CFT FOSTERING LIMITED,Third Party Payments,Private Contractor Fees,74037-INDEPENDENT FOSTER CARE-OTH AGENCY PROVISION,"5,661.60",Revenue,28/04/2015,Childrens
WC55-1001,CHANDOS LODGE CARE HOME,Third Party Payments,Private Contractor Fees,73373-RESIDENTIAL & NURSING CARE PLACEMENTS,"1,632.00",Revenue,15/04/2015,Social Care & Inclusion
WC55-1002,CHANGE AGENCY AND ASSOCIATES LTD T/A CHANGE AGENCY,Employees,Training,30030-EXTERNAL TRAINING,800.00,Revenue,10/04/2015,Childrens
WC55-1003,CHANGE AGENCY AND ASSOCIATES LTD T/A CHANGE AGENCY,Employees,Training,30030-EXTERNAL TRAINING,800.00,Revenue,10/04/2015,Childrens
WC55-1004,CHANGE POINT LTD,Supplies & Services,Services,63101-CONSULTANTS FEES - SOCIAL SERVICES,"1,750.00",Revenue,22/04/2015,Social Care & Inclusion
WC55-1005,CHAPMAN SAFETY SERVICES,Employees,Training,30030-EXTERNAL TRAINING,430.00,Revenue,10/04/2015,Resources
WC55-1006,CHAPMAN SAFETY SERVICES,Employees,Training,30030-EXTERNAL TRAINING,"1,360.00",Revenue,10/04/2015,Resources
WC55-1007,REDACTED,Transfer Payments,Transfer Payments,76422-DIRECT PAYMENTS TO SOCIAL SERVICES CLIENTS,748.00,Revenue,14/04/2015,Social Care & Inclusion
WC55-1008,REDACTED,Third Party Payments,Private Contractor Fees,74006-HOLIDAY/CHRISTMAS ALLOWANCE-FOSTER CARERS-OTH AGENCY PROVISION,972.68,Revenue,13/04/2015,Childrens
WC55-1009,CHARLES CODDY WALKER ACADEMY,Third Party Payments,Grants to Other Orgs,66502-TOP UP FUNDING -GRANTS TO SCHOOLS,"2,457.67",Revenue,02/04/2015,Childrens
WC55-1010,CHARLIE CATERPILLAR'S DAY NURSERY,Third Party Payments,Grants to Other Orgs,66505-OTHER-GRANTS TO OTHER ORGS,"24,696.95",Revenue,13/04/2015,Childrens
WC55-1011,CHARLIE CATERPILLAR'S DAY NURSERY,Third Party Payments,Grants to Other Orgs,66505-OTHER-GRANTS TO OTHER ORGS,"28,383.00",Revenue,13/04/2015,Childrens
WC55-1012,REDACTED,Transfer Payments,Transfer Payments,76422-DIRECT PAYMENTS TO SOCIAL SERVICES CLIENTS,258.96,Revenue,14/04/2015,Childrens
WC55-1013,CHARMEND LTD,Third Party Payments,Private Contractor Fees,73373-RESIDENTIAL & NURSING CARE PLACEMENTS,"2,075.96",Revenue,28/04/2015,Social Care & Inclusion
WC55-1014,CHARTER CARE,Third Party Payments,Private Contractor Fees,73372-DOMICILIARY CARE,"38,756.70",Revenue,01/04/2015,Social Care & Inclusion
WC55-1015,CHARTER CARE,Third Party Payments,Private Contractor Fees,73372-DOMICILIARY CARE,"39,171.85",Revenue,27/04/2015,Social Care & Inclusion
WC55-1016,CHASEVIEW CARE HOME,Third Party Payments,Private Contractor Fees,73373-RESIDENTIAL & NURSING CARE PLACEMENTS,"1,600.71",Revenue,15/04/2015,Social Care & Inclusion
WC55-1017,CHEMTECH WASTE MANAGEMENT LTD,Supplies & Services,"Equip,Furniture & Materials",60500-GENERAL MATERIALS,"1,325.00",Revenue,14/04/2015,Neighbourhood Services
WC55-1018,CHERISH HOME CARE,Third Party Payments,Private Contractor Fees,73372-DOMICILIARY CARE,668.56,Revenue,28/04/2015,Social Care & Inclusion
WC55-1019,CHERISH HOME CARE,Third Party Payments,Private Contractor Fees,73372-DOMICILIARY CARE,742.84,Revenue,28/04/2015,Social Care & Inclusion
WC55-1020,CHERISH HOME CARE,Third Party Payments,Private Contractor Fees,73372-DOMICILIARY CARE,843.63,Revenue,28/04/2015,Social Care & Inclusion
WC55-1021,REDACTED,Third Party Payments,Grants to Other Orgs,66505-OTHER-GRANTS TO OTHER ORGS,667.49,Revenue,13/04/2015,Childrens
WC55-1022,CHESLYN HAY SPORT AND COMMUNITY HIGH SCHOOL,Transfer Payments,Transfer Payments,77300-ISB-FORMULA ALLOCATION,300.00,Revenue,08/04/2015,Childrens
WC55-1023,REDACTED,Transfer Payments,Transfer Payments,76422-DIRECT PAYMENTS TO SOCIAL SERVICES CLIENTS,"1,601.60",Revenue,14/04/2015,Social Care & Inclusion
WC55-1024,CHILD POVERTY ACTION GROUP,Supplies & Services,"Equip,Furniture & Materials",60501-LIBRARY BOOKS,"2,439.99",Revenue,14/04/2015,Resources
WC55-1025,CHILDCARE BUREAU LTD,Third Party Payments,Private Contractor Fees,74037-INDEPENDENT FOSTER CARE-OTH AGENCY PROVISION,"3,733.52",Revenue,14/04/2015,Childrens
WC55-1026,CHILDCARE BUREAU LTD,Third Party Payments,Private Contractor Fees,74037-INDEPENDENT FOSTER CARE-OTH AGENCY PROVISION,"6,939.80",Revenue,14/04/2015,Childrens
WC55-1027,CHILDLINK,Transfer Payments,Transfer Payments,76408-OUTINGS-ALLOWANCES TO S/S CLIENTS,9.70,Revenue,10/04/2015,Childrens
WC55-1028,CHILDLINK,Transport,Car Allowances,53001-OTHER/VOLUNTEERS-CAR ALLOWANCES,10.67,Revenue,02/04/2015,Childrens
WC55-1029,CHILDLINK,Transport,Car Allowances,53001-OTHER/VOLUNTEERS-CAR ALLOWANCES,10.67,Revenue,10/04/2015,Childrens
WC55-1030,CHILDLINK,Transport,Car Allowances,53001-OTHER/VOLUNTEERS-CAR ALLOWANCES,10.67,Revenue,28/04/2015,Childrens
WC55-1031,CHILDLINK,Transport,Car Allowances,53003-OTHER-TRAVEL ALLOWANCES,19.03,Revenue,10/04/2015,Childrens
WC55-1032,CHILDLINK,Supplies & Services,Other Supplies & Services,63128-HIRE OF ROOM-SERVICES-FEES,21.94,Revenue,10/04/2015,Childrens
WC55-1033,CHILDLINK,Third Party Payments,Private Contractor Fees,76003-SECTION 34 (CONTACT),22.06,Revenue,10/04/2015,Childrens
WC55-1034,CHILDLINK,Transport,Car Allowances,53001-OTHER/VOLUNTEERS-CAR ALLOWANCES,24.15,Revenue,02/04/2015,Childrens
WC55-1035,CHILDLINK,Supplies & Services,Other Supplies & Services,63128-HIRE OF ROOM-SERVICES-FEES,25.91,Revenue,10/04/2015,Childrens
WC55-1036,CHILDLINK,Transport,Car Allowances,53001-OTHER/VOLUNTEERS-CAR ALLOWANCES,26.33,Revenue,10/04/2015,Childrens
WC55-1037,CHILDLINK,Supplies & Services,Other Supplies & Services,63128-HIRE OF ROOM-SERVICES-FEES,28.81,Revenue,02/04/2015,Childrens
WC55-1038,CHILDLINK,Supplies & Services,Other Supplies & Services,63128-HIRE OF ROOM-SERVICES-FEES,28.81,Revenue,10/04/2015,Childrens
WC55-1039,CHILDLINK,Supplies & Services,Other Supplies & Services,63128-HIRE OF ROOM-SERVICES-FEES,28.81,Revenue,10/04/2015,Childrens
WC55-1040,CHILDLINK,Supplies & Services,Other Supplies & Services,63128-HIRE OF ROOM-SERVICES-FEES,32.21,Revenue,28/04/2015,Childrens
WC55-1041,CHILDLINK,Transport,Car Allowances,53003-OTHER-TRAVEL ALLOWANCES,34.03,Revenue,02/04/2015,Childrens
WC55-1042,CHILDLINK,Transport,Car Allowances,53003-OTHER-TRAVEL ALLOWANCES,34.03,Revenue,10/04/2015,Childrens
WC55-1043,CHILDLINK,Transport,Car Allowances,53003-OTHER-TRAVEL ALLOWANCES,34.03,Revenue,28/04/2015,Childrens
WC55-1044,CHILDLINK,Transport,Car Allowances,53001-OTHER/VOLUNTEERS-CAR ALLOWANCES,34.58,Revenue,02/04/2015,Childrens
WC55-1045,CHILDLINK,Transport,Car Allowances,53001-OTHER/VOLUNTEERS-CAR ALLOWANCES,34.58,Revenue,10/04/2015,Childrens
WC55-1046,CHILDLINK,Transport,Car Allowances,53001-OTHER/VOLUNTEERS-CAR ALLOWANCES,34.58,Revenue,10/04/2015,Childrens
WC55-1047,CHILDLINK,Third Party Payments,Private Contractor Fees,76003-SECTION 34 (CONTACT),35.45,Revenue,02/04/2015,Childrens
WC55-1048,CHILDLINK,Third Party Payments,Private Contractor Fees,76003-SECTION 34 (CONTACT),35.45,Revenue,10/04/2015,Childrens
WC55-1049,CHILDLINK,Third Party Payments,Private Contractor Fees,76003-SECTION 34 (CONTACT),35.45,Revenue,28/04/2015,Childrens
WC55-1050,CHILDLINK,Transport,Car Allowances,53001-OTHER/VOLUNTEERS-CAR ALLOWANCES,36.44,Revenue,10/04/2015,Childrens
WC55-1051,CHILDLINK,Transport,Car Allowances,53003-OTHER-TRAVEL ALLOWANCES,36.81,Revenue,10/04/2015,Childrens
WC55-1052,CHILDLINK,Transfer Payments,Transfer Payments,76408-OUTINGS-ALLOWANCES TO S/S CLIENTS,37.77,Revenue,02/04/2015,Childrens
WC55-1053,CHILDLINK,Transfer Payments,Transfer Payments,76408-OUTINGS-ALLOWANCES TO S/S CLIENTS,37.77,Revenue,10/04/2015,Childrens
WC55-1054,CHILDLINK,Supplies & Services,Other Supplies & Services,63128-HIRE OF ROOM-SERVICES-FEES,45.79,Revenue,10/04/2015,Childrens
WC55-1055,CHILDLINK,Supplies & Services,Other Supplies & Services,63128-HIRE OF ROOM-SERVICES-FEES,45.82,Revenue,10/04/2015,Childrens
WC55-1056,CHILDLINK,Supplies & Services,Other Supplies & Services,63128-HIRE OF ROOM-SERVICES-FEES,46.19,Revenue,02/04/2015,Childrens
WC55-1057,CHILDLINK,Transport,Car Allowances,53001-OTHER/VOLUNTEERS-CAR ALLOWANCES,50.04,Revenue,10/04/2015,Childrens
WC55-1058,CHILDLINK,Transport,Car Allowances,53003-OTHER-TRAVEL ALLOWANCES,50.56,Revenue,10/04/2015,Childrens
WC55-1059,CHILDLINK,Transport,Car Allowances,53001-OTHER/VOLUNTEERS-CAR ALLOWANCES,54.95,Revenue,10/04/2015,Childrens
WC55-1060,CHILDLINK,Transport,Car Allowances,53001-OTHER/VOLUNTEERS-CAR ALLOWANCES,58.15,Revenue,10/04/2015,Childrens
WC55-1061,CHILDLINK,Transport,Car Allowances,53003-OTHER-TRAVEL ALLOWANCES,66.56,Revenue,28/04/2015,Childrens
WC55-1062,CHILDLINK,Transport,Car Allowances,53001-OTHER/VOLUNTEERS-CAR ALLOWANCES,68.33,Revenue,28/04/2015,Childrens
WC55-1063,CHILDLINK,Transport,Car Allowances,53001-OTHER/VOLUNTEERS-CAR ALLOWANCES,79.77,Revenue,28/04/2015,Childrens
WC55-1064,CHILDLINK,Supplies & Services,Other Supplies & Services,63128-HIRE OF ROOM-SERVICES-FEES,84.15,Revenue,02/04/2015,Childrens
WC55-1065,CHILDLINK,Third Party Payments,Private Contractor Fees,76003-SECTION 34 (CONTACT),85.16,Revenue,10/04/2015,Childrens
WC55-1066,CHILDLINK,Transport,Car Allowances,53003-OTHER-TRAVEL ALLOWANCES,92.33,Revenue,02/04/2015,Childrens
WC55-1067,CHILDLINK,Transport,Car Allowances,53003-OTHER-TRAVEL ALLOWANCES,95.08,Revenue,10/04/2015,Childrens
WC55-1068,CHILDLINK,Third Party Payments,Private Contractor Fees,76003-SECTION 34 (CONTACT),95.55,Revenue,02/04/2015,Childrens
WC55-1069,CHILDLINK,Transport,Car Allowances,53003-OTHER-TRAVEL ALLOWANCES,106.74,Revenue,10/04/2015,Childrens
WC55-1070,CHILDLINK,Transport,Car Allowances,53001-OTHER/VOLUNTEERS-CAR ALLOWANCES,109.58,Revenue,10/04/2015,Childrens
WC55-1071,CHILDLINK,Transport,Car Allowances,53001-OTHER/VOLUNTEERS-CAR ALLOWANCES,113.47,Revenue,10/04/2015,Childrens
WC55-1072,CHILDLINK,Transport,Car Allowances,53001-OTHER/VOLUNTEERS-CAR ALLOWANCES,114.40,Revenue,02/04/2015,Childrens
WC55-1073,CHILDLINK,Transport,Car Allowances,53001-OTHER/VOLUNTEERS-CAR ALLOWANCES,118.73,Revenue,02/04/2015,Childrens
WC55-1074,CHILDLINK,Transport,Car Allowances,53003-OTHER-TRAVEL ALLOWANCES,124.86,Revenue,02/04/2015,Childrens
WC55-1075,CHILDLINK,Transport,Car Allowances,53003-OTHER-TRAVEL ALLOWANCES,124.86,Revenue,10/04/2015,Childrens
WC55-1076,CHILDLINK,Transport,Car Allowances,53003-OTHER-TRAVEL ALLOWANCES,124.86,Revenue,10/04/2015,Childrens
WC55-1077,CHILDLINK,Transport,Car Allowances,53003-OTHER-TRAVEL ALLOWANCES,132.86,Revenue,02/04/2015,Childrens
WC55-1078,CHILDLINK,Third Party Payments,Private Contractor Fees,76003-SECTION 34 (CONTACT),132.86,Revenue,02/04/2015,Childrens
WC55-1079,CHILDLINK,Third Party Payments,Private Contractor Fees,76003-SECTION 34 (CONTACT),136.31,Revenue,28/04/2015,Childrens
WC55-1080,CHILDLINK,Transport,Car Allowances,53003-OTHER-TRAVEL ALLOWANCES,160.93,Revenue,02/04/2015,Childrens
WC55-1081,CHILDLINK,Transport,Car Allowances,53001-OTHER/VOLUNTEERS-CAR ALLOWANCES,165.21,Revenue,02/04/2015,Childrens
WC55-1082,CHILDLINK,Transport,Car Allowances,53003-OTHER-TRAVEL ALLOWANCES,195.87,Revenue,28/04/2015,Childrens
WC55-1083,CHILDLINK,Transport,Car Allowances,53003-OTHER-TRAVEL ALLOWANCES,198.42,Revenue,10/04/2015,Childrens
WC55-1084,CHILDLINK,Third Party Payments,Private Contractor Fees,76003-SECTION 34 (CONTACT),203.12,Revenue,02/04/2015,Childrens
WC55-1085,CHILDLINK,Third Party Payments,Private Contractor Fees,76003-SECTION 34 (CONTACT),213.95,Revenue,10/04/2015,Childrens
WC55-1086,CHILDLINK,Third Party Payments,Private Contractor Fees,76003-SECTION 34 (CONTACT),218.58,Revenue,10/04/2015,Childrens
WC55-1087,CHILDLINK,Transport,Car Allowances,53003-OTHER-TRAVEL ALLOWANCES,223.68,Revenue,10/04/2015,Childrens
WC55-1088,CHILDLINK,Transport,Car Allowances,53001-OTHER/VOLUNTEERS-CAR ALLOWANCES,242.81,Revenue,10/04/2015,Childrens
WC55-1089,CHILDLINK,Transport,Car Allowances,53001-OTHER/VOLUNTEERS-CAR ALLOWANCES,248.24,Revenue,10/04/2015,Childrens
WC55-1090,CHILDLINK,Third Party Payments,Private Contractor Fees,76003-SECTION 34 (CONTACT),249.35,Revenue,28/04/2015,Childrens
WC55-1091,CHILDLINK,Third Party Payments,Private Contractor Fees,76003-SECTION 34 (CONTACT),251.46,Revenue,10/04/2015,Childrens
WC55-1092,CHILDLINK,Third Party Payments,Private Contractor Fees,76003-SECTION 34 (CONTACT),267.95,Revenue,10/04/2015,Childrens
WC55-1093,CHILDLINK,Transport,Car Allowances,53001-OTHER/VOLUNTEERS-CAR ALLOWANCES,278.51,Revenue,02/04/2015,Childrens
WC55-1094,CHILDLINK,Transport,Car Allowances,53003-OTHER-TRAVEL ALLOWANCES,278.62,Revenue,10/04/2015,Childrens
WC55-1095,CHILDLINK,Third Party Payments,Private Contractor Fees,76003-SECTION 34 (CONTACT),279.23,Revenue,02/04/2015,Childrens
WC55-1096,CHILDLINK,Third Party Payments,Private Contractor Fees,76003-SECTION 34 (CONTACT),279.23,Revenue,10/04/2015,Childrens
WC55-1097,CHILDLINK,Transport,Car Allowances,53003-OTHER-TRAVEL ALLOWANCES,280.91,Revenue,02/04/2015,Childrens
WC55-1098,CHILDLINK,Third Party Payments,Private Contractor Fees,76003-SECTION 34 (CONTACT),280.95,Revenue,02/04/2015,Childrens
WC55-1099,CHILDLINK,Third Party Payments,Private Contractor Fees,76003-SECTION 34 (CONTACT),280.95,Revenue,10/04/2015,Childrens
WC55-1100,CHILDLINK,Third Party Payments,Private Contractor Fees,76003-SECTION 34 (CONTACT),280.95,Revenue,10/04/2015,Childrens
WC55-1101,CHILDLINK,Supplies & Services,Other Supplies & Services,63128-HIRE OF ROOM-SERVICES-FEES,291.95,Revenue,02/04/2015,Childrens
WC55-1102,CHILDLINK,Supplies & Services,Other Supplies & Services,63128-HIRE OF ROOM-SERVICES-FEES,291.95,Revenue,10/04/2015,Childrens
WC55-1103,CHILDLINK,Supplies & Services,Other Supplies & Services,63128-HIRE OF ROOM-SERVICES-FEES,291.95,Revenue,28/04/2015,Childrens
WC55-1104,CHILDLINK,Third Party Payments,Private Contractor Fees,76003-SECTION 34 (CONTACT),329.56,Revenue,02/04/2015,Childrens
WC55-1105,CHILDLINK,Transport,Car Allowances,53003-OTHER-TRAVEL ALLOWANCES,337.40,Revenue,10/04/2015,Childrens
WC55-1106,CHILDLINK,Third Party Payments,Private Contractor Fees,76003-SECTION 34 (CONTACT),354.69,Revenue,10/04/2015,Childrens
WC55-1107,CHILDLINK,Third Party Payments,Private Contractor Fees,76003-SECTION 34 (CONTACT),357.60,Revenue,02/04/2015,Childrens
WC55-1108,CHILDLINK,Third Party Payments,Private Contractor Fees,76003-SECTION 34 (CONTACT),368.00,Revenue,10/04/2015,Childrens
WC55-1109,CHILDLINK,Transport,Car Allowances,53003-OTHER-TRAVEL ALLOWANCES,378.54,Revenue,02/04/2015,Childrens
WC55-1110,CHILDLINK,Third Party Payments,Private Contractor Fees,76003-SECTION 34 (CONTACT),446.44,Revenue,10/04/2015,Childrens
WC55-1111,CHILDRENS RESIDENTIAL SERVS,Supplies & Services,"Equip,Furniture & Materials",60000-FURNITURE & EQUIPMENT,1.66,Revenue,01/04/2015,Childrens
WC55-1112,CHILDRENS RESIDENTIAL SERVS,Transfer Payments,Transfer Payments,76408-OUTINGS-ALLOWANCES TO S/S CLIENTS,3.74,Revenue,01/04/2015,Childrens
WC55-1113,CHILDRENS RESIDENTIAL SERVS,Transport,Car Allowances,53000-OFFICERS/STAFF-CAR ALLOWANCES,4.00,Revenue,01/04/2015,Childrens
WC55-1114,CHILDRENS RESIDENTIAL SERVS,Supplies & Services,"Printing, Stationery & Office Exp",62001-STATIONERY & GENERAL SUPPLIES-OFFICE EXP,5.00,Revenue,01/04/2015,Childrens
WC55-1115,CHILDRENS RESIDENTIAL SERVS,Supplies & Services,Provisions,61014-GENERAL PROVISIONS-PROVISIONS,5.71,Revenue,01/04/2015,Childrens
WC55-1116,CHILDRENS RESIDENTIAL SERVS,Supplies & Services,Provisions,61014-GENERAL PROVISIONS-PROVISIONS,7.50,Revenue,01/04/2015,Childrens
WC55-1117,CHILDRENS RESIDENTIAL SERVS,Premises,Cleaning & Caretaking,46000-EQUIP NEW-CLEANING,11.00,Revenue,01/04/2015,Childrens
WC55-1118,CHILDRENS RESIDENTIAL SERVS,Transfer Payments,Transfer Payments,76400-RESIDENTS PERSONAL EXPENSES-ALLOWANCES TO S/S CLIENTS,11.75,Revenue,01/04/2015,Childrens
WC55-1119,CHILDRENS RESIDENTIAL SERVS,Transport,Car Allowances,53000-OFFICERS/STAFF-CAR ALLOWANCES,14.67,Revenue,01/04/2015,Childrens
WC55-1120,CHILDRENS RESIDENTIAL SERVS,Transport,Car Allowances,53000-OFFICERS/STAFF-CAR ALLOWANCES,15.58,Revenue,01/04/2015,Childrens
WC55-1121,CHILDRENS RESIDENTIAL SERVS,Transfer Payments,Transfer Payments,76000-TRANSFER PAYMENTS - SOCIAL SERVICES CLIENTS,18.49,Revenue,01/04/2015,Childrens
WC55-1122,CHILDRENS RESIDENTIAL SERVS,Transfer Payments,Transfer Payments,76408-OUTINGS-ALLOWANCES TO S/S CLIENTS,18.60,Revenue,01/04/2015,Childrens
WC55-1123,CHILDRENS RESIDENTIAL SERVS,Supplies & Services,Services,63000-PROFESSIONAL FEES AND SERVICES,34.80,Revenue,01/04/2015,Childrens
WC55-1124,CHILDRENS RESIDENTIAL SERVS,Supplies & Services,Provisions,61016-FOOD AND BEVERAGES-PROVISIONS,40.06,Revenue,01/04/2015,Childrens
WC55-1125,CHILDRENS RESIDENTIAL SERVS,Supplies & Services,"Equip,Furniture & Materials",60000-FURNITURE & EQUIPMENT,49.58,Revenue,01/04/2015,Childrens
WC55-1126,CHILDRENS RESIDENTIAL SERVS,Supplies & Services,Provisions,61014-GENERAL PROVISIONS-PROVISIONS,63.27,Revenue,01/04/2015,Childrens
WC55-1127,CHILDRENS RESIDENTIAL SERVS,Employees,Training,30030-EXTERNAL TRAINING,66.50,Revenue,01/04/2015,Childrens
WC55-1128,CHILDRENS RESIDENTIAL SERVS,Transfer Payments,Transfer Payments,76400-RESIDENTS PERSONAL EXPENSES-ALLOWANCES TO S/S CLIENTS,77.49,Revenue,01/04/2015,Childrens
WC55-1129,CHILDRENS RESIDENTIAL SERVS,Transfer Payments,Transfer Payments,76400-RESIDENTS PERSONAL EXPENSES-ALLOWANCES TO S/S CLIENTS,132.75,Revenue,01/04/2015,Childrens
WC55-1130,CHILDRENS RESIDENTIAL SERVS,Supplies & Services,Provisions,61014-GENERAL PROVISIONS-PROVISIONS,152.44,Revenue,01/04/2015,Childrens
WC55-1131,CHILDRENS RESIDENTIAL SERVS,Transfer Payments,Transfer Payments,76400-RESIDENTS PERSONAL EXPENSES-ALLOWANCES TO S/S CLIENTS,170.69,Revenue,01/04/2015,Childrens
WC55-1132,CHILDRENS RESIDENTIAL SERVS,Transfer Payments,Transfer Payments,76408-OUTINGS-ALLOWANCES TO S/S CLIENTS,192.08,Revenue,01/04/2015,Childrens
WC55-1133,CHILDRENS RESIDENTIAL SERVS,Transfer Payments,Transfer Payments,76400-RESIDENTS PERSONAL EXPENSES-ALLOWANCES TO S/S CLIENTS,307.20,Revenue,01/04/2015,Childrens
WC55-1134,CHILDRENS RESIDENTIAL SERVS,Transfer Payments,Transfer Payments,76408-OUTINGS-ALLOWANCES TO S/S CLIENTS,445.62,Revenue,01/04/2015,Childrens
WC55-1135,REDACTED,Transfer Payments,Transfer Payments,76422-DIRECT PAYMENTS TO SOCIAL SERVICES CLIENTS,"1,489.63",Revenue,14/04/2015,Social Care & Inclusion
WC55-1136,REDACTED,Transfer Payments,Transfer Payments,76422-DIRECT PAYMENTS TO SOCIAL SERVICES CLIENTS,755.31,Revenue,14/04/2015,Social Care & Inclusion
WC55-1137,REDACTED,Transfer Payments,Transfer Payments,76422-DIRECT PAYMENTS TO SOCIAL SERVICES CLIENTS,489.60,Revenue,14/04/2015,Social Care & Inclusion
WC55-1138,REDACTED,Third Party Payments,Private Contractor Fees,74006-HOLIDAY/CHRISTMAS ALLOWANCE-FOSTER CARERS-OTH AGENCY PROVISION,250.37,Revenue,13/04/2015,Childrens
WC55-1139,REDACTED,Transfer Payments,Transfer Payments,76422-DIRECT PAYMENTS TO SOCIAL SERVICES CLIENTS,"1,125.97",Revenue,14/04/2015,Social Care & Inclusion
WC55-1140,REDACTED,Third Party Payments,Private Contractor Fees,74006-HOLIDAY/CHRISTMAS ALLOWANCE-FOSTER CARERS-OTH AGENCY PROVISION,742.08,Revenue,13/04/2015,Childrens
WC55-1141,REDACTED,Transfer Payments,Transfer Payments,76422-DIRECT PAYMENTS TO SOCIAL SERVICES CLIENTS,276.00,Revenue,14/04/2015,Social Care & Inclusion
WC55-1142,REDACTED,Transfer Payments,Transfer Payments,76422-DIRECT PAYMENTS TO SOCIAL SERVICES CLIENTS,822.16,Revenue,14/04/2015,Social Care & Inclusion
WC55-1143,REDACTED,Transfer Payments,Transfer Payments,76422-DIRECT PAYMENTS TO SOCIAL SERVICES CLIENTS,588.00,Revenue,14/04/2015,Social Care & Inclusion
WC55-1144,CHUBB ELECTRONIC SECURITY LTD,Premises,Premises-Repairs & Maintenance,"40000-REPAIRS,ALTERATIONS & MAINTENANCE-PREM",289.94,Revenue,02/04/2015,Childrens
WC55-1145,CHUBB FIRE & SECURITY LTD,Third Party Payments,Private Contractor Fees,73002-SECURITY-PRIV CONTRACTOR FEES,290.50,Revenue,13/04/2015,Regeneration
WC55-1146,CHUBB FIRE & SECURITY LTD,Third Party Payments,Private Contractor Fees,73002-SECURITY-PRIV CONTRACTOR FEES,321.36,Revenue,28/04/2015,Regeneration
WC55-1147,CHUBB FIRE & SECURITY LTD,Supplies & Services,"Equip,Furniture & Materials",60008-MAINTENANCE-FURNITURE & EQUIPMENT,474.45,Revenue,21/04/2015,Neighbourhood Services
WC55-1148,CHUBB FIRE & SECURITY LTD,Supplies & Services,"Equip,Furniture & Materials",60008-MAINTENANCE-FURNITURE & EQUIPMENT,545.22,Revenue,28/04/2015,Neighbourhood Services
WC55-1149,CHUBB FIRE & SECURITY LTD,Supplies & Services,"Equip,Furniture & Materials",60006-NEW-FURNITURE & EQUIPMENT,986.62,Revenue,16/04/2015,Neighbourhood Services
WC55-1150,CHUCKERY FESTIVAL,Supplies & Services,Other Supplies & Services,62515-MISCELLANEOUS SUPPLIES,574.96,Revenue,10/04/2015,Neighbourhood Services
WC55-1151,CHURCH OF ASCENSION C OF E,Transfer Payments,Transfer Payments,77300-ISB-FORMULA ALLOCATION,600.00,Revenue,08/04/2015,Childrens
WC55-1152,CHURCH OF ASCENSION C OF E,Transfer Payments,Transfer Payments,77300-ISB-FORMULA ALLOCATION,700.00,Revenue,08/04/2015,Childrens
WC55-1153,CHURCH OF ASCENSION C OF E,Transfer Payments,Transfer Payments,77300-ISB-FORMULA ALLOCATION,"1,107.00",Revenue,08/04/2015,Childrens
WC55-1154,CIEH,Employees,Training,30030-EXTERNAL TRAINING,515.60,Revenue,09/04/2015,Neighbourhood Services
WC55-1155,CIHT - NOT IHT,Employees,Training,30030-EXTERNAL TRAINING,450.00,Revenue,29/04/2015,Regeneration
WC55-1156,REDACTED,Third Party Payments,Private Contractor Fees,73374-SUPPORTED & OTHER ACCOMMODATION,"1,452.12",Revenue,21/04/2015,Social Care & Inclusion
WC55-1157,CIPFA 001,Employees,Training,30030-EXTERNAL TRAINING,620.00,Revenue,09/04/2015,Resources
WC55-1158,CIPFA 001,Employees,Training,30030-EXTERNAL TRAINING,745.00,Revenue,09/04/2015,Resources
WC55-1159,CIPFA 001,Supplies & Services,Subscriptions,64500-PUBLICATIONS/ORGANISATIONS-SUBSCRIPTIONS,"1,500.00",Revenue,14/04/2015,Resources
WC55-1160,CITY & GUILDS,Supplies & Services,Services,63113-TESTING-SERVICES-FEES,757.50,Revenue,15/04/2015,Neighbourhood Services
WC55-1161,CITY & GUILDS,Supplies & Services,Services,63113-TESTING-SERVICES-FEES,"1,224.00",Revenue,15/04/2015,Neighbourhood Services
WC55-1162,CITY & GUILDS,Supplies & Services,Services,63113-TESTING-SERVICES-FEES,"1,458.00",Revenue,15/04/2015,Neighbourhood Services
WC55-1163,CITY ELECTRICAL FACTORS LTD (BIRMINGHAM & NORTH WALES),Premises,Premises-Repairs & Maintenance,"40000-REPAIRS,ALTERATIONS & MAINTENANCE-PREM",819.26,Revenue,23/04/2015,Resources
WC55-1164,CIVICA UK LIMITED,Supplies & Services,Communications & Computing,63820-RECHARGE FOR MAINTENANCE/APPLICATION COSTS-COMPUTER,750.00,Revenue,10/04/2015,Resources
WC55-1165,CIVICARE MIDLANDS LTD,Third Party Payments,Private Contractor Fees,73374-SUPPORTED & OTHER ACCOMMODATION,443.52,Revenue,09/04/2015,Social Care & Inclusion
WC55-1166,CIVICARE MIDLANDS LTD,Third Party Payments,Private Contractor Fees,73374-SUPPORTED & OTHER ACCOMMODATION,443.52,Revenue,23/04/2015,Social Care & Inclusion
WC55-1167,CIVICARE MIDLANDS LTD,Third Party Payments,Private Contractor Fees,73374-SUPPORTED & OTHER ACCOMMODATION,443.52,Revenue,28/04/2015,Social Care & Inclusion
WC55-1168,CIVICARE MIDLANDS LTD,Third Party Payments,Private Contractor Fees,73374-SUPPORTED & OTHER ACCOMMODATION,443.52,Revenue,28/04/2015,Social Care & Inclusion
WC55-1169,CIVICARE MIDLANDS LTD,Third Party Payments,Private Contractor Fees,73372-DOMICILIARY CARE,"25,019.98",Revenue,27/04/2015,Social Care & Inclusion
WC55-1170,REDACTED,Transfer Payments,Transfer Payments,76422-DIRECT PAYMENTS TO SOCIAL SERVICES CLIENTS,"1,088.00",Revenue,14/04/2015,Social Care & Inclusion
WC55-1171,REDACTED,Transfer Payments,Transfer Payments,76422-DIRECT PAYMENTS TO SOCIAL SERVICES CLIENTS,909.80,Revenue,14/04/2015,Social Care & Inclusion
WC55-1172,REDACTED,Transfer Payments,Transfer Payments,76422-DIRECT PAYMENTS TO SOCIAL SERVICES CLIENTS,504.91,Revenue,14/04/2015,Social Care & Inclusion
WC55-1173,REDACTED,Third Party Payments,Grants to Other Orgs,66505-OTHER-GRANTS TO OTHER ORGS,667.49,Revenue,13/04/2015,Childrens
WC55-1174,CLAPHAM TERRACE COMMUNITY PRIMARY SCHOOL,Transfer Payments,Transfer Payments,77300-ISB-FORMULA ALLOCATION,300.00,Revenue,08/04/2015,Childrens
WC55-1175,REDACTED,Third Party Payments,Private Contractor Fees,74006-HOLIDAY/CHRISTMAS ALLOWANCE-FOSTER CARERS-OTH AGENCY PROVISION,363.87,Revenue,13/04/2015,Childrens
WC55-1176,CLAREGATE PRIMARY SCHOOL,Transfer Payments,Transfer Payments,77300-ISB-FORMULA ALLOCATION,300.00,Revenue,08/04/2015,Childrens
WC55-1177,CLARES KIDDY CARE,Third Party Payments,Grants to Other Orgs,66505-OTHER-GRANTS TO OTHER ORGS,"1,334.97",Revenue,13/04/2015,Childrens
WC55-1178,CLEADON CHURCH OF ENGLAND ACADEMY,Transfer Payments,Transfer Payments,77300-ISB-FORMULA ALLOCATION,300.00,Revenue,20/04/2015,Childrens
WC55-1179,CLEADON CHURCH OF ENGLAND ACADEMY,Transfer Payments,Transfer Payments,77300-ISB-FORMULA ALLOCATION,"1,260.00",Revenue,20/04/2015,Childrens
WC55-1180,CLIFFORD HOUSE FOSTERING LTD,Third Party Payments,Private Contractor Fees,74037-INDEPENDENT FOSTER CARE-OTH AGENCY PROVISION,"2,522.80",Revenue,28/04/2015,Childrens
WC55-1181,CLIFFORD HOUSE FOSTERING LTD,Third Party Payments,Private Contractor Fees,74037-INDEPENDENT FOSTER CARE-OTH AGENCY PROVISION,"2,522.80",Revenue,01/04/2015,Childrens
WC55-1182,CLIFFORD HOUSE FOSTERING LTD,Third Party Payments,Private Contractor Fees,74037-INDEPENDENT FOSTER CARE-OTH AGENCY PROVISION,"2,949.56",Revenue,01/04/2015,Childrens
WC55-1183,CLIFFORD HOUSE FOSTERING LTD,Third Party Payments,Private Contractor Fees,74037-INDEPENDENT FOSTER CARE-OTH AGENCY PROVISION,"2,949.56",Revenue,28/04/2015,Childrens
WC55-1184,CLIFFORD HOUSE FOSTERING LTD,Third Party Payments,Private Contractor Fees,74037-INDEPENDENT FOSTER CARE-OTH AGENCY PROVISION,"3,006.00",Revenue,01/04/2015,Childrens
WC55-1185,REDACTED,Transfer Payments,Transfer Payments,76422-DIRECT PAYMENTS TO SOCIAL SERVICES CLIENTS,572.95,Revenue,14/04/2015,Social Care & Inclusion
WC55-1186,CMHT SOLICITORS,Third Party Payments,Private Contractor Fees,73014-LEGAL FEES-PRIV CONTRACTOR FEES,520.02,Revenue,21/04/2015,Childrens
WC55-1187,CMHT SOLICITORS,Third Party Payments,Private Contractor Fees,73014-LEGAL FEES-PRIV CONTRACTOR FEES,"3,795.41",Revenue,24/04/2015,Childrens
WC55-1188,COACHWISE LIMITED,Employees,Training,30030-EXTERNAL TRAINING,431.65,Revenue,02/04/2015,Neighbourhood Services
WC55-1189,COATBRIDGE HIGH SCHOOL,Transfer Payments,Transfer Payments,77300-ISB-FORMULA ALLOCATION,650.00,Revenue,08/04/2015,Childrens
WC55-1190,COIN A DRINK LTD,Supplies & Services,Provisions,61305-CATERING,424.81,Revenue,01/04/2015,Neighbourhood Services
WC55-1191,REDACTED,Third Party Payments,Private Contractor Fees,74006-HOLIDAY/CHRISTMAS ALLOWANCE-FOSTER CARERS-OTH AGENCY PROVISION,"2,828.75",Revenue,13/04/2015,Childrens
WC55-1192,COLLINGWOOD CENTRE LTD,Supplies & Services,"Equip,Furniture & Materials",60008-MAINTENANCE-FURNITURE & EQUIPMENT,700.00,Revenue,01/04/2015,Neighbourhood Services
WC55-1193,COLONEL FRANK SEELY SCHOOL,Transfer Payments,Transfer Payments,77300-ISB-FORMULA ALLOCATION,300.00,Revenue,08/04/2015,Childrens
WC55-1194,COLONEL FRANK SEELY SCHOOL,Transfer Payments,Transfer Payments,77300-ISB-FORMULA ALLOCATION,"3,000.00",Revenue,08/04/2015,Childrens
WC55-1195,COMMERCIAL & DOMESTIC,Premises,Premises-Repairs & Maintenance,40705-TESTING-ELEC SERVICES,1.00,Revenue,23/04/2015,Regeneration
WC55-1196,COMMERCIAL & DOMESTIC,Premises,Premises-Repairs & Maintenance,40705-TESTING-ELEC SERVICES,1.00,Revenue,23/04/2015,Regeneration
WC55-1197,COMMERCIAL & DOMESTIC,Premises,Premises-Repairs & Maintenance,40705-TESTING-ELEC SERVICES,1.00,Revenue,23/04/2015,Regeneration
WC55-1198,COMMERCIAL & DOMESTIC,Premises,Premises-Repairs & Maintenance,40705-TESTING-ELEC SERVICES,1.00,Revenue,23/04/2015,Regeneration
WC55-1199,COMMERCIAL & DOMESTIC,Premises,Premises-Repairs & Maintenance,40705-TESTING-ELEC SERVICES,1.00,Revenue,23/04/2015,Regeneration
WC55-1200,COMMERCIAL & DOMESTIC,Premises,Premises-Repairs & Maintenance,40705-TESTING-ELEC SERVICES,1.00,Revenue,23/04/2015,Regeneration
WC55-1201,COMMERCIAL & DOMESTIC,Premises,Premises-Repairs & Maintenance,40705-TESTING-ELEC SERVICES,1.00,Revenue,23/04/2015,Regeneration
WC55-1202,COMMERCIAL & DOMESTIC,Premises,Premises-Repairs & Maintenance,40705-TESTING-ELEC SERVICES,1.00,Revenue,23/04/2015,Regeneration
WC55-1203,COMMERCIAL & DOMESTIC,Premises,Premises-Repairs & Maintenance,40705-TESTING-ELEC SERVICES,1.00,Revenue,23/04/2015,Regeneration
WC55-1204,COMMERCIAL & DOMESTIC,Premises,Premises-Repairs & Maintenance,40705-TESTING-ELEC SERVICES,1.00,Revenue,23/04/2015,Regeneration
WC55-1205,COMMERCIAL & DOMESTIC,Premises,Premises-Repairs & Maintenance,40705-TESTING-ELEC SERVICES,2.00,Revenue,23/04/2015,Regeneration
WC55-1206,COMMERCIAL & DOMESTIC,Premises,Premises-Repairs & Maintenance,40705-TESTING-ELEC SERVICES,2.00,Revenue,23/04/2015,Regeneration
WC55-1207,COMMERCIAL & DOMESTIC,Premises,Premises-Repairs & Maintenance,40705-TESTING-ELEC SERVICES,2.00,Revenue,23/04/2015,Regeneration
WC55-1208,COMMERCIAL & DOMESTIC,Premises,Premises-Repairs & Maintenance,40705-TESTING-ELEC SERVICES,2.00,Revenue,23/04/2015,Regeneration
WC55-1209,COMMERCIAL & DOMESTIC,Premises,Premises-Repairs & Maintenance,40705-TESTING-ELEC SERVICES,2.00,Revenue,23/04/2015,Regeneration
WC55-1210,COMMERCIAL & DOMESTIC,Premises,Premises-Repairs & Maintenance,40705-TESTING-ELEC SERVICES,3.00,Revenue,23/04/2015,Regeneration
WC55-1211,COMMERCIAL & DOMESTIC,Premises,Premises-Repairs & Maintenance,40705-TESTING-ELEC SERVICES,3.00,Revenue,23/04/2015,Regeneration
WC55-1212,COMMERCIAL & DOMESTIC,Supplies & Services,"Equip,Furniture & Materials",60007-REPAIR OF EQUIPMENT-EQUIPMENT,15.00,Revenue,23/04/2015,Regeneration
WC55-1213,COMMERCIAL & DOMESTIC,Supplies & Services,"Equip,Furniture & Materials",60007-REPAIR OF EQUIPMENT-EQUIPMENT,15.00,Revenue,23/04/2015,Regeneration
WC55-1214,COMMERCIAL & DOMESTIC,Supplies & Services,"Equip,Furniture & Materials",60007-REPAIR OF EQUIPMENT-EQUIPMENT,15.00,Revenue,23/04/2015,Regeneration
WC55-1215,COMMERCIAL & DOMESTIC,Supplies & Services,"Equip,Furniture & Materials",60007-REPAIR OF EQUIPMENT-EQUIPMENT,15.00,Revenue,23/04/2015,Regeneration
WC55-1216,COMMERCIAL & DOMESTIC,Supplies & Services,"Equip,Furniture & Materials",60007-REPAIR OF EQUIPMENT-EQUIPMENT,15.00,Revenue,23/04/2015,Regeneration
WC55-1217,COMMERCIAL & DOMESTIC,Supplies & Services,"Equip,Furniture & Materials",60007-REPAIR OF EQUIPMENT-EQUIPMENT,15.00,Revenue,23/04/2015,Regeneration
WC55-1218,COMMERCIAL & DOMESTIC,Supplies & Services,"Equip,Furniture & Materials",60007-REPAIR OF EQUIPMENT-EQUIPMENT,20.00,Revenue,23/04/2015,Regeneration
WC55-1219,COMMERCIAL & DOMESTIC,Supplies & Services,"Equip,Furniture & Materials",60007-REPAIR OF EQUIPMENT-EQUIPMENT,20.00,Revenue,23/04/2015,Regeneration
WC55-1220,COMMERCIAL & DOMESTIC,Supplies & Services,"Equip,Furniture & Materials",60007-REPAIR OF EQUIPMENT-EQUIPMENT,20.00,Revenue,23/04/2015,Regeneration
WC55-1221,COMMERCIAL & DOMESTIC,Supplies & Services,"Equip,Furniture & Materials",60007-REPAIR OF EQUIPMENT-EQUIPMENT,20.00,Revenue,23/04/2015,Regeneration
WC55-1222,COMMERCIAL & DOMESTIC,Supplies & Services,"Equip,Furniture & Materials",60007-REPAIR OF EQUIPMENT-EQUIPMENT,20.00,Revenue,23/04/2015,Regeneration
WC55-1223,COMMERCIAL & DOMESTIC,Supplies & Services,"Equip,Furniture & Materials",60007-REPAIR OF EQUIPMENT-EQUIPMENT,20.00,Revenue,23/04/2015,Regeneration
WC55-1224,COMMERCIAL & DOMESTIC,Supplies & Services,"Equip,Furniture & Materials",60007-REPAIR OF EQUIPMENT-EQUIPMENT,35.00,Revenue,23/04/2015,Regeneration
WC55-1225,COMMERCIAL & DOMESTIC,Supplies & Services,"Equip,Furniture & Materials",60007-REPAIR OF EQUIPMENT-EQUIPMENT,35.00,Revenue,23/04/2015,Regeneration
WC55-1226,COMMERCIAL & DOMESTIC,Supplies & Services,"Equip,Furniture & Materials",60007-REPAIR OF EQUIPMENT-EQUIPMENT,35.00,Revenue,23/04/2015,Regeneration
WC55-1227,COMMERCIAL & DOMESTIC,Supplies & Services,"Equip,Furniture & Materials",60007-REPAIR OF EQUIPMENT-EQUIPMENT,40.00,Revenue,23/04/2015,Regeneration
WC55-1228,COMMERCIAL & DOMESTIC,Supplies & Services,"Equip,Furniture & Materials",60007-REPAIR OF EQUIPMENT-EQUIPMENT,40.00,Revenue,23/04/2015,Regeneration
WC55-1229,COMMERCIAL & DOMESTIC,Supplies & Services,"Equip,Furniture & Materials",60007-REPAIR OF EQUIPMENT-EQUIPMENT,40.00,Revenue,23/04/2015,Regeneration
WC55-1230,COMMERCIAL & DOMESTIC,Supplies & Services,"Equip,Furniture & Materials",60007-REPAIR OF EQUIPMENT-EQUIPMENT,45.00,Revenue,23/04/2015,Regeneration
WC55-1231,COMMERCIAL & DOMESTIC,Supplies & Services,"Equip,Furniture & Materials",60007-REPAIR OF EQUIPMENT-EQUIPMENT,55.00,Revenue,23/04/2015,Regeneration
WC55-1232,COMMUNITY FIRST PARTNERSHIP,Supplies & Services,Services,63102-CONSULTANTS FEES - CORPORATE,"1,900.00",Revenue,29/04/2015,Neighbourhood Services
WC55-1233,COMMUNITY PRODUCTS (UK) LTD,Capital,Capital,01005-ARCHITECTS INSTRUCTION,"1,861.00",Capital,08/04/2015,Childrens
WC55-1234,COMPASS FOSTERING CENTRAL LIMITED,Third Party Payments,Private Contractor Fees,74037-INDEPENDENT FOSTER CARE-OTH AGENCY PROVISION,"2,175.00",Revenue,14/04/2015,Childrens
WC55-1235,COMPASS FOSTERING CENTRAL LIMITED,Third Party Payments,Private Contractor Fees,74037-INDEPENDENT FOSTER CARE-OTH AGENCY PROVISION,"2,250.00",Revenue,29/04/2015,Childrens
WC55-1236,COMPASS FOSTERING CENTRAL LIMITED,Third Party Payments,Private Contractor Fees,74037-INDEPENDENT FOSTER CARE-OTH AGENCY PROVISION,"2,366.40",Revenue,14/04/2015,Childrens
WC55-1237,COMPASS FOSTERING CENTRAL LIMITED,Third Party Payments,Private Contractor Fees,74037-INDEPENDENT FOSTER CARE-OTH AGENCY PROVISION,"2,448.00",Revenue,29/04/2015,Childrens
WC55-1238,COMPLETE CARE SERVICES,Employees,Agency,34305-AGENCY STAFF-EMPLOYEES,264.11,Revenue,02/04/2015,Social Care & Inclusion
WC55-1239,COMPLETE CARE SERVICES,Employees,Agency,34305-AGENCY STAFF-EMPLOYEES,269.50,Revenue,02/04/2015,Social Care & Inclusion
WC55-1240,COMPLETE CARE SERVICES,Employees,Agency,34305-AGENCY STAFF-EMPLOYEES,291.06,Revenue,02/04/2015,Social Care & Inclusion
WC55-1241,COMPLETE CARE SERVICES,Employees,Agency,34305-AGENCY STAFF-EMPLOYEES,312.62,Revenue,02/04/2015,Social Care & Inclusion
WC55-1242,COMPLETE CARE SERVICES,Third Party Payments,Private Contractor Fees,73372-DOMICILIARY CARE,320.71,Revenue,01/04/2015,Social Care & Inclusion
WC55-1243,COMPLETE CARE SERVICES,Third Party Payments,Private Contractor Fees,73372-DOMICILIARY CARE,322.00,Revenue,01/04/2015,Social Care & Inclusion
WC55-1244,COMPLETE CARE SERVICES,Third Party Payments,Private Contractor Fees,73372-DOMICILIARY CARE,322.00,Revenue,01/04/2015,Social Care & Inclusion
WC55-1245,COMPLETE CARE SERVICES,Third Party Payments,Private Contractor Fees,73372-DOMICILIARY CARE,578.45,Revenue,01/04/2015,Social Care & Inclusion
WC55-1246,COMPLETE CARE SERVICES,Third Party Payments,Private Contractor Fees,73372-DOMICILIARY CARE,840.84,Revenue,01/04/2015,Social Care & Inclusion
WC55-1247,COMPLETE CARE SERVICES,Third Party Payments,Private Contractor Fees,73372-DOMICILIARY CARE,943.00,Revenue,02/04/2015,Social Care & Inclusion
WC55-1248,COMPLETE CARE SERVICES,Third Party Payments,Private Contractor Fees,73372-DOMICILIARY CARE,"65,773.74",Revenue,15/04/2015,Social Care & Inclusion
WC55-1249,COMPUTER ADMINISTRATION & DEVELOPMENT SERVICES LTD,Supplies & Services,"Equip,Furniture & Materials",60008-MAINTENANCE-FURNITURE & EQUIPMENT,125.00,Revenue,27/04/2015,Childrens
WC55-1250,COMPUTER ADMINISTRATION & DEVELOPMENT SERVICES LTD,Supplies & Services,"Equip,Furniture & Materials",60008-MAINTENANCE-FURNITURE & EQUIPMENT,125.00,Revenue,27/04/2015,Childrens
WC55-1251,CONCEPT ELEVATORS (UK) LIMITED,Premises,Premises-Repairs & Maintenance,"40000-REPAIRS,ALTERATIONS & MAINTENANCE-PREM",295.00,Revenue,15/04/2015,Regeneration
WC55-1252,CONCEPT ELEVATORS (UK) LIMITED,Premises,Premises-Repairs & Maintenance,"40000-REPAIRS,ALTERATIONS & MAINTENANCE-PREM",320.72,Revenue,10/04/2015,Resources
WC55-1253,CONCEPT ELEVATORS (UK) LIMITED,Premises,Premises-Repairs & Maintenance,"40000-REPAIRS,ALTERATIONS & MAINTENANCE-PREM",376.00,Revenue,27/04/2015,Regeneration
WC55-1254,CONCEPT ELEVATORS (UK) LIMITED,Premises,Premises-Repairs & Maintenance,"40000-REPAIRS,ALTERATIONS & MAINTENANCE-PREM",388.00,Revenue,14/04/2015,Regeneration
WC55-1255,CONCEPT ELEVATORS (UK) LIMITED,Premises,Premises-Repairs & Maintenance,"40000-REPAIRS,ALTERATIONS & MAINTENANCE-PREM","1,218.60",Revenue,02/04/2015,Regeneration
WC55-1256,CONCEPT ELEVATORS (UK) LIMITED,Premises,Premises-Repairs & Maintenance,"40000-REPAIRS,ALTERATIONS & MAINTENANCE-PREM","1,363.40",Revenue,02/04/2015,Regeneration
WC55-1257,CONDOVER COLLEGE LTD,Third Party Payments,Private Contractor Fees,73373-RESIDENTIAL & NURSING CARE PLACEMENTS,"6,428.57",Revenue,15/04/2015,Social Care & Inclusion
WC55-1258,CONDOVER COLLEGE LTD,Third Party Payments,Private Contractor Fees,73373-RESIDENTIAL & NURSING CARE PLACEMENTS,"7,779.60",Revenue,15/04/2015,Social Care & Inclusion
WC55-1259,CONSTABLES,Transport,Hire,52000-WITH DRIVER-HIRE OF VEHICLES,"9,906.00",Revenue,21/04/2015,Childrens
WC55-1260,CONTACT GROUP,Supplies & Services,Services,63102-CONSULTANTS FEES - CORPORATE,"17,748.34",Revenue,24/04/2015,Childrens
WC55-1261,CONWY COUNTY BOROUGH COUNCIL,Transport,Hire,52000-WITH DRIVER-HIRE OF VEHICLES,360.00,Revenue,27/04/2015,Childrens
WC55-1262,CONWY COUNTY BOROUGH COUNCIL,Transport,Hire,52000-WITH DRIVER-HIRE OF VEHICLES,480.00,Revenue,27/04/2015,Childrens
WC55-1263,CO-OPERATIVE FUNERAL SERVICES,Supplies & Services,Other Supplies & Services,63110-BURIAL & CREMATION-SERVICES-FEES,500.00,Revenue,13/04/2015,Neighbourhood Services
WC55-1264,COPPICE PERFORMING ARTS SCHOOL,Transfer Payments,Transfer Payments,77300-ISB-FORMULA ALLOCATION,600.00,Revenue,08/04/2015,Childrens
WC55-1265,CORE ASSETS CHILDRENS SERVICES LIMITED,Supplies & Services,Services,63000-PROFESSIONAL FEES AND SERVICES,750.00,Revenue,22/04/2015,Childrens
WC55-1266,CORE ASSETS CHILDRENS SERVICES LIMITED,Supplies & Services,Services,63000-PROFESSIONAL FEES AND SERVICES,"1,040.00",Revenue,28/04/2015,Childrens
WC55-1267,CORY ENVIRONMENTAL (CENTRAL) LTD,Third Party Payments,Private Contractor Fees,73039-LANDFILL TAX-PRIV CONTRACTOR FEES,388.93,Revenue,24/04/2015,Neighbourhood Services
WC55-1268,CORY ENVIRONMENTAL (CENTRAL) LTD,Third Party Payments,Private Contractor Fees,73005-LANDFILL PTYS-PRIV CONTRACTOR FEES,524.40,Revenue,09/04/2015,Neighbourhood Services
WC55-1269,CORY ENVIRONMENTAL (CENTRAL) LTD,Third Party Payments,Private Contractor Fees,73005-LANDFILL PTYS-PRIV CONTRACTOR FEES,550.63,Revenue,16/04/2015,Neighbourhood Services
WC55-1270,CORY ENVIRONMENTAL (CENTRAL) LTD,Third Party Payments,Private Contractor Fees,73005-LANDFILL PTYS-PRIV CONTRACTOR FEES,"2,122.40",Revenue,24/04/2015,Neighbourhood Services
WC55-1271,CORY ENVIRONMENTAL (CENTRAL) LTD,Third Party Payments,Private Contractor Fees,73039-LANDFILL TAX-PRIV CONTRACTOR FEES,"2,861.60",Revenue,09/04/2015,Neighbourhood Services
WC55-1272,CORY ENVIRONMENTAL (CENTRAL) LTD,Third Party Payments,Private Contractor Fees,73039-LANDFILL TAX-PRIV CONTRACTOR FEES,"3,004.80",Revenue,16/04/2015,Neighbourhood Services
WC55-1273,COTON GREEN PRIMARY SCHOOL,Transfer Payments,Transfer Payments,77300-ISB-FORMULA ALLOCATION,300.00,Revenue,08/04/2015,Childrens
WC55-1274,COUCH PERRY & WILKES LLP,Capital,Capital,01007-ARCHITECTS ASSISTANTS TIME,"5,000.00",Capital,29/04/2015,Childrens
WC55-1275,COUCH PERRY & WILKES LLP,Capital,Capital,01007-ARCHITECTS ASSISTANTS TIME,"5,000.00",Capital,29/04/2015,Childrens
WC55-1276,COUGAR,Supplies & Services,"Equip,Furniture & Materials",60500-GENERAL MATERIALS,330.00,Revenue,27/04/2015,Neighbourhood Services
WC55-1277,COUNTRYSIDE TRAINING AND TREE MANAGEMENT,Employees,Training,30030-EXTERNAL TRAINING,"1,224.00",Revenue,02/04/2015,Neighbourhood Services
WC55-1278,COUNTRYWIDE CARE HOMES T/A ROSE LODGE CARE HOME,Third Party Payments,Private Contractor Fees,73373-RESIDENTIAL & NURSING CARE PLACEMENTS,357.78,Revenue,21/04/2015,Social Care & Inclusion
WC55-1279,COUNTRYWIDE CARE HOMES T/A ROSE LODGE CARE HOME,Third Party Payments,Private Contractor Fees,73373-RESIDENTIAL & NURSING CARE PLACEMENTS,"1,645.78",Revenue,21/04/2015,Social Care & Inclusion
WC55-1280,COUNTRYWIDE CARE HOMES T/A ROSE LODGE CARE HOME,Third Party Payments,Private Contractor Fees,73373-RESIDENTIAL & NURSING CARE PLACEMENTS,"1,823.97",Revenue,21/04/2015,Social Care & Inclusion
WC55-1281,COUNTRYWIDE CARE HOMES T/A ROSE LODGE CARE HOME,Third Party Payments,Private Contractor Fees,73373-RESIDENTIAL & NURSING CARE PLACEMENTS,"1,964.28",Revenue,21/04/2015,Social Care & Inclusion
WC55-1282,COUNTRYWIDE CARE HOMES T/A ROSE LODGE CARE HOME,Third Party Payments,Private Contractor Fees,73373-RESIDENTIAL & NURSING CARE PLACEMENTS,"1,964.28",Revenue,21/04/2015,Social Care & Inclusion
WC55-1283,COUNTRYWIDE CARE HOMES T/A ROSE LODGE CARE HOME,Third Party Payments,Private Contractor Fees,73373-RESIDENTIAL & NURSING CARE PLACEMENTS,"1,964.28",Revenue,21/04/2015,Social Care & Inclusion
WC55-1284,COUNTRYWIDE CARE HOMES T/A ROSE LODGE CARE HOME,Third Party Payments,Private Contractor Fees,73373-RESIDENTIAL & NURSING CARE PLACEMENTS,"2,003.56",Revenue,21/04/2015,Social Care & Inclusion
WC55-1285,COUNTRYWIDE CARE HOMES T/A ROSE LODGE CARE HOME,Third Party Payments,Private Contractor Fees,73373-RESIDENTIAL & NURSING CARE PLACEMENTS,"2,003.56",Revenue,21/04/2015,Social Care & Inclusion
WC55-1286,COUNTRYWIDE CARE HOMES T/A ROSE LODGE CARE HOME,Third Party Payments,Private Contractor Fees,73373-RESIDENTIAL & NURSING CARE PLACEMENTS,"2,003.56",Revenue,21/04/2015,Social Care & Inclusion
WC55-1287,COUNTRYWIDE CARE HOMES T/A ROSE LODGE CARE HOME,Third Party Payments,Private Contractor Fees,73373-RESIDENTIAL & NURSING CARE PLACEMENTS,"2,003.56",Revenue,21/04/2015,Social Care & Inclusion
WC55-1288,COUNTRYWIDE CARE HOMES T/A ROSE LODGE CARE HOME,Third Party Payments,Private Contractor Fees,73373-RESIDENTIAL & NURSING CARE PLACEMENTS,"2,003.56",Revenue,21/04/2015,Social Care & Inclusion
WC55-1289,COUNTRYWIDE CARE HOMES T/A ROSE LODGE CARE HOME,Third Party Payments,Private Contractor Fees,73373-RESIDENTIAL & NURSING CARE PLACEMENTS,"2,003.56",Revenue,21/04/2015,Social Care & Inclusion
